{"text_format":"1","workbook":"xlsx","n_sheets":7,"sheets":["Project Information","Budget Information ES","Budget Information TH","Budget Information RRH","Budget Information PSH","HIC (hidden)","Drop Downs (hidden)"],"not_rendered":{"charts":0,"images":0,"macros":1,"external_links":0,"defined_names":10,"comments":0,"pivot_tables":0},"unopened":[],"bounds":{"document_bytes":16777216,"sheet_cells":100000,"rows_first":2000,"rows_last":500,"rows_between":2000,"halvings":0,"cell_chars":16384,"cell_head_chars":4096},"cells_cut":0,"cells_raw":0,"read":"whole","date_system":"1900"}

{"sheet":"Project Information","index":0,"n_rows":500,"n_cols":14,"rows_kept":500,"cut":false,"hidden":false,"merged":[]}
[null,null,null,null,"Select Provider Name from Drop Down in Yellow Cell",null,null,null,null,null,null,null,{"$f":"INDEX(B4:B200,MATCH(\"\",A4:A200,0))+2","v":3},"Last Row of Organization Names"]
[]
[null,null,"Provider Name",{"$f":"CONCATENATE(\"Project Name\n(from \",'HIC (hidden)'!U3,\" HIC or CoC)\")","v":"Project Name\n(from  HIC or CoC)"},"Project Type","Project Sub Type","Notes, Corrections, etc."]
[{"$f":"'Drop Downs (hidden)'!A3","v":""},1]
[{"$f":"'Drop Downs (hidden)'!A4","v":""},2]
[{"$f":"'Drop Downs (hidden)'!A5","v":""},3]
[{"$f":"'Drop Downs (hidden)'!A6","v":""},4]
[{"$f":"'Drop Downs (hidden)'!A7","v":""},5]
[{"$f":"'Drop Downs (hidden)'!A8","v":""},6]
[{"$f":"'Drop Downs (hidden)'!A9","v":""},7]
[{"$f":"'Drop Downs (hidden)'!A10","v":""},8]
[{"$f":"'Drop Downs (hidden)'!A11","v":""},9]
[{"$f":"'Drop Downs (hidden)'!A12","v":""},10]
[{"$f":"'Drop Downs (hidden)'!A13","v":""},11]
[{"$f":"'Drop Downs (hidden)'!A14","v":""},12]
[{"$f":"'Drop Downs (hidden)'!A15","v":""},13]
[{"$f":"'Drop Downs (hidden)'!A16","v":""},14]
[{"$f":"'Drop Downs (hidden)'!A17","v":""},15]
[{"$f":"'Drop Downs (hidden)'!A18","v":""},16]
[{"$f":"'Drop Downs (hidden)'!A19","v":""},17]
[{"$f":"'Drop Downs (hidden)'!A20","v":""},18]
[{"$f":"'Drop Downs (hidden)'!A21","v":""},19]
[{"$f":"'Drop Downs (hidden)'!A22","v":""},20,null,null,null,null,null,null,null,null,null,null,""]
[{"$f":"'Drop Downs (hidden)'!A23","v":""},21,null,null,null,null,null,null,null,null,null,null,""]
[{"$f":"'Drop Downs (hidden)'!A24","v":""},22,null,null,null,null,null,null,null,null,null,null,""]
[{"$f":"'Drop Downs (hidden)'!A25","v":""},23,null,null,null,null,null,null,null,null,null,null,""]
[{"$f":"'Drop Downs (hidden)'!A26","v":""},24,null,null,null,null,null,null,null,null,null,null,""]
[{"$f":"'Drop Downs (hidden)'!A27","v":""},25,null,null,null,null,null,null,null,null,null,null,""]
[{"$f":"'Drop Downs (hidden)'!A28","v":""},26,null,null,null,null,null,null,null,null,null,null,""]
[{"$f":"'Drop Downs (hidden)'!A29","v":""},27,null,null,null,null,null,null,null,null,null,null,""]
[{"$f":"'Drop Downs (hidden)'!A30","v":""},28,null,null,null,null,null,null,null,null,null,null,""]
[{"$f":"'Drop Downs (hidden)'!A31","v":""},29,null,null,null,null,null,null,null,null,null,null,""]
[{"$f":"'Drop Downs (hidden)'!A32","v":""},30,null,null,null,null,null,null,null,null,null,null,""]
[{"$f":"'Drop Downs (hidden)'!A33","v":""},31,null,null,null,null,null,null,null,null,null,null,""]
[{"$f":"'Drop Downs (hidden)'!A34","v":""},32,null,null,null,null,null,null,null,null,null,null,""]
[{"$f":"'Drop Downs (hidden)'!A35","v":""},33,null,null,null,null,null,null,null,null,null,null,""]
[{"$f":"'Drop Downs (hidden)'!A36","v":""},34,null,null,null,null,null,null,null,null,null,null,""]
[{"$f":"'Drop Downs (hidden)'!A37","v":""},35,null,null,null,null,null,null,null,null,null,null,""]
[{"$f":"'Drop Downs (hidden)'!A38","v":""},36,null,null,null,null,null,null,null,null,null,null,""]
[{"$f":"'Drop Downs (hidden)'!A39","v":""},37,null,null,null,null,null,null,null,null,null,null,""]
[{"$f":"'Drop Downs (hidden)'!A40","v":""},38,null,null,null,null,null,null,null,null,null,null,""]
[{"$f":"'Drop Downs (hidden)'!A41","v":""},39,null,null,null,null,null,null,null,null,null,null,""]
[{"$f":"'Drop Downs (hidden)'!A42","v":""},40,null,null,null,null,null,null,null,null,null,null,""]
[{"$f":"'Drop Downs (hidden)'!A43","v":""},41,null,null,null,null,null,null,null,null,null,null,""]
[{"$f":"'Drop Downs (hidden)'!A44","v":""},42,null,null,null,null,null,null,null,null,null,null,""]
[{"$f":"'Drop Downs (hidden)'!A45","v":""},43,null,null,null,null,null,null,null,null,null,null,""]
[{"$f":"'Drop Downs (hidden)'!A46","v":""},44,null,null,null,null,null,null,null,null,null,null,""]
[{"$f":"'Drop Downs (hidden)'!A47","v":""},45,null,null,null,null,null,null,null,null,null,null,""]
[{"$f":"'Drop Downs (hidden)'!A48","v":""},46,null,null,null,null,null,null,null,null,null,null,""]
[{"$f":"'Drop Downs (hidden)'!A49","v":""},47,null,null,null,null,null,null,null,null,null,null,""]
[{"$f":"'Drop Downs (hidden)'!A50","v":""},48,null,null,null,null,null,null,null,null,null,null,""]
[{"$f":"'Drop Downs (hidden)'!A51","v":""},49,null,null,null,null,null,null,null,null,null,null,""]
[{"$f":"'Drop Downs (hidden)'!A52","v":""},50,null,null,null,null,null,null,null,null,null,null,""]
[{"$f":"'Drop Downs (hidden)'!A53","v":""},51,null,null,null,null,null,null,null,null,null,null,""]
[{"$f":"'Drop Downs (hidden)'!A54","v":""},52,null,null,null,null,null,null,null,null,null,null,""]
[{"$f":"'Drop Downs (hidden)'!A55","v":""},53,null,null,null,null,null,null,null,null,null,null,""]
[{"$f":"'Drop Downs (hidden)'!A56","v":""},54,null,null,null,null,null,null,null,null,null,null,""]
[{"$f":"'Drop Downs (hidden)'!A57","v":""},55,null,null,null,null,null,null,null,null,null,null,""]
[{"$f":"'Drop Downs (hidden)'!A58","v":""},56,null,null,null,null,null,null,null,null,null,null,""]
[{"$f":"'Drop Downs (hidden)'!A59","v":""},57,null,null,null,null,null,null,null,null,null,null,""]
[{"$f":"'Drop Downs (hidden)'!A60","v":""},58,null,null,null,null,null,null,null,null,null,null,""]
[{"$f":"'Drop Downs (hidden)'!A61","v":""},59,null,null,null,null,null,null,null,null,null,null,""]
[{"$f":"'Drop Downs (hidden)'!A62","v":""},60,null,null,null,null,null,null,null,null,null,null,""]
[{"$f":"'Drop Downs (hidden)'!A63","v":""},61,null,null,null,null,null,null,null,null,null,null,""]
[{"$f":"'Drop Downs (hidden)'!A64","v":""},62,null,null,null,null,null,null,null,null,null,null,""]
[{"$f":"'Drop Downs (hidden)'!A65","v":""},63,null,null,null,null,null,null,null,null,null,null,""]
[{"$f":"'Drop Downs (hidden)'!A66","v":""},64,null,null,null,null,null,null,null,null,null,null,""]
[{"$f":"'Drop Downs (hidden)'!A67","v":""},65,null,null,null,null,null,null,null,null,null,null,""]
[{"$f":"'Drop Downs (hidden)'!A68","v":""},66,null,null,null,null,null,null,null,null,null,null,""]
[{"$f":"'Drop Downs (hidden)'!A69","v":""},67,null,null,null,null,null,null,null,null,null,null,""]
[{"$f":"'Drop Downs (hidden)'!A70","v":""},68,null,null,null,null,null,null,null,null,null,null,""]
[{"$f":"'Drop Downs (hidden)'!A71","v":""},69,null,null,null,null,null,null,null,null,null,null,""]
[{"$f":"'Drop Downs (hidden)'!A72","v":""},70,null,null,null,null,null,null,null,null,null,null,""]
[{"$f":"'Drop Downs (hidden)'!A73","v":""},71,null,null,null,null,null,null,null,null,null,null,""]
[{"$f":"'Drop Downs (hidden)'!A74","v":""},72,null,null,null,null,null,null,null,null,null,null,""]
[{"$f":"'Drop Downs (hidden)'!A75","v":""},73,null,null,null,null,null,null,null,null,null,null,""]
[{"$f":"'Drop Downs (hidden)'!A76","v":""},74,null,null,null,null,null,null,null,null,null,null,""]
[{"$f":"'Drop Downs (hidden)'!A77","v":""},75,null,null,null,null,null,null,null,null,null,null,""]
[{"$f":"'Drop Downs (hidden)'!A78","v":""},76,null,null,null,null,null,null,null,null,null,null,""]
[{"$f":"'Drop Downs (hidden)'!A79","v":""},77,null,null,null,null,null,null,null,null,null,null,""]
[{"$f":"'Drop Downs (hidden)'!A80","v":""},78,null,null,null,null,null,null,null,null,null,null,""]
[{"$f":"'Drop Downs (hidden)'!A81","v":""},79,null,null,null,null,null,null,null,null,null,null,""]
[{"$f":"'Drop Downs (hidden)'!A82","v":""},80,null,null,null,null,null,null,null,null,null,null,""]
[{"$f":"'Drop Downs (hidden)'!A83","v":""},81,null,null,null,null,null,null,null,null,null,null,""]
[{"$f":"'Drop Downs (hidden)'!A84","v":""},82,null,null,null,null,null,null,null,null,null,null,""]
[{"$f":"'Drop Downs (hidden)'!A85","v":""},83,null,null,null,null,null,null,null,null,null,null,""]
[{"$f":"'Drop Downs (hidden)'!A86","v":""},84,null,null,null,null,null,null,null,null,null,null,""]
[{"$f":"'Drop Downs (hidden)'!A87","v":""},85,null,null,null,null,null,null,null,null,null,null,""]
[{"$f":"'Drop Downs (hidden)'!A88","v":""},86,null,null,null,null,null,null,null,null,null,null,""]
[{"$f":"'Drop Downs (hidden)'!A89","v":""},87,null,null,null,null,null,null,null,null,null,null,""]
[{"$f":"'Drop Downs (hidden)'!A90","v":""},88,null,null,null,null,null,null,null,null,null,null,""]
[{"$f":"'Drop Downs (hidden)'!A91","v":""},89,null,null,null,null,null,null,null,null,null,null,""]
[{"$f":"'Drop Downs (hidden)'!A92","v":""},90,null,null,null,null,null,null,null,null,null,null,""]
[{"$f":"'Drop Downs (hidden)'!A93","v":""},91,null,null,null,null,null,null,null,null,null,null,""]
[{"$f":"'Drop Downs (hidden)'!A94","v":""},92,null,null,null,null,null,null,null,null,null,null,""]
[{"$f":"'Drop Downs (hidden)'!A95","v":""},93,null,null,null,null,null,null,null,null,null,null,""]
[{"$f":"'Drop Downs (hidden)'!A96","v":""},94,null,null,null,null,null,null,null,null,null,null,""]
[{"$f":"'Drop Downs (hidden)'!A97","v":""},95,null,null,null,null,null,null,null,null,null,null,""]
[{"$f":"'Drop Downs (hidden)'!A98","v":""},96,null,null,null,null,null,null,null,null,null,null,""]
[{"$f":"'Drop Downs (hidden)'!A99","v":""},97,null,null,null,null,null,null,null,null,null,null,""]
[{"$f":"'Drop Downs (hidden)'!A100","v":""},98,null,null,null,null,null,null,null,null,null,null,""]
[{"$f":"'Drop Downs (hidden)'!A101","v":""},99,null,null,null,null,null,null,null,null,null,null,""]
[{"$f":"'Drop Downs (hidden)'!A102","v":""},100,null,null,null,null,null,null,null,null,null,null,""]
[{"$f":"'Drop Downs (hidden)'!A103","v":""},101,null,null,null,null,null,null,null,null,null,null,""]
[{"$f":"'Drop Downs (hidden)'!A104","v":""},102,null,null,null,null,null,null,null,null,null,null,""]
[{"$f":"'Drop Downs (hidden)'!A105","v":""},103,null,null,null,null,null,null,null,null,null,null,""]
[{"$f":"'Drop Downs (hidden)'!A106","v":""},104,null,null,null,null,null,null,null,null,null,null,""]
[{"$f":"'Drop Downs (hidden)'!A107","v":""},105,null,null,null,null,null,null,null,null,null,null,""]
[{"$f":"'Drop Downs (hidden)'!A108","v":""},106,null,null,null,null,null,null,null,null,null,null,""]
[{"$f":"'Drop Downs (hidden)'!A109","v":""},107,null,null,null,null,null,null,null,null,null,null,""]
[{"$f":"'Drop Downs (hidden)'!A110","v":""},108,null,null,null,null,null,null,null,null,null,null,""]
[{"$f":"'Drop Downs (hidden)'!A111","v":""},109,null,null,null,null,null,null,null,null,null,null,""]
[{"$f":"'Drop Downs (hidden)'!A112","v":""},110,null,null,null,null,null,null,null,null,null,null,""]
[{"$f":"'Drop Downs (hidden)'!A113","v":""},111,null,null,null,null,null,null,null,null,null,null,""]
[{"$f":"'Drop Downs (hidden)'!A114","v":""},112,null,null,null,null,null,null,null,null,null,null,""]
[{"$f":"'Drop Downs (hidden)'!A115","v":""},113,null,null,null,null,null,null,null,null,null,null,""]
[{"$f":"'Drop Downs (hidden)'!A116","v":""},114,null,null,null,null,null,null,null,null,null,null,""]
[{"$f":"'Drop Downs (hidden)'!A117","v":""},115,null,null,null,null,null,null,null,null,null,null,""]
[{"$f":"'Drop Downs (hidden)'!A118","v":""},116,null,null,null,null,null,null,null,null,null,null,""]
[{"$f":"'Drop Downs (hidden)'!A119","v":""},117,null,null,null,null,null,null,null,null,null,null,""]
[{"$f":"'Drop Downs (hidden)'!A120","v":""},118,null,null,null,null,null,null,null,null,null,null,""]
[{"$f":"'Drop Downs (hidden)'!A121","v":""},119,null,null,null,null,null,null,null,null,null,null,""]
[{"$f":"'Drop Downs (hidden)'!A122","v":""},120,null,null,null,null,null,null,null,null,null,null,""]
[{"$f":"'Drop Downs (hidden)'!A123","v":""},121,null,null,null,null,null,null,null,null,null,null,""]
[{"$f":"'Drop Downs (hidden)'!A124","v":""},122,null,null,null,null,null,null,null,null,null,null,""]
[{"$f":"'Drop Downs (hidden)'!A125","v":""},123,null,null,null,null,null,null,null,null,null,null,""]
[{"$f":"'Drop Downs (hidden)'!A126","v":""},124,null,null,null,null,null,null,null,null,null,null,""]
[{"$f":"'Drop Downs (hidden)'!A127","v":""},125,null,null,null,null,null,null,null,null,null,null,""]
[{"$f":"'Drop Downs (hidden)'!A128","v":""},126,null,null,null,null,null,null,null,null,null,null,""]
[{"$f":"'Drop Downs (hidden)'!A129","v":""},127,null,null,null,null,null,null,null,null,null,null,""]
[{"$f":"'Drop Downs (hidden)'!A130","v":""},128,null,null,null,null,null,null,null,null,null,null,""]
[{"$f":"'Drop Downs (hidden)'!A131","v":""},129,null,null,null,null,null,null,null,null,null,null,""]
[{"$f":"'Drop Downs (hidden)'!A132","v":""},130,null,null,null,null,null,null,null,null,null,null,""]
[{"$f":"'Drop Downs (hidden)'!A133","v":""},131,null,null,null,null,null,null,null,null,null,null,""]
[{"$f":"'Drop Downs (hidden)'!A134","v":""},132,null,null,null,null,null,null,null,null,null,null,""]
[{"$f":"'Drop Downs (hidden)'!A135","v":""},133,null,null,null,null,null,null,null,null,null,null,""]
[{"$f":"'Drop Downs (hidden)'!A136","v":""},134,null,null,null,null,null,null,null,null,null,null,""]
[{"$f":"'Drop Downs (hidden)'!A137","v":""},135,null,null,null,null,null,null,null,null,null,null,""]
[{"$f":"'Drop Downs (hidden)'!A138","v":""},136,null,null,null,null,null,null,null,null,null,null,""]
[{"$f":"'Drop Downs (hidden)'!A139","v":""},137,null,null,null,null,null,null,null,null,null,null,""]
[{"$f":"'Drop Downs (hidden)'!A140","v":""},138,null,null,null,null,null,null,null,null,null,null,""]
[{"$f":"'Drop Downs (hidden)'!A141","v":""},139,null,null,null,null,null,null,null,null,null,null,""]
[{"$f":"'Drop Downs (hidden)'!A142","v":""},140,null,null,null,null,null,null,null,null,null,null,""]
[{"$f":"'Drop Downs (hidden)'!A143","v":""},141,null,null,null,null,null,null,null,null,null,null,""]
[{"$f":"'Drop Downs (hidden)'!A144","v":""},142,null,null,null,null,null,null,null,null,null,null,""]
[{"$f":"'Drop Downs (hidden)'!A145","v":""},143,null,null,null,null,null,null,null,null,null,null,""]
[{"$f":"'Drop Downs (hidden)'!A146","v":""},144,null,null,null,null,null,null,null,null,null,null,""]
[{"$f":"'Drop Downs (hidden)'!A147","v":""},145,null,null,null,null,null,null,null,null,null,null,""]
[{"$f":"'Drop Downs (hidden)'!A148","v":""},146,null,null,null,null,null,null,null,null,null,null,""]
[{"$f":"'Drop Downs (hidden)'!A149","v":""},147,null,null,null,null,null,null,null,null,null,null,""]
[{"$f":"'Drop Downs (hidden)'!A150","v":""},148,null,null,null,null,null,null,null,null,null,null,""]
[{"$f":"'Drop Downs (hidden)'!A151","v":""},149,null,null,null,null,null,null,null,null,null,null,""]
[{"$f":"'Drop Downs (hidden)'!A152","v":""},150,null,null,null,null,null,null,null,null,null,null,""]
[{"$f":"'Drop Downs (hidden)'!A153","v":""},151,null,null,null,null,null,null,null,null,null,null,""]
[{"$f":"'Drop Downs (hidden)'!A154","v":""},152,null,null,null,null,null,null,null,null,null,null,""]
[{"$f":"'Drop Downs (hidden)'!A155","v":""},153,null,null,null,null,null,null,null,null,null,null,""]
[{"$f":"'Drop Downs (hidden)'!A156","v":""},154,null,null,null,null,null,null,null,null,null,null,""]
[{"$f":"'Drop Downs (hidden)'!A157","v":""},155,null,null,null,null,null,null,null,null,null,null,""]
[{"$f":"'Drop Downs (hidden)'!A158","v":""},156,null,null,null,null,null,null,null,null,null,null,""]
[{"$f":"'Drop Downs (hidden)'!A159","v":""},157,null,null,null,null,null,null,null,null,null,null,""]
[{"$f":"'Drop Downs (hidden)'!A160","v":""},158,null,null,null,null,null,null,null,null,null,null,""]
[{"$f":"'Drop Downs (hidden)'!A161","v":""},159,null,null,null,null,null,null,null,null,null,null,""]
[{"$f":"'Drop Downs (hidden)'!A162","v":""},160,null,null,null,null,null,null,null,null,null,null,""]
[{"$f":"'Drop Downs (hidden)'!A163","v":""},161,null,null,null,null,null,null,null,null,null,null,""]
[{"$f":"'Drop Downs (hidden)'!A164","v":""},162,null,null,null,null,null,null,null,null,null,null,""]
[{"$f":"'Drop Downs (hidden)'!A165","v":""},163,null,null,null,null,null,null,null,null,null,null,""]
[{"$f":"'Drop Downs (hidden)'!A166","v":""},164,null,null,null,null,null,null,null,null,null,null,""]
[{"$f":"'Drop Downs (hidden)'!A167","v":""},165,null,null,null,null,null,null,null,null,null,null,""]
[{"$f":"'Drop Downs (hidden)'!A168","v":""},166,null,null,null,null,null,null,null,null,null,null,""]
[{"$f":"'Drop Downs (hidden)'!A169","v":""},167,null,null,null,null,null,null,null,null,null,null,""]
[{"$f":"'Drop Downs (hidden)'!A170","v":""},168,null,null,null,null,null,null,null,null,null,null,""]
[{"$f":"'Drop Downs (hidden)'!A171","v":""},169,null,null,null,null,null,null,null,null,null,null,""]
[{"$f":"'Drop Downs (hidden)'!A172","v":""},170,null,null,null,null,null,null,null,null,null,null,""]
[{"$f":"'Drop Downs (hidden)'!A173","v":""},171,null,null,null,null,null,null,null,null,null,null,""]
[{"$f":"'Drop Downs (hidden)'!A174","v":""},172,null,null,null,null,null,null,null,null,null,null,""]
[{"$f":"'Drop Downs (hidden)'!A175","v":""},173,null,null,null,null,null,null,null,null,null,null,""]
[{"$f":"'Drop Downs (hidden)'!A176","v":""},174,null,null,null,null,null,null,null,null,null,null,""]
[{"$f":"'Drop Downs (hidden)'!A177","v":""},175,null,null,null,null,null,null,null,null,null,null,""]
[{"$f":"'Drop Downs (hidden)'!A178","v":""},176,null,null,null,null,null,null,null,null,null,null,""]
[{"$f":"'Drop Downs (hidden)'!A179","v":""},177,null,null,null,null,null,null,null,null,null,null,""]
[{"$f":"'Drop Downs (hidden)'!A180","v":""},178,null,null,null,null,null,null,null,null,null,null,""]
[{"$f":"'Drop Downs (hidden)'!A181","v":""},179,null,null,null,null,null,null,null,null,null,null,""]
[{"$f":"'Drop Downs (hidden)'!A182","v":""},180,null,null,null,null,null,null,null,null,null,null,""]
[{"$f":"'Drop Downs (hidden)'!A183","v":""},181,null,null,null,null,null,null,null,null,null,null,""]
[{"$f":"'Drop Downs (hidden)'!A184","v":""},182,null,null,null,null,null,null,null,null,null,null,""]
[{"$f":"'Drop Downs (hidden)'!A185","v":""},183,null,null,null,null,null,null,null,null,null,null,""]
[{"$f":"'Drop Downs (hidden)'!A186","v":""},184,null,null,null,null,null,null,null,null,null,null,""]
[{"$f":"'Drop Downs (hidden)'!A187","v":""},185,null,null,null,null,null,null,null,null,null,null,""]
[{"$f":"'Drop Downs (hidden)'!A188","v":""},186,null,null,null,null,null,null,null,null,null,null,""]
[{"$f":"'Drop Downs (hidden)'!A189","v":""},187,null,null,null,null,null,null,null,null,null,null,""]
[{"$f":"'Drop Downs (hidden)'!A190","v":""},188,null,null,null,null,null,null,null,null,null,null,""]
[{"$f":"'Drop Downs (hidden)'!A191","v":""},189,null,null,null,null,null,null,null,null,null,null,""]
[{"$f":"'Drop Downs (hidden)'!A192","v":""},190,null,null,null,null,null,null,null,null,null,null,""]
[{"$f":"'Drop Downs (hidden)'!A193","v":""},191,null,null,null,null,null,null,null,null,null,null,""]
[{"$f":"'Drop Downs (hidden)'!A194","v":""},192,null,null,null,null,null,null,null,null,null,null,""]
[{"$f":"'Drop Downs (hidden)'!A195","v":""},193,null,null,null,null,null,null,null,null,null,null,""]
[{"$f":"'Drop Downs (hidden)'!A196","v":""},194,null,null,null,null,null,null,null,null,null,null,""]
[{"$f":"'Drop Downs (hidden)'!A197","v":""},195,null,null,null,null,null,null,null,null,null,null,""]
[{"$f":"'Drop Downs (hidden)'!A198","v":""},196,null,null,null,null,null,null,null,null,null,null,""]
[{"$f":"'Drop Downs (hidden)'!A199","v":""},197,null,null,null,null,null,null,null,null,null,null,""]
[{"$f":"'Drop Downs (hidden)'!A200","v":""},198,null,null,null,null,null,null,null,null,null,null,""]
[{"$f":"'Drop Downs (hidden)'!A201","v":""},199,null,null,null,null,null,null,null,null,null,null,""]
[{"$f":"'Drop Downs (hidden)'!A202","v":""},200,null,null,null,null,null,null,null,null,null,null,""]
[{"$f":"'Drop Downs (hidden)'!A203","v":""},201,null,null,null,null,null,null,null,null,null,null,""]
[{"$f":"'Drop Downs (hidden)'!A204","v":""},202,null,null,null,null,null,null,null,null,null,null,""]
[{"$f":"'Drop Downs (hidden)'!A205","v":""},203,null,null,null,null,null,null,null,null,null,null,""]
[{"$f":"'Drop Downs (hidden)'!A206","v":""},204,null,null,null,null,null,null,null,null,null,null,""]
[{"$f":"'Drop Downs (hidden)'!A207","v":""},205,null,null,null,null,null,null,null,null,null,null,""]
[{"$f":"'Drop Downs (hidden)'!A208","v":""},206,null,null,null,null,null,null,null,null,null,null,""]
[{"$f":"'Drop Downs (hidden)'!A209","v":""},207,null,null,null,null,null,null,null,null,null,null,""]
[{"$f":"'Drop Downs (hidden)'!A210","v":""},208,null,null,null,null,null,null,null,null,null,null,""]
[{"$f":"'Drop Downs (hidden)'!A211","v":""},209,null,null,null,null,null,null,null,null,null,null,""]
[{"$f":"'Drop Downs (hidden)'!A212","v":""},210,null,null,null,null,null,null,null,null,null,null,""]
[{"$f":"'Drop Downs (hidden)'!A213","v":""},211,null,null,null,null,null,null,null,null,null,null,""]
[{"$f":"'Drop Downs (hidden)'!A214","v":""},212,null,null,null,null,null,null,null,null,null,null,""]
[{"$f":"'Drop Downs (hidden)'!A215","v":""},213,null,null,null,null,null,null,null,null,null,null,""]
[{"$f":"'Drop Downs (hidden)'!A216","v":""},214,null,null,null,null,null,null,null,null,null,null,""]
[{"$f":"'Drop Downs (hidden)'!A217","v":""},215,null,null,null,null,null,null,null,null,null,null,""]
[{"$f":"'Drop Downs (hidden)'!A218","v":""},216,null,null,null,null,null,null,null,null,null,null,""]
[{"$f":"'Drop Downs (hidden)'!A219","v":""},217,null,null,null,null,null,null,null,null,null,null,""]
[{"$f":"'Drop Downs (hidden)'!A220","v":""},218,null,null,null,null,null,null,null,null,null,null,""]
[{"$f":"'Drop Downs (hidden)'!A221","v":""},219,null,null,null,null,null,null,null,null,null,null,""]
[{"$f":"'Drop Downs (hidden)'!A222","v":""},220,null,null,null,null,null,null,null,null,null,null,""]
[{"$f":"'Drop Downs (hidden)'!A223","v":""},221,null,null,null,null,null,null,null,null,null,null,""]
[{"$f":"'Drop Downs (hidden)'!A224","v":""},222,null,null,null,null,null,null,null,null,null,null,""]
[{"$f":"'Drop Downs (hidden)'!A225","v":""},223,null,null,null,null,null,null,null,null,null,null,""]
[{"$f":"'Drop Downs (hidden)'!A226","v":""},224,null,null,null,null,null,null,null,null,null,null,""]
[{"$f":"'Drop Downs (hidden)'!A227","v":""},225,null,null,null,null,null,null,null,null,null,null,""]
[{"$f":"'Drop Downs (hidden)'!A228","v":""},226,null,null,null,null,null,null,null,null,null,null,""]
[{"$f":"'Drop Downs (hidden)'!A229","v":""},227,null,null,null,null,null,null,null,null,null,null,""]
[{"$f":"'Drop Downs (hidden)'!A230","v":""},228,null,null,null,null,null,null,null,null,null,null,""]
[{"$f":"'Drop Downs (hidden)'!A231","v":""},229,null,null,null,null,null,null,null,null,null,null,""]
[{"$f":"'Drop Downs (hidden)'!A232","v":""},230,null,null,null,null,null,null,null,null,null,null,""]
[{"$f":"'Drop Downs (hidden)'!A233","v":""},231,null,null,null,null,null,null,null,null,null,null,""]
[{"$f":"'Drop Downs (hidden)'!A234","v":""},232,null,null,null,null,null,null,null,null,null,null,""]
[{"$f":"'Drop Downs (hidden)'!A235","v":""},233,null,null,null,null,null,null,null,null,null,null,""]
[{"$f":"'Drop Downs (hidden)'!A236","v":""},234,null,null,null,null,null,null,null,null,null,null,""]
[{"$f":"'Drop Downs (hidden)'!A237","v":""},235,null,null,null,null,null,null,null,null,null,null,""]
[{"$f":"'Drop Downs (hidden)'!A238","v":""},236,null,null,null,null,null,null,null,null,null,null,""]
[{"$f":"'Drop Downs (hidden)'!A239","v":""},237,null,null,null,null,null,null,null,null,null,null,""]
[{"$f":"'Drop Downs (hidden)'!A240","v":""},238,null,null,null,null,null,null,null,null,null,null,""]
[{"$f":"'Drop Downs (hidden)'!A241","v":""},239,null,null,null,null,null,null,null,null,null,null,""]
[{"$f":"'Drop Downs (hidden)'!A242","v":""},240,null,null,null,null,null,null,null,null,null,null,""]
[{"$f":"'Drop Downs (hidden)'!A243","v":""},241,null,null,null,null,null,null,null,null,null,null,""]
[{"$f":"'Drop Downs (hidden)'!A244","v":""},242,null,null,null,null,null,null,null,null,null,null,""]
[{"$f":"'Drop Downs (hidden)'!A245","v":""},243,null,null,null,null,null,null,null,null,null,null,""]
[{"$f":"'Drop Downs (hidden)'!A246","v":""},244,null,null,null,null,null,null,null,null,null,null,""]
[{"$f":"'Drop Downs (hidden)'!A247","v":""},245,null,null,null,null,null,null,null,null,null,null,""]
[{"$f":"'Drop Downs (hidden)'!A248","v":""},246,null,null,null,null,null,null,null,null,null,null,""]
[{"$f":"'Drop Downs (hidden)'!A249","v":""},247,null,null,null,null,null,null,null,null,null,null,""]
[{"$f":"'Drop Downs (hidden)'!A250","v":""},248,null,null,null,null,null,null,null,null,null,null,""]
[{"$f":"'Drop Downs (hidden)'!A251","v":""},249,null,null,null,null,null,null,null,null,null,null,""]
[{"$f":"'Drop Downs (hidden)'!A252","v":""},250,null,null,null,null,null,null,null,null,null,null,""]
[{"$f":"'Drop Downs (hidden)'!A253","v":""},251,null,null,null,null,null,null,null,null,null,null,""]
[{"$f":"'Drop Downs (hidden)'!A254","v":""},252,null,null,null,null,null,null,null,null,null,null,""]
[{"$f":"'Drop Downs (hidden)'!A255","v":""},253,null,null,null,null,null,null,null,null,null,null,""]
[{"$f":"'Drop Downs (hidden)'!A256","v":""},254,null,null,null,null,null,null,null,null,null,null,""]
[{"$f":"'Drop Downs (hidden)'!A257","v":""},255,null,null,null,null,null,null,null,null,null,null,""]
[{"$f":"'Drop Downs (hidden)'!A258","v":""},256,null,null,null,null,null,null,null,null,null,null,""]
[{"$f":"'Drop Downs (hidden)'!A259","v":""},257,null,null,null,null,null,null,null,null,null,null,""]
[{"$f":"'Drop Downs (hidden)'!A260","v":""},258,null,null,null,null,null,null,null,null,null,null,""]
[{"$f":"'Drop Downs (hidden)'!A261","v":""},259,null,null,null,null,null,null,null,null,null,null,""]
[{"$f":"'Drop Downs (hidden)'!A262","v":""},260,null,null,null,null,null,null,null,null,null,null,""]
[{"$f":"'Drop Downs (hidden)'!A263","v":""},261,null,null,null,null,null,null,null,null,null,null,""]
[{"$f":"'Drop Downs (hidden)'!A264","v":""},262,null,null,null,null,null,null,null,null,null,null,""]
[{"$f":"'Drop Downs (hidden)'!A265","v":""},263,null,null,null,null,null,null,null,null,null,null,""]
[{"$f":"'Drop Downs (hidden)'!A266","v":""},264,null,null,null,null,null,null,null,null,null,null,""]
[{"$f":"'Drop Downs (hidden)'!A267","v":""},265,null,null,null,null,null,null,null,null,null,null,""]
[{"$f":"'Drop Downs (hidden)'!A268","v":""},266,null,null,null,null,null,null,null,null,null,null,""]
[{"$f":"'Drop Downs (hidden)'!A269","v":""},267,null,null,null,null,null,null,null,null,null,null,""]
[{"$f":"'Drop Downs (hidden)'!A270","v":""},268,null,null,null,null,null,null,null,null,null,null,""]
[{"$f":"'Drop Downs (hidden)'!A271","v":""},269,null,null,null,null,null,null,null,null,null,null,""]
[{"$f":"'Drop Downs (hidden)'!A272","v":""},270,null,null,null,null,null,null,null,null,null,null,""]
[{"$f":"'Drop Downs (hidden)'!A273","v":""},271,null,null,null,null,null,null,null,null,null,null,""]
[{"$f":"'Drop Downs (hidden)'!A274","v":""},272,null,null,null,null,null,null,null,null,null,null,""]
[{"$f":"'Drop Downs (hidden)'!A275","v":""},273,null,null,null,null,null,null,null,null,null,null,""]
[{"$f":"'Drop Downs (hidden)'!A276","v":""},274,null,null,null,null,null,null,null,null,null,null,""]
[{"$f":"'Drop Downs (hidden)'!A277","v":""},275,null,null,null,null,null,null,null,null,null,null,""]
[{"$f":"'Drop Downs (hidden)'!A278","v":""},276,null,null,null,null,null,null,null,null,null,null,""]
[{"$f":"'Drop Downs (hidden)'!A279","v":""},277,null,null,null,null,null,null,null,null,null,null,""]
[{"$f":"'Drop Downs (hidden)'!A280","v":""},278,null,null,null,null,null,null,null,null,null,null,""]
[{"$f":"'Drop Downs (hidden)'!A281","v":""},279,null,null,null,null,null,null,null,null,null,null,""]
[{"$f":"'Drop Downs (hidden)'!A282","v":""},280,null,null,null,null,null,null,null,null,null,null,""]
[{"$f":"'Drop Downs (hidden)'!A283","v":""},281,null,null,null,null,null,null,null,null,null,null,""]
[{"$f":"'Drop Downs (hidden)'!A284","v":""},282,null,null,null,null,null,null,null,null,null,null,""]
[{"$f":"'Drop Downs (hidden)'!A285","v":""},283,null,null,null,null,null,null,null,null,null,null,""]
[{"$f":"'Drop Downs (hidden)'!A286","v":""},284,null,null,null,null,null,null,null,null,null,null,""]
[{"$f":"'Drop Downs (hidden)'!A287","v":""},285,null,null,null,null,null,null,null,null,null,null,""]
[{"$f":"'Drop Downs (hidden)'!A288","v":""},286,null,null,null,null,null,null,null,null,null,null,""]
[{"$f":"'Drop Downs (hidden)'!A289","v":""},287,null,null,null,null,null,null,null,null,null,null,""]
[{"$f":"'Drop Downs (hidden)'!A290","v":""},288,null,null,null,null,null,null,null,null,null,null,""]
[{"$f":"'Drop Downs (hidden)'!A291","v":""},289,null,null,null,null,null,null,null,null,null,null,""]
[{"$f":"'Drop Downs (hidden)'!A292","v":""},290,null,null,null,null,null,null,null,null,null,null,""]
[{"$f":"'Drop Downs (hidden)'!A293","v":""},291,null,null,null,null,null,null,null,null,null,null,""]
[{"$f":"'Drop Downs (hidden)'!A294","v":""},292,null,null,null,null,null,null,null,null,null,null,""]
[{"$f":"'Drop Downs (hidden)'!A295","v":""},293,null,null,null,null,null,null,null,null,null,null,""]
[{"$f":"'Drop Downs (hidden)'!A296","v":""},294,null,null,null,null,null,null,null,null,null,null,""]
[{"$f":"'Drop Downs (hidden)'!A297","v":""},295,null,null,null,null,null,null,null,null,null,null,""]
[{"$f":"'Drop Downs (hidden)'!A298","v":""},296,null,null,null,null,null,null,null,null,null,null,""]
[{"$f":"'Drop Downs (hidden)'!A299","v":""},297,null,null,null,null,null,null,null,null,null,null,""]
[{"$f":"'Drop Downs (hidden)'!A300","v":""},298,null,null,null,null,null,null,null,null,null,null,""]
[{"$f":"'Drop Downs (hidden)'!A301","v":""},299,null,null,null,null,null,null,null,null,null,null,""]
[{"$f":"'Drop Downs (hidden)'!A302","v":""},300,null,null,null,null,null,null,null,null,null,null,""]
[{"$f":"'Drop Downs (hidden)'!A303","v":""},301,null,null,null,null,null,null,null,null,null,null,""]
[{"$f":"'Drop Downs (hidden)'!A304","v":""},302,null,null,null,null,null,null,null,null,null,null,""]
[{"$f":"'Drop Downs (hidden)'!A305","v":""},303,null,null,null,null,null,null,null,null,null,null,""]
[{"$f":"'Drop Downs (hidden)'!A306","v":""},304,null,null,null,null,null,null,null,null,null,null,""]
[{"$f":"'Drop Downs (hidden)'!A307","v":""},305,null,null,null,null,null,null,null,null,null,null,""]
[{"$f":"'Drop Downs (hidden)'!A308","v":""},306,null,null,null,null,null,null,null,null,null,null,""]
[{"$f":"'Drop Downs (hidden)'!A309","v":""},307,null,null,null,null,null,null,null,null,null,null,""]
[{"$f":"'Drop Downs (hidden)'!A310","v":""},308,null,null,null,null,null,null,null,null,null,null,""]
[{"$f":"'Drop Downs (hidden)'!A311","v":""},309,null,null,null,null,null,null,null,null,null,null,""]
[{"$f":"'Drop Downs (hidden)'!A312","v":""},310,null,null,null,null,null,null,null,null,null,null,""]
[{"$f":"'Drop Downs (hidden)'!A313","v":""},311,null,null,null,null,null,null,null,null,null,null,""]
[{"$f":"'Drop Downs (hidden)'!A314","v":""},312,null,null,null,null,null,null,null,null,null,null,""]
[{"$f":"'Drop Downs (hidden)'!A315","v":""},313,null,null,null,null,null,null,null,null,null,null,""]
[{"$f":"'Drop Downs (hidden)'!A316","v":""},314,null,null,null,null,null,null,null,null,null,null,""]
[{"$f":"'Drop Downs (hidden)'!A317","v":""},315,null,null,null,null,null,null,null,null,null,null,""]
[{"$f":"'Drop Downs (hidden)'!A318","v":""},316,null,null,null,null,null,null,null,null,null,null,""]
[{"$f":"'Drop Downs (hidden)'!A319","v":""},317,null,null,null,null,null,null,null,null,null,null,""]
[{"$f":"'Drop Downs (hidden)'!A320","v":""},318,null,null,null,null,null,null,null,null,null,null,""]
[{"$f":"'Drop Downs (hidden)'!A321","v":""},319,null,null,null,null,null,null,null,null,null,null,""]
[{"$f":"'Drop Downs (hidden)'!A322","v":""},320,null,null,null,null,null,null,null,null,null,null,""]
[{"$f":"'Drop Downs (hidden)'!A323","v":""},321,null,null,null,null,null,null,null,null,null,null,""]
[{"$f":"'Drop Downs (hidden)'!A324","v":""},322,null,null,null,null,null,null,null,null,null,null,""]
[{"$f":"'Drop Downs (hidden)'!A325","v":""},323,null,null,null,null,null,null,null,null,null,null,""]
[{"$f":"'Drop Downs (hidden)'!A326","v":""},324,null,null,null,null,null,null,null,null,null,null,""]
[{"$f":"'Drop Downs (hidden)'!A327","v":""},325,null,null,null,null,null,null,null,null,null,null,""]
[{"$f":"'Drop Downs (hidden)'!A328","v":""},326,null,null,null,null,null,null,null,null,null,null,""]
[{"$f":"'Drop Downs (hidden)'!A329","v":""},327,null,null,null,null,null,null,null,null,null,null,""]
[{"$f":"'Drop Downs (hidden)'!A330","v":""},328,null,null,null,null,null,null,null,null,null,null,""]
[{"$f":"'Drop Downs (hidden)'!A331","v":""},329,null,null,null,null,null,null,null,null,null,null,""]
[{"$f":"'Drop Downs (hidden)'!A332","v":""},330,null,null,null,null,null,null,null,null,null,null,""]
[{"$f":"'Drop Downs (hidden)'!A333","v":""},331,null,null,null,null,null,null,null,null,null,null,""]
[{"$f":"'Drop Downs (hidden)'!A334","v":""},332,null,null,null,null,null,null,null,null,null,null,""]
[{"$f":"'Drop Downs (hidden)'!A335","v":""},333,null,null,null,null,null,null,null,null,null,null,""]
[{"$f":"'Drop Downs (hidden)'!A336","v":""},334,null,null,null,null,null,null,null,null,null,null,""]
[{"$f":"'Drop Downs (hidden)'!A337","v":""},335,null,null,null,null,null,null,null,null,null,null,""]
[{"$f":"'Drop Downs (hidden)'!A338","v":""},336,null,null,null,null,null,null,null,null,null,null,""]
[{"$f":"'Drop Downs (hidden)'!A339","v":""},337,null,null,null,null,null,null,null,null,null,null,""]
[{"$f":"'Drop Downs (hidden)'!A340","v":""},338,null,null,null,null,null,null,null,null,null,null,""]
[{"$f":"'Drop Downs (hidden)'!A341","v":""},339,null,null,null,null,null,null,null,null,null,null,""]
[{"$f":"'Drop Downs (hidden)'!A342","v":""},340,null,null,null,null,null,null,null,null,null,null,""]
[{"$f":"'Drop Downs (hidden)'!A343","v":""},341,null,null,null,null,null,null,null,null,null,null,""]
[{"$f":"'Drop Downs (hidden)'!A344","v":""},342,null,null,null,null,null,null,null,null,null,null,""]
[{"$f":"'Drop Downs (hidden)'!A345","v":""},343,null,null,null,null,null,null,null,null,null,null,""]
[{"$f":"'Drop Downs (hidden)'!A346","v":""},344,null,null,null,null,null,null,null,null,null,null,""]
[{"$f":"'Drop Downs (hidden)'!A347","v":""},345,null,null,null,null,null,null,null,null,null,null,""]
[{"$f":"'Drop Downs (hidden)'!A348","v":""},346,null,null,null,null,null,null,null,null,null,null,""]
[{"$f":"'Drop Downs (hidden)'!A349","v":""},347,null,null,null,null,null,null,null,null,null,null,""]
[{"$f":"'Drop Downs (hidden)'!A350","v":""},348,null,null,null,null,null,null,null,null,null,null,""]
[{"$f":"'Drop Downs (hidden)'!A351","v":""},349,null,null,null,null,null,null,null,null,null,null,""]
[{"$f":"'Drop Downs (hidden)'!A352","v":""},350,null,null,null,null,null,null,null,null,null,null,""]
[{"$f":"'Drop Downs (hidden)'!A353","v":""},351,null,null,null,null,null,null,null,null,null,null,""]
[{"$f":"'Drop Downs (hidden)'!A354","v":""},352,null,null,null,null,null,null,null,null,null,null,""]
[{"$f":"'Drop Downs (hidden)'!A355","v":""},353,null,null,null,null,null,null,null,null,null,null,""]
[{"$f":"'Drop Downs (hidden)'!A356","v":""},354,null,null,null,null,null,null,null,null,null,null,""]
[{"$f":"'Drop Downs (hidden)'!A357","v":""},355,null,null,null,null,null,null,null,null,null,null,""]
[{"$f":"'Drop Downs (hidden)'!A358","v":""},356,null,null,null,null,null,null,null,null,null,null,""]
[{"$f":"'Drop Downs (hidden)'!A359","v":""},357,null,null,null,null,null,null,null,null,null,null,""]
[{"$f":"'Drop Downs (hidden)'!A360","v":""},358,null,null,null,null,null,null,null,null,null,null,""]
[{"$f":"'Drop Downs (hidden)'!A361","v":""},359,null,null,null,null,null,null,null,null,null,null,""]
[{"$f":"'Drop Downs (hidden)'!A362","v":""},360,null,null,null,null,null,null,null,null,null,null,""]
[{"$f":"'Drop Downs (hidden)'!A363","v":""},361,null,null,null,null,null,null,null,null,null,null,""]
[{"$f":"'Drop Downs (hidden)'!A364","v":""},362,null,null,null,null,null,null,null,null,null,null,""]
[{"$f":"'Drop Downs (hidden)'!A365","v":""},363,null,null,null,null,null,null,null,null,null,null,""]
[{"$f":"'Drop Downs (hidden)'!A366","v":""},364,null,null,null,null,null,null,null,null,null,null,""]
[{"$f":"'Drop Downs (hidden)'!A367","v":""},365,null,null,null,null,null,null,null,null,null,null,""]
[{"$f":"'Drop Downs (hidden)'!A368","v":""},366,null,null,null,null,null,null,null,null,null,null,""]
[{"$f":"'Drop Downs (hidden)'!A369","v":""},367,null,null,null,null,null,null,null,null,null,null,""]
[{"$f":"'Drop Downs (hidden)'!A370","v":""},368,null,null,null,null,null,null,null,null,null,null,""]
[{"$f":"'Drop Downs (hidden)'!A371","v":""},369,null,null,null,null,null,null,null,null,null,null,""]
[{"$f":"'Drop Downs (hidden)'!A372","v":""},370,null,null,null,null,null,null,null,null,null,null,""]
[{"$f":"'Drop Downs (hidden)'!A373","v":""},371,null,null,null,null,null,null,null,null,null,null,""]
[{"$f":"'Drop Downs (hidden)'!A374","v":""},372,null,null,null,null,null,null,null,null,null,null,""]
[{"$f":"'Drop Downs (hidden)'!A375","v":""},373,null,null,null,null,null,null,null,null,null,null,""]
[{"$f":"'Drop Downs (hidden)'!A376","v":""},374,null,null,null,null,null,null,null,null,null,null,""]
[{"$f":"'Drop Downs (hidden)'!A377","v":""},375,null,null,null,null,null,null,null,null,null,null,""]
[{"$f":"'Drop Downs (hidden)'!A378","v":""},376,null,null,null,null,null,null,null,null,null,null,""]
[{"$f":"'Drop Downs (hidden)'!A379","v":""},377,null,null,null,null,null,null,null,null,null,null,""]
[{"$f":"'Drop Downs (hidden)'!A380","v":""},378,null,null,null,null,null,null,null,null,null,null,""]
[{"$f":"'Drop Downs (hidden)'!A381","v":""},379,null,null,null,null,null,null,null,null,null,null,""]
[{"$f":"'Drop Downs (hidden)'!A382","v":""},380,null,null,null,null,null,null,null,null,null,null,""]
[{"$f":"'Drop Downs (hidden)'!A383","v":""},381,null,null,null,null,null,null,null,null,null,null,""]
[{"$f":"'Drop Downs (hidden)'!A384","v":""},382,null,null,null,null,null,null,null,null,null,null,""]
[{"$f":"'Drop Downs (hidden)'!A385","v":""},383,null,null,null,null,null,null,null,null,null,null,""]
[{"$f":"'Drop Downs (hidden)'!A386","v":""},384,null,null,null,null,null,null,null,null,null,null,""]
[{"$f":"'Drop Downs (hidden)'!A387","v":""},385,null,null,null,null,null,null,null,null,null,null,""]
[{"$f":"'Drop Downs (hidden)'!A388","v":""},386,null,null,null,null,null,null,null,null,null,null,""]
[{"$f":"'Drop Downs (hidden)'!A389","v":""},387,null,null,null,null,null,null,null,null,null,null,""]
[{"$f":"'Drop Downs (hidden)'!A390","v":""},388,null,null,null,null,null,null,null,null,null,null,""]
[{"$f":"'Drop Downs (hidden)'!A391","v":""},389,null,null,null,null,null,null,null,null,null,null,""]
[{"$f":"'Drop Downs (hidden)'!A392","v":""},390,null,null,null,null,null,null,null,null,null,null,""]
[{"$f":"'Drop Downs (hidden)'!A393","v":""},391,null,null,null,null,null,null,null,null,null,null,""]
[{"$f":"'Drop Downs (hidden)'!A394","v":""},392,null,null,null,null,null,null,null,null,null,null,""]
[{"$f":"'Drop Downs (hidden)'!A395","v":""},393,null,null,null,null,null,null,null,null,null,null,""]
[{"$f":"'Drop Downs (hidden)'!A396","v":""},394,null,null,null,null,null,null,null,null,null,null,""]
[{"$f":"'Drop Downs (hidden)'!A397","v":""},395,null,null,null,null,null,null,null,null,null,null,""]
[{"$f":"'Drop Downs (hidden)'!A398","v":""},396,null,null,null,null,null,null,null,null,null,null,""]
[{"$f":"'Drop Downs (hidden)'!A399","v":""},397,null,null,null,null,null,null,null,null,null,null,""]
[{"$f":"'Drop Downs (hidden)'!A400","v":""},398,null,null,null,null,null,null,null,null,null,null,""]
[{"$f":"'Drop Downs (hidden)'!A401","v":""},399,null,null,null,null,null,null,null,null,null,null,""]
[{"$f":"'Drop Downs (hidden)'!A402","v":""},400,null,null,null,null,null,null,null,null,null,null,""]
[{"$f":"'Drop Downs (hidden)'!A403","v":""},401,null,null,null,null,null,null,null,null,null,null,""]
[{"$f":"'Drop Downs (hidden)'!A404","v":""},402,null,null,null,null,null,null,null,null,null,null,""]
[{"$f":"'Drop Downs (hidden)'!A405","v":""},403,null,null,null,null,null,null,null,null,null,null,""]
[{"$f":"'Drop Downs (hidden)'!A406","v":""},404,null,null,null,null,null,null,null,null,null,null,""]
[{"$f":"'Drop Downs (hidden)'!A407","v":""},405,null,null,null,null,null,null,null,null,null,null,""]
[{"$f":"'Drop Downs (hidden)'!A408","v":""},406,null,null,null,null,null,null,null,null,null,null,""]
[{"$f":"'Drop Downs (hidden)'!A409","v":""},407,null,null,null,null,null,null,null,null,null,null,""]
[{"$f":"'Drop Downs (hidden)'!A410","v":""},408,null,null,null,null,null,null,null,null,null,null,""]
[{"$f":"'Drop Downs (hidden)'!A411","v":""},409,null,null,null,null,null,null,null,null,null,null,""]
[{"$f":"'Drop Downs (hidden)'!A412","v":""},410,null,null,null,null,null,null,null,null,null,null,""]
[{"$f":"'Drop Downs (hidden)'!A413","v":""},411,null,null,null,null,null,null,null,null,null,null,""]
[{"$f":"'Drop Downs (hidden)'!A414","v":""},412,null,null,null,null,null,null,null,null,null,null,""]
[{"$f":"'Drop Downs (hidden)'!A415","v":""},413,null,null,null,null,null,null,null,null,null,null,""]
[{"$f":"'Drop Downs (hidden)'!A416","v":""},414,null,null,null,null,null,null,null,null,null,null,""]
[{"$f":"'Drop Downs (hidden)'!A417","v":""},415,null,null,null,null,null,null,null,null,null,null,""]
[{"$f":"'Drop Downs (hidden)'!A418","v":""},416,null,null,null,null,null,null,null,null,null,null,""]
[{"$f":"'Drop Downs (hidden)'!A419","v":""},417,null,null,null,null,null,null,null,null,null,null,""]
[{"$f":"'Drop Downs (hidden)'!A420","v":""},418,null,null,null,null,null,null,null,null,null,null,""]
[{"$f":"'Drop Downs (hidden)'!A421","v":""},419,null,null,null,null,null,null,null,null,null,null,""]
[{"$f":"'Drop Downs (hidden)'!A422","v":""},420,null,null,null,null,null,null,null,null,null,null,""]
[{"$f":"'Drop Downs (hidden)'!A423","v":""},421,null,null,null,null,null,null,null,null,null,null,""]
[{"$f":"'Drop Downs (hidden)'!A424","v":""},422,null,null,null,null,null,null,null,null,null,null,""]
[{"$f":"'Drop Downs (hidden)'!A425","v":""},423,null,null,null,null,null,null,null,null,null,null,""]
[{"$f":"'Drop Downs (hidden)'!A426","v":""},424,null,null,null,null,null,null,null,null,null,null,""]
[{"$f":"'Drop Downs (hidden)'!A427","v":""},425,null,null,null,null,null,null,null,null,null,null,""]
[{"$f":"'Drop Downs (hidden)'!A428","v":""},426,null,null,null,null,null,null,null,null,null,null,""]
[{"$f":"'Drop Downs (hidden)'!A429","v":""},427,null,null,null,null,null,null,null,null,null,null,""]
[{"$f":"'Drop Downs (hidden)'!A430","v":""},428,null,null,null,null,null,null,null,null,null,null,""]
[{"$f":"'Drop Downs (hidden)'!A431","v":""},429,null,null,null,null,null,null,null,null,null,null,""]
[{"$f":"'Drop Downs (hidden)'!A432","v":""},430,null,null,null,null,null,null,null,null,null,null,""]
[{"$f":"'Drop Downs (hidden)'!A433","v":""},431,null,null,null,null,null,null,null,null,null,null,""]
[{"$f":"'Drop Downs (hidden)'!A434","v":""},432,null,null,null,null,null,null,null,null,null,null,""]
[{"$f":"'Drop Downs (hidden)'!A435","v":""},433,null,null,null,null,null,null,null,null,null,null,""]
[{"$f":"'Drop Downs (hidden)'!A436","v":""},434,null,null,null,null,null,null,null,null,null,null,""]
[{"$f":"'Drop Downs (hidden)'!A437","v":""},435,null,null,null,null,null,null,null,null,null,null,""]
[{"$f":"'Drop Downs (hidden)'!A438","v":""},436,null,null,null,null,null,null,null,null,null,null,""]
[{"$f":"'Drop Downs (hidden)'!A439","v":""},437,null,null,null,null,null,null,null,null,null,null,""]
[{"$f":"'Drop Downs (hidden)'!A440","v":""},438,null,null,null,null,null,null,null,null,null,null,""]
[{"$f":"'Drop Downs (hidden)'!A441","v":""},439,null,null,null,null,null,null,null,null,null,null,""]
[{"$f":"'Drop Downs (hidden)'!A442","v":""},440,null,null,null,null,null,null,null,null,null,null,""]
[{"$f":"'Drop Downs (hidden)'!A443","v":""},441,null,null,null,null,null,null,null,null,null,null,""]
[{"$f":"'Drop Downs (hidden)'!A444","v":""},442,null,null,null,null,null,null,null,null,null,null,""]
[{"$f":"'Drop Downs (hidden)'!A445","v":""},443,null,null,null,null,null,null,null,null,null,null,""]
[{"$f":"'Drop Downs (hidden)'!A446","v":""},444,null,null,null,null,null,null,null,null,null,null,""]
[{"$f":"'Drop Downs (hidden)'!A447","v":""},445,null,null,null,null,null,null,null,null,null,null,""]
[{"$f":"'Drop Downs (hidden)'!A448","v":""},446,null,null,null,null,null,null,null,null,null,null,""]
[{"$f":"'Drop Downs (hidden)'!A449","v":""},447,null,null,null,null,null,null,null,null,null,null,""]
[{"$f":"'Drop Downs (hidden)'!A450","v":""},448,null,null,null,null,null,null,null,null,null,null,""]
[{"$f":"'Drop Downs (hidden)'!A451","v":""},449,null,null,null,null,null,null,null,null,null,null,""]
[{"$f":"'Drop Downs (hidden)'!A452","v":""},450,null,null,null,null,null,null,null,null,null,null,""]
[{"$f":"'Drop Downs (hidden)'!A453","v":""},451,null,null,null,null,null,null,null,null,null,null,""]
[{"$f":"'Drop Downs (hidden)'!A454","v":""},452,null,null,null,null,null,null,null,null,null,null,""]
[{"$f":"'Drop Downs (hidden)'!A455","v":""},453,null,null,null,null,null,null,null,null,null,null,""]
[{"$f":"'Drop Downs (hidden)'!A456","v":""},454,null,null,null,null,null,null,null,null,null,null,""]
[{"$f":"'Drop Downs (hidden)'!A457","v":""},455,null,null,null,null,null,null,null,null,null,null,""]
[{"$f":"'Drop Downs (hidden)'!A458","v":""},456,null,null,null,null,null,null,null,null,null,null,""]
[{"$f":"'Drop Downs (hidden)'!A459","v":""},457,null,null,null,null,null,null,null,null,null,null,""]
[{"$f":"'Drop Downs (hidden)'!A460","v":""},458,null,null,null,null,null,null,null,null,null,null,""]
[{"$f":"'Drop Downs (hidden)'!A461","v":""},459,null,null,null,null,null,null,null,null,null,null,""]
[{"$f":"'Drop Downs (hidden)'!A462","v":""},460,null,null,null,null,null,null,null,null,null,null,""]
[{"$f":"'Drop Downs (hidden)'!A463","v":""},461,null,null,null,null,null,null,null,null,null,null,""]
[{"$f":"'Drop Downs (hidden)'!A464","v":""},462,null,null,null,null,null,null,null,null,null,null,""]
[{"$f":"'Drop Downs (hidden)'!A465","v":""},463,null,null,null,null,null,null,null,null,null,null,""]
[{"$f":"'Drop Downs (hidden)'!A466","v":""},464,null,null,null,null,null,null,null,null,null,null,""]
[{"$f":"'Drop Downs (hidden)'!A467","v":""},465,null,null,null,null,null,null,null,null,null,null,""]
[{"$f":"'Drop Downs (hidden)'!A468","v":""},466,null,null,null,null,null,null,null,null,null,null,""]
[{"$f":"'Drop Downs (hidden)'!A469","v":""},467,null,null,null,null,null,null,null,null,null,null,""]
[{"$f":"'Drop Downs (hidden)'!A470","v":""},468,null,null,null,null,null,null,null,null,null,null,""]
[{"$f":"'Drop Downs (hidden)'!A471","v":""},469,null,null,null,null,null,null,null,null,null,null,""]
[{"$f":"'Drop Downs (hidden)'!A472","v":""},470,null,null,null,null,null,null,null,null,null,null,""]
[{"$f":"'Drop Downs (hidden)'!A473","v":""},471,null,null,null,null,null,null,null,null,null,null,""]
[{"$f":"'Drop Downs (hidden)'!A474","v":""},472,null,null,null,null,null,null,null,null,null,null,""]
[{"$f":"'Drop Downs (hidden)'!A475","v":""},473,null,null,null,null,null,null,null,null,null,null,""]
[{"$f":"'Drop Downs (hidden)'!A476","v":""},474,null,null,null,null,null,null,null,null,null,null,""]
[{"$f":"'Drop Downs (hidden)'!A477","v":""},475,null,null,null,null,null,null,null,null,null,null,""]
[{"$f":"'Drop Downs (hidden)'!A478","v":""},476,null,null,null,null,null,null,null,null,null,null,""]
[{"$f":"'Drop Downs (hidden)'!A479","v":""},477,null,null,null,null,null,null,null,null,null,null,""]
[{"$f":"'Drop Downs (hidden)'!A480","v":""},478,null,null,null,null,null,null,null,null,null,null,""]
[{"$f":"'Drop Downs (hidden)'!A481","v":""},479,null,null,null,null,null,null,null,null,null,null,""]
[{"$f":"'Drop Downs (hidden)'!A482","v":""},480,null,null,null,null,null,null,null,null,null,null,""]
[{"$f":"'Drop Downs (hidden)'!A483","v":""},481,null,null,null,null,null,null,null,null,null,null,""]
[{"$f":"'Drop Downs (hidden)'!A484","v":""},482,null,null,null,null,null,null,null,null,null,null,""]
[{"$f":"'Drop Downs (hidden)'!A485","v":""},483,null,null,null,null,null,null,null,null,null,null,""]
[{"$f":"'Drop Downs (hidden)'!A486","v":""},484,null,null,null,null,null,null,null,null,null,null,""]
[{"$f":"'Drop Downs (hidden)'!A487","v":""},485,null,null,null,null,null,null,null,null,null,null,""]
[{"$f":"'Drop Downs (hidden)'!A488","v":""},486,null,null,null,null,null,null,null,null,null,null,""]
[{"$f":"'Drop Downs (hidden)'!A489","v":""},487,null,null,null,null,null,null,null,null,null,null,""]
[{"$f":"'Drop Downs (hidden)'!A490","v":""},488,null,null,null,null,null,null,null,null,null,null,""]
[{"$f":"'Drop Downs (hidden)'!A491","v":""},489,null,null,null,null,null,null,null,null,null,null,""]
[{"$f":"'Drop Downs (hidden)'!A492","v":""},490,null,null,null,null,null,null,null,null,null,null,""]
[{"$f":"'Drop Downs (hidden)'!A493","v":""},491,null,null,null,null,null,null,null,null,null,null,""]
[{"$f":"'Drop Downs (hidden)'!A494","v":""},492,null,null,null,null,null,null,null,null,null,null,""]
[{"$f":"'Drop Downs (hidden)'!A495","v":""},493,null,null,null,null,null,null,null,null,null,null,""]
[{"$f":"'Drop Downs (hidden)'!A496","v":""},494,null,null,null,null,null,null,null,null,null,null,""]
[{"$f":"'Drop Downs (hidden)'!A497","v":""},495,null,null,null,null,null,null,null,null,null,null,""]
[{"$f":"'Drop Downs (hidden)'!A498","v":""},496,null,null,null,null,null,null,null,null,null,null,""]
[{"$f":"'Drop Downs (hidden)'!A499","v":""},497,null,null,null,null,null,null,null,null,null,null,""]

{"sheet":"Budget Information ES","index":1,"n_rows":2,"n_cols":14,"rows_kept":2,"cut":false,"hidden":false,"merged":[[0,3,0,7]]}
[null,null,null,"Capacity"]
["Provider Name","Project Name\n(from HIC or CoC)","Project Type","Adult Only Beds","Family Units","Child Only Beds","Seasonal Beds","Overflow Beds","Total Project Budget","HUD CoC Grant","HUD ESG Grant","Other Public Funds","Private Funds","Notes, Corrections, etc."]

{"sheet":"Budget Information TH","index":2,"n_rows":2,"n_cols":11,"rows_kept":2,"cut":false,"hidden":false,"merged":[[0,3,0,5]]}
[null,null,null,"Capacity"]
["Provider Name","Project Name\n(from HIC or CoC)","Project Type","Adult Only Beds","Family Units","Child Only Beds","Total Project Budget","HUD CoC Grant","Other Public Funds","Private Funds","Notes, Corrections, etc."]

{"sheet":"Budget Information RRH","index":3,"n_rows":2,"n_cols":14,"rows_kept":2,"cut":false,"hidden":false,"merged":[[0,3,0,4]]}
[null,null,null,"Capacity "]
["Provider Name","Project Name\n(from HIC or CoC)","Project Type","Adult Only Beds","Family Units","Total Project Budget","HUD CoC Grant","HUD ESG Grant","Other Public Funds","Private Funds","What is included in this budget? ","Who should provide the services portion of the budget?","Who should provide the rental assistance portion of the budget?","Notes, Corrections, etc."]

{"sheet":"Budget Information PSH","index":4,"n_rows":2,"n_cols":13,"rows_kept":2,"cut":false,"hidden":false,"merged":[[0,3,0,4]]}
[null,null,null,"Capacity "]
["Provider Name","Project Name\n(from HIC or CoC)","Project Type","Adult Only Beds","Family Units","Total Project Budget","HUD CoC Grant","Other Public Funds","Private Funds","What is included in this budget? ","Who should provide the services portion of the budget?","Who should provide the housing/rental assistance portion of the budget?","Notes, Corrections, etc."]

{"sheet":"HIC (hidden)","index":5,"n_rows":466,"n_cols":21,"rows_kept":466,"cut":false,"hidden":false,"merged":[[0,0,0,9]]}
["INSTRUCTIONS: Extract your most recent HIC from HDX into Excel and remove any project(s) not included in the budget analysis.  Paying attention to the grey column headers in row 2, organize the HIC in Excel to align with the columns included below.  Remove any \"total\" rows. Sort the HIC in alphabetical order by name of Organization. Paste the HIC data below \"as values.\"  Be sure to carefully follow the order of column headers.  Be sure that each project name in the HIC is unique (i.e. there are not two projects operated by two different providers with the same name). Additionally, ensure that the \"Proj. Type\" is one of the following five types: ES, TH, PSH, or RRH.  The HIC may have addtional project types (OPH/SH) which should be coded as PSH/ES or TH - please re-code these appropriately before inputting in this template. (This workbook will accommodate up to 200 projects)"]
["Proj. Type","Organization Name","Project Name","Beds HH w/ Children","Units HH w/ Children","Beds HH w/o Children","Beds HH w/ only Children","CH Beds","Veteran Beds","Youth Beds","Year-Round Beds","Total Seasonal Beds","Total Overflow Beds","PIT Count","Total Beds","Utilization Rate",null,"Project # of Provider",null,null,"HIC YEAR"]
[null,null,null,null,null,null,null,null,null,null,null,null,null,null,null,null,null,{"$f":"IF(B3=\"\",\"\",IF(B3=B2,R2+1,1))","v":""}]
[null,null,null,null,null,null,null,null,null,null,null,null,null,null,null,null,null,{"$f":"IF(B4=\"\",\"\",IF(B4=B3,R3+1,1))","v":""}]
[null,null,null,null,null,null,null,null,null,null,null,null,null,null,null,null,null,""]
[null,null,null,null,null,null,null,null,null,null,null,null,null,null,null,null,null,""]
[null,null,null,null,null,null,null,null,null,null,null,null,null,null,null,null,null,""]
[null,null,null,null,null,null,null,null,null,null,null,null,null,null,null,null,null,""]
[null,null,null,null,null,null,null,null,null,null,null,null,null,null,null,null,null,""]
[null,null,null,null,null,null,null,null,null,null,null,null,null,null,null,null,null,""]
[null,null,null,null,null,null,null,null,null,null,null,null,null,null,null,null,null,""]
[null,null,null,null,null,null,null,null,null,null,null,null,null,null,null,null,null,""]
[null,null,null,null,null,null,null,null,null,null,null,null,null,null,null,null,null,""]
[null,null,null,null,null,null,null,null,null,null,null,null,null,null,null,null,null,""]
[null,null,null,null,null,null,null,null,null,null,null,null,null,null,null,null,null,""]
[null,null,null,null,null,null,null,null,null,null,null,null,null,null,null,null,null,""]
[null,null,null,null,null,null,null,null,null,null,null,null,null,null,null,null,null,""]
[null,null,null,null,null,null,null,null,null,null,null,null,null,null,null,null,null,""]
[null,null,null,null,null,null,null,null,null,null,null,null,null,null,null,null,null,""]
[null,null,null,null,null,null,null,null,null,null,null,null,null,null,null,null,null,""]
[null,null,null,null,null,null,null,null,null,null,null,null,null,null,null,null,null,""]
[null,null,null,null,null,null,null,null,null,null,null,null,null,null,null,null,null,""]
[null,null,null,null,null,null,null,null,null,null,null,null,null,null,null,null,null,""]
[null,null,null,null,null,null,null,null,null,null,null,null,null,null,null,null,null,""]
[null,null,null,null,null,null,null,null,null,null,null,null,null,null,null,null,null,""]
[null,null,null,null,null,null,null,null,null,null,null,null,null,null,null,null,null,""]
[null,null,null,null,null,null,null,null,null,null,null,null,null,null,null,null,null,""]
[null,null,null,null,null,null,null,null,null,null,null,null,null,null,null,null,null,""]
[null,null,null,null,null,null,null,null,null,null,null,null,null,null,null,null,null,""]
[null,null,null,null,null,null,null,null,null,null,null,null,null,null,null,null,null,""]
[null,null,null,null,null,null,null,null,null,null,null,null,null,null,null,null,null,""]
[null,null,null,null,null,null,null,null,null,null,null,null,null,null,null,null,null,""]
[null,null,null,null,null,null,null,null,null,null,null,null,null,null,null,null,null,""]
[null,null,null,null,null,null,null,null,null,null,null,null,null,null,null,null,null,""]
[null,null,null,null,null,null,null,null,null,null,null,null,null,null,null,null,null,""]
[null,null,null,null,null,null,null,null,null,null,null,null,null,null,null,null,null,""]
[null,null,null,null,null,null,null,null,null,null,null,null,null,null,null,null,null,""]
[null,null,null,null,null,null,null,null,null,null,null,null,null,null,null,null,null,""]
[null,null,null,null,null,null,null,null,null,null,null,null,null,null,null,null,null,""]
[null,null,null,null,null,null,null,null,null,null,null,null,null,null,null,null,null,""]
[null,null,null,null,null,null,null,null,null,null,null,null,null,null,null,null,null,""]
[null,null,null,null,null,null,null,null,null,null,null,null,null,null,null,null,null,""]
[null,null,null,null,null,null,null,null,null,null,null,null,null,null,null,null,null,""]
[null,null,null,null,null,null,null,null,null,null,null,null,null,null,null,null,null,""]
[null,null,null,null,null,null,null,null,null,null,null,null,null,null,null,null,null,""]
[null,null,null,null,null,null,null,null,null,null,null,null,null,null,null,null,null,""]
[null,null,null,null,null,null,null,null,null,null,null,null,null,null,null,null,null,""]
[null,null,null,null,null,null,null,null,null,null,null,null,null,null,null,null,null,""]
[null,null,null,null,null,null,null,null,null,null,null,null,null,null,null,null,null,""]
[null,null,null,null,null,null,null,null,null,null,null,null,null,null,null,null,null,""]
[null,null,null,null,null,null,null,null,null,null,null,null,null,null,null,null,null,""]
[null,null,null,null,null,null,null,null,null,null,null,null,null,null,null,null,null,""]
[null,null,null,null,null,null,null,null,null,null,null,null,null,null,null,null,null,""]
[null,null,null,null,null,null,null,null,null,null,null,null,null,null,null,null,null,""]
[null,null,null,null,null,null,null,null,null,null,null,null,null,null,null,null,null,""]
[null,null,null,null,null,null,null,null,null,null,null,null,null,null,null,null,null,""]
[null,null,null,null,null,null,null,null,null,null,null,null,null,null,null,null,null,""]
[null,null,null,null,null,null,null,null,null,null,null,null,null,null,null,null,null,""]
[null,null,null,null,null,null,null,null,null,null,null,null,null,null,null,null,null,""]
[null,null,null,null,null,null,null,null,null,null,null,null,null,null,null,null,null,""]
[null,null,null,null,null,null,null,null,null,null,null,null,null,null,null,null,null,""]
[null,null,null,null,null,null,null,null,null,null,null,null,null,null,null,null,null,""]
[null,null,null,null,null,null,null,null,null,null,null,null,null,null,null,null,null,""]
[null,null,null,null,null,null,null,null,null,null,null,null,null,null,null,null,null,""]
[null,null,null,null,null,null,null,null,null,null,null,null,null,null,null,null,null,""]
[null,null,null,null,null,null,null,null,null,null,null,null,null,null,null,null,null,{"$f":"IF(B66=\"\",\"\",IF(B66=B65,R65+1,1))","v":""}]
[null,null,null,null,null,null,null,null,null,null,null,null,null,null,null,null,null,""]
[null,null,null,null,null,null,null,null,null,null,null,null,null,null,null,null,null,""]
[null,null,null,null,null,null,null,null,null,null,null,null,null,null,null,null,null,""]
[null,null,null,null,null,null,null,null,null,null,null,null,null,null,null,null,null,""]
[null,null,null,null,null,null,null,null,null,null,null,null,null,null,null,null,null,""]
[null,null,null,null,null,null,null,null,null,null,null,null,null,null,null,null,null,""]
[null,null,null,null,null,null,null,null,null,null,null,null,null,null,null,null,null,""]
[null,null,null,null,null,null,null,null,null,null,null,null,null,null,null,null,null,""]
[null,null,null,null,null,null,null,null,null,null,null,null,null,null,null,null,null,""]
[null,null,null,null,null,null,null,null,null,null,null,null,null,null,null,null,null,""]
[null,null,null,null,null,null,null,null,null,null,null,null,null,null,null,null,null,""]
[null,null,null,null,null,null,null,null,null,null,null,null,null,null,null,null,null,""]
[null,null,null,null,null,null,null,null,null,null,null,null,null,null,null,null,null,""]
[null,null,null,null,null,null,null,null,null,null,null,null,null,null,null,null,null,""]
[null,null,null,null,null,null,null,null,null,null,null,null,null,null,null,null,null,""]
[null,null,null,null,null,null,null,null,null,null,null,null,null,null,null,null,null,""]
[null,null,null,null,null,null,null,null,null,null,null,null,null,null,null,null,null,""]
[null,null,null,null,null,null,null,null,null,null,null,null,null,null,null,null,null,""]
[null,null,null,null,null,null,null,null,null,null,null,null,null,null,null,null,null,""]
[null,null,null,null,null,null,null,null,null,null,null,null,null,null,null,null,null,""]
[null,null,null,null,null,null,null,null,null,null,null,null,null,null,null,null,null,""]
[null,null,null,null,null,null,null,null,null,null,null,null,null,null,null,null,null,""]
[null,null,null,null,null,null,null,null,null,null,null,null,null,null,null,null,null,""]
[null,null,null,null,null,null,null,null,null,null,null,null,null,null,null,null,null,""]
[null,null,null,null,null,null,null,null,null,null,null,null,null,null,null,null,null,""]
[null,null,null,null,null,null,null,null,null,null,null,null,null,null,null,null,null,""]
[null,null,null,null,null,null,null,null,null,null,null,null,null,null,null,null,null,""]
[null,null,null,null,null,null,null,null,null,null,null,null,null,null,null,null,null,""]
[null,null,null,null,null,null,null,null,null,null,null,null,null,null,null,null,null,""]
[null,null,null,null,null,null,null,null,null,null,null,null,null,null,null,null,null,""]
[null,null,null,null,null,null,null,null,null,null,null,null,null,null,null,null,null,""]
[null,null,null,null,null,null,null,null,null,null,null,null,null,null,null,null,null,""]
[null,null,null,null,null,null,null,null,null,null,null,null,null,null,null,null,null,""]
[null,null,null,null,null,null,null,null,null,null,null,null,null,null,null,null,null,""]
[null,null,null,null,null,null,null,null,null,null,null,null,null,null,null,null,null,""]
[null,null,null,null,null,null,null,null,null,null,null,null,null,null,null,null,null,""]
[null,null,null,null,null,null,null,null,null,null,null,null,null,null,null,null,null,""]
[null,null,null,null,null,null,null,null,null,null,null,null,null,null,null,null,null,""]
[null,null,null,null,null,null,null,null,null,null,null,null,null,null,null,null,null,""]
[null,null,null,null,null,null,null,null,null,null,null,null,null,null,null,null,null,""]
[null,null,null,null,null,null,null,null,null,null,null,null,null,null,null,null,null,""]
[null,null,null,null,null,null,null,null,null,null,null,null,null,null,null,null,null,""]
[null,null,null,null,null,null,null,null,null,null,null,null,null,null,null,null,null,""]
[null,null,null,null,null,null,null,null,null,null,null,null,null,null,null,null,null,""]
[null,null,null,null,null,null,null,null,null,null,null,null,null,null,null,null,null,""]
[null,null,null,null,null,null,null,null,null,null,null,null,null,null,null,null,null,""]
[null,null,null,null,null,null,null,null,null,null,null,null,null,null,null,null,null,""]
[null,null,null,null,null,null,null,null,null,null,null,null,null,null,null,null,null,""]
[null,null,null,null,null,null,null,null,null,null,null,null,null,null,null,null,null,""]
[null,null,null,null,null,null,null,null,null,null,null,null,null,null,null,null,null,""]
[null,null,null,null,null,null,null,null,null,null,null,null,null,null,null,null,null,""]
[null,null,null,null,null,null,null,null,null,null,null,null,null,null,null,null,null,""]
[null,null,null,null,null,null,null,null,null,null,null,null,null,null,null,null,null,""]
[null,null,null,null,null,null,null,null,null,null,null,null,null,null,null,null,null,""]
[null,null,null,null,null,null,null,null,null,null,null,null,null,null,null,null,null,""]
[null,null,null,null,null,null,null,null,null,null,null,null,null,null,null,null,null,""]
[null,null,null,null,null,null,null,null,null,null,null,null,null,null,null,null,null,""]
[null,null,null,null,null,null,null,null,null,null,null,null,null,null,null,null,null,""]
[null,null,null,null,null,null,null,null,null,null,null,null,null,null,null,null,null,""]
[null,null,null,null,null,null,null,null,null,null,null,null,null,null,null,null,null,""]
[null,null,null,null,null,null,null,null,null,null,null,null,null,null,null,null,null,""]
[null,null,null,null,null,null,null,null,null,null,null,null,null,null,null,null,null,""]
[null,null,null,null,null,null,null,null,null,null,null,null,null,null,null,null,null,""]
[null,null,null,null,null,null,null,null,null,null,null,null,null,null,null,null,null,{"$f":"IF(B130=\"\",\"\",IF(B130=B129,R129+1,1))","v":""}]
[null,null,null,null,null,null,null,null,null,null,null,null,null,null,null,null,null,""]
[null,null,null,null,null,null,null,null,null,null,null,null,null,null,null,null,null,""]
[null,null,null,null,null,null,null,null,null,null,null,null,null,null,null,null,null,""]
[null,null,null,null,null,null,null,null,null,null,null,null,null,null,null,null,null,""]
[null,null,null,null,null,null,null,null,null,null,null,null,null,null,null,null,null,""]
[null,null,null,null,null,null,null,null,null,null,null,null,null,null,null,null,null,""]
[null,null,null,null,null,null,null,null,null,null,null,null,null,null,null,null,null,""]
[null,null,null,null,null,null,null,null,null,null,null,null,null,null,null,null,null,""]
[null,null,null,null,null,null,null,null,null,null,null,null,null,null,null,null,null,""]
[null,null,null,null,null,null,null,null,null,null,null,null,null,null,null,null,null,""]
[null,null,null,null,null,null,null,null,null,null,null,null,null,null,null,null,null,""]
[null,null,null,null,null,null,null,null,null,null,null,null,null,null,null,null,null,""]
[null,null,null,null,null,null,null,null,null,null,null,null,null,null,null,null,null,""]
[null,null,null,null,null,null,null,null,null,null,null,null,null,null,null,null,null,""]
[null,null,null,null,null,null,null,null,null,null,null,null,null,null,null,null,null,""]
[null,null,null,null,null,null,null,null,null,null,null,null,null,null,null,null,null,""]
[null,null,null,null,null,null,null,null,null,null,null,null,null,null,null,null,null,""]
[null,null,null,null,null,null,null,null,null,null,null,null,null,null,null,null,null,""]
[null,null,null,null,null,null,null,null,null,null,null,null,null,null,null,null,null,""]
[null,null,null,null,null,null,null,null,null,null,null,null,null,null,null,null,null,""]
[null,null,null,null,null,null,null,null,null,null,null,null,null,null,null,null,null,""]
[null,null,null,null,null,null,null,null,null,null,null,null,null,null,null,null,null,""]
[null,null,null,null,null,null,null,null,null,null,null,null,null,null,null,null,null,""]
[null,null,null,null,null,null,null,null,null,null,null,null,null,null,null,null,null,""]
[null,null,null,null,null,null,null,null,null,null,null,null,null,null,null,null,null,""]
[null,null,null,null,null,null,null,null,null,null,null,null,null,null,null,null,null,""]
[null,null,null,null,null,null,null,null,null,null,null,null,null,null,null,null,null,""]
[null,null,null,null,null,null,null,null,null,null,null,null,null,null,null,null,null,""]
[null,null,null,null,null,null,null,null,null,null,null,null,null,null,null,null,null,""]
[null,null,null,null,null,null,null,null,null,null,null,null,null,null,null,null,null,""]
[null,null,null,null,null,null,null,null,null,null,null,null,null,null,null,null,null,""]
[null,null,null,null,null,null,null,null,null,null,null,null,null,null,null,null,null,""]
[null,null,null,null,null,null,null,null,null,null,null,null,null,null,null,null,null,""]
[null,null,null,null,null,null,null,null,null,null,null,null,null,null,null,null,null,""]
[null,null,null,null,null,null,null,null,null,null,null,null,null,null,null,null,null,""]
[null,null,null,null,null,null,null,null,null,null,null,null,null,null,null,null,null,""]
[null,null,null,null,null,null,null,null,null,null,null,null,null,null,null,null,null,""]
[null,null,null,null,null,null,null,null,null,null,null,null,null,null,null,null,null,""]
[null,null,null,null,null,null,null,null,null,null,null,null,null,null,null,null,null,""]
[null,null,null,null,null,null,null,null,null,null,null,null,null,null,null,null,null,""]
[null,null,null,null,null,null,null,null,null,null,null,null,null,null,null,null,null,""]
[null,null,null,null,null,null,null,null,null,null,null,null,null,null,null,null,null,""]
[null,null,null,null,null,null,null,null,null,null,null,null,null,null,null,null,null,""]
[null,null,null,null,null,null,null,null,null,null,null,null,null,null,null,null,null,""]
[null,null,null,null,null,null,null,null,null,null,null,null,null,null,null,null,null,""]
[null,null,null,null,null,null,null,null,null,null,null,null,null,null,null,null,null,""]
[null,null,null,null,null,null,null,null,null,null,null,null,null,null,null,null,null,""]
[null,null,null,null,null,null,null,null,null,null,null,null,null,null,null,null,null,""]
[null,null,null,null,null,null,null,null,null,null,null,null,null,null,null,null,null,""]
[null,null,null,null,null,null,null,null,null,null,null,null,null,null,null,null,null,""]
[null,null,null,null,null,null,null,null,null,null,null,null,null,null,null,null,null,""]
[null,null,null,null,null,null,null,null,null,null,null,null,null,null,null,null,null,""]
[null,null,null,null,null,null,null,null,null,null,null,null,null,null,null,null,null,""]
[null,null,null,null,null,null,null,null,null,null,null,null,null,null,null,null,null,""]
[null,null,null,null,null,null,null,null,null,null,null,null,null,null,null,null,null,""]
[null,null,null,null,null,null,null,null,null,null,null,null,null,null,null,null,null,""]
[null,null,null,null,null,null,null,null,null,null,null,null,null,null,null,null,null,""]
[null,null,null,null,null,null,null,null,null,null,null,null,null,null,null,null,null,""]
[null,null,null,null,null,null,null,null,null,null,null,null,null,null,null,null,null,""]
[null,null,null,null,null,null,null,null,null,null,null,null,null,null,null,null,null,""]
[null,null,null,null,null,null,null,null,null,null,null,null,null,null,null,null,null,""]
[null,null,null,null,null,null,null,null,null,null,null,null,null,null,null,null,null,""]
[null,null,null,null,null,null,null,null,null,null,null,null,null,null,null,null,null,""]
[null,null,null,null,null,null,null,null,null,null,null,null,null,null,null,null,null,{"$f":"IF(B194=\"\",\"\",IF(B194=B193,R193+1,1))","v":""}]
[null,null,null,null,null,null,null,null,null,null,null,null,null,null,null,null,null,""]
[null,null,null,null,null,null,null,null,null,null,null,null,null,null,null,null,null,""]
[null,null,null,null,null,null,null,null,null,null,null,null,null,null,null,null,null,""]
[null,null,null,null,null,null,null,null,null,null,null,null,null,null,null,null,null,""]
[null,null,null,null,null,null,null,null,null,null,null,null,null,null,null,null,null,""]
[null,null,null,null,null,null,null,null,null,null,null,null,null,null,null,null,null,""]
[null,null,null,null,null,null,null,null,null,null,null,null,null,null,null,null,null,""]
[null,null,null,null,null,null,null,null,null,null,null,null,null,null,null,null,null,""]
[null,null,null,null,null,null,null,null,null,null,null,null,null,null,null,null,null,""]
[null,null,null,null,null,null,null,null,null,null,null,null,null,null,null,null,null,""]
[null,null,null,null,null,null,null,null,null,null,null,null,null,null,null,null,null,""]
[null,null,null,null,null,null,null,null,null,null,null,null,null,null,null,null,null,""]
[null,null,null,null,null,null,null,null,null,null,null,null,null,null,null,null,null,""]
[null,null,null,null,null,null,null,null,null,null,null,null,null,null,null,null,null,""]
[null,null,null,null,null,null,null,null,null,null,null,null,null,null,null,null,null,""]
[null,null,null,null,null,null,null,null,null,null,null,null,null,null,null,null,null,""]
[null,null,null,null,null,null,null,null,null,null,null,null,null,null,null,null,null,""]
[null,null,null,null,null,null,null,null,null,null,null,null,null,null,null,null,null,""]
[null,null,null,null,null,null,null,null,null,null,null,null,null,null,null,null,null,""]
[null,null,null,null,null,null,null,null,null,null,null,null,null,null,null,null,null,""]
[null,null,null,null,null,null,null,null,null,null,null,null,null,null,null,null,null,""]
[null,null,null,null,null,null,null,null,null,null,null,null,null,null,null,null,null,""]
[null,null,null,null,null,null,null,null,null,null,null,null,null,null,null,null,null,""]
[null,null,null,null,null,null,null,null,null,null,null,null,null,null,null,null,null,""]
[null,null,null,null,null,null,null,null,null,null,null,null,null,null,null,null,null,""]
[null,null,null,null,null,null,null,null,null,null,null,null,null,null,null,null,null,""]
[null,null,null,null,null,null,null,null,null,null,null,null,null,null,null,null,null,""]
[null,null,null,null,null,null,null,null,null,null,null,null,null,null,null,null,null,""]
[null,null,null,null,null,null,null,null,null,null,null,null,null,null,null,null,null,""]
[null,null,null,null,null,null,null,null,null,null,null,null,null,null,null,null,null,""]
[null,null,null,null,null,null,null,null,null,null,null,null,null,null,null,null,null,""]
[null,null,null,null,null,null,null,null,null,null,null,null,null,null,null,null,null,""]
[null,null,null,null,null,null,null,null,null,null,null,null,null,null,null,null,null,""]
[null,null,null,null,null,null,null,null,null,null,null,null,null,null,null,null,null,""]
[null,null,null,null,null,null,null,null,null,null,null,null,null,null,null,null,null,""]
[null,null,null,null,null,null,null,null,null,null,null,null,null,null,null,null,null,""]
[null,null,null,null,null,null,null,null,null,null,null,null,null,null,null,null,null,""]
[null,null,null,null,null,null,null,null,null,null,null,null,null,null,null,null,null,""]
[null,null,null,null,null,null,null,null,null,null,null,null,null,null,null,null,null,""]
[null,null,null,null,null,null,null,null,null,null,null,null,null,null,null,null,null,""]
[null,null,null,null,null,null,null,null,null,null,null,null,null,null,null,null,null,""]
[null,null,null,null,null,null,null,null,null,null,null,null,null,null,null,null,null,""]
[null,null,null,null,null,null,null,null,null,null,null,null,null,null,null,null,null,""]
[null,null,null,null,null,null,null,null,null,null,null,null,null,null,null,null,null,""]
[null,null,null,null,null,null,null,null,null,null,null,null,null,null,null,null,null,""]
[null,null,null,null,null,null,null,null,null,null,null,null,null,null,null,null,null,""]
[null,null,null,null,null,null,null,null,null,null,null,null,null,null,null,null,null,""]
[null,null,null,null,null,null,null,null,null,null,null,null,null,null,null,null,null,""]
[null,null,null,null,null,null,null,null,null,null,null,null,null,null,null,null,null,""]
[null,null,null,null,null,null,null,null,null,null,null,null,null,null,null,null,null,""]
[null,null,null,null,null,null,null,null,null,null,null,null,null,null,null,null,null,""]
[null,null,null,null,null,null,null,null,null,null,null,null,null,null,null,null,null,""]
[null,null,null,null,null,null,null,null,null,null,null,null,null,null,null,null,null,""]
[null,null,null,null,null,null,null,null,null,null,null,null,null,null,null,null,null,""]
[null,null,null,null,null,null,null,null,null,null,null,null,null,null,null,null,null,""]
[null,null,null,null,null,null,null,null,null,null,null,null,null,null,null,null,null,""]
[null,null,null,null,null,null,null,null,null,null,null,null,null,null,null,null,null,""]
[null,null,null,null,null,null,null,null,null,null,null,null,null,null,null,null,null,""]
[null,null,null,null,null,null,null,null,null,null,null,null,null,null,null,null,null,""]
[null,null,null,null,null,null,null,null,null,null,null,null,null,null,null,null,null,""]
[null,null,null,null,null,null,null,null,null,null,null,null,null,null,null,null,null,""]
[null,null,null,null,null,null,null,null,null,null,null,null,null,null,null,null,null,""]
[null,null,null,null,null,null,null,null,null,null,null,null,null,null,null,null,null,""]
[null,null,null,null,null,null,null,null,null,null,null,null,null,null,null,null,null,{"$f":"IF(B258=\"\",\"\",IF(B258=B257,R257+1,1))","v":""}]
[null,null,null,null,null,null,null,null,null,null,null,null,null,null,null,null,null,""]
[null,null,null,null,null,null,null,null,null,null,null,null,null,null,null,null,null,""]
[null,null,null,null,null,null,null,null,null,null,null,null,null,null,null,null,null,""]
[null,null,null,null,null,null,null,null,null,null,null,null,null,null,null,null,null,""]
[null,null,null,null,null,null,null,null,null,null,null,null,null,null,null,null,null,""]
[null,null,null,null,null,null,null,null,null,null,null,null,null,null,null,null,null,""]
[null,null,null,null,null,null,null,null,null,null,null,null,null,null,null,null,null,""]
[null,null,null,null,null,null,null,null,null,null,null,null,null,null,null,null,null,""]
[null,null,null,null,null,null,null,null,null,null,null,null,null,null,null,null,null,""]
[null,null,null,null,null,null,null,null,null,null,null,null,null,null,null,null,null,""]
[null,null,null,null,null,null,null,null,null,null,null,null,null,null,null,null,null,""]
[null,null,null,null,null,null,null,null,null,null,null,null,null,null,null,null,null,""]
[null,null,null,null,null,null,null,null,null,null,null,null,null,null,null,null,null,""]
[null,null,null,null,null,null,null,null,null,null,null,null,null,null,null,null,null,""]
[null,null,null,null,null,null,null,null,null,null,null,null,null,null,null,null,null,""]
[null,null,null,null,null,null,null,null,null,null,null,null,null,null,null,null,null,""]
[null,null,null,null,null,null,null,null,null,null,null,null,null,null,null,null,null,""]
[null,null,null,null,null,null,null,null,null,null,null,null,null,null,null,null,null,""]
[null,null,null,null,null,null,null,null,null,null,null,null,null,null,null,null,null,""]
[null,null,null,null,null,null,null,null,null,null,null,null,null,null,null,null,null,""]
[null,null,null,null,null,null,null,null,null,null,null,null,null,null,null,null,null,""]
[null,null,null,null,null,null,null,null,null,null,null,null,null,null,null,null,null,""]
[null,null,null,null,null,null,null,null,null,null,null,null,null,null,null,null,null,""]
[null,null,null,null,null,null,null,null,null,null,null,null,null,null,null,null,null,""]
[null,null,null,null,null,null,null,null,null,null,null,null,null,null,null,null,null,""]
[null,null,null,null,null,null,null,null,null,null,null,null,null,null,null,null,null,""]
[null,null,null,null,null,null,null,null,null,null,null,null,null,null,null,null,null,""]
[null,null,null,null,null,null,null,null,null,null,null,null,null,null,null,null,null,""]
[null,null,null,null,null,null,null,null,null,null,null,null,null,null,null,null,null,""]
[null,null,null,null,null,null,null,null,null,null,null,null,null,null,null,null,null,""]
[null,null,null,null,null,null,null,null,null,null,null,null,null,null,null,null,null,""]
[null,null,null,null,null,null,null,null,null,null,null,null,null,null,null,null,null,""]
[null,null,null,null,null,null,null,null,null,null,null,null,null,null,null,null,null,""]
[null,null,null,null,null,null,null,null,null,null,null,null,null,null,null,null,null,""]
[null,null,null,null,null,null,null,null,null,null,null,null,null,null,null,null,null,""]
[null,null,null,null,null,null,null,null,null,null,null,null,null,null,null,null,null,""]
[null,null,null,null,null,null,null,null,null,null,null,null,null,null,null,null,null,""]
[null,null,null,null,null,null,null,null,null,null,null,null,null,null,null,null,null,""]
[null,null,null,null,null,null,null,null,null,null,null,null,null,null,null,null,null,""]
[null,null,null,null,null,null,null,null,null,null,null,null,null,null,null,null,null,""]
[null,null,null,null,null,null,null,null,null,null,null,null,null,null,null,null,null,""]
[null,null,null,null,null,null,null,null,null,null,null,null,null,null,null,null,null,""]
[null,null,null,null,null,null,null,null,null,null,null,null,null,null,null,null,null,""]
[null,null,null,null,null,null,null,null,null,null,null,null,null,null,null,null,null,""]
[null,null,null,null,null,null,null,null,null,null,null,null,null,null,null,null,null,""]
[null,null,null,null,null,null,null,null,null,null,null,null,null,null,null,null,null,""]
[null,null,null,null,null,null,null,null,null,null,null,null,null,null,null,null,null,""]
[null,null,null,null,null,null,null,null,null,null,null,null,null,null,null,null,null,""]
[null,null,null,null,null,null,null,null,null,null,null,null,null,null,null,null,null,""]
[null,null,null,null,null,null,null,null,null,null,null,null,null,null,null,null,null,""]
[null,null,null,null,null,null,null,null,null,null,null,null,null,null,null,null,null,""]
[null,null,null,null,null,null,null,null,null,null,null,null,null,null,null,null,null,""]
[null,null,null,null,null,null,null,null,null,null,null,null,null,null,null,null,null,""]
[null,null,null,null,null,null,null,null,null,null,null,null,null,null,null,null,null,""]
[null,null,null,null,null,null,null,null,null,null,null,null,null,null,null,null,null,""]
[null,null,null,null,null,null,null,null,null,null,null,null,null,null,null,null,null,""]
[null,null,null,null,null,null,null,null,null,null,null,null,null,null,null,null,null,""]
[null,null,null,null,null,null,null,null,null,null,null,null,null,null,null,null,null,""]
[null,null,null,null,null,null,null,null,null,null,null,null,null,null,null,null,null,""]
[null,null,null,null,null,null,null,null,null,null,null,null,null,null,null,null,null,""]
[null,null,null,null,null,null,null,null,null,null,null,null,null,null,null,null,null,""]
[null,null,null,null,null,null,null,null,null,null,null,null,null,null,null,null,null,""]
[null,null,null,null,null,null,null,null,null,null,null,null,null,null,null,null,null,""]
[null,null,null,null,null,null,null,null,null,null,null,null,null,null,null,null,null,{"$f":"IF(B322=\"\",\"\",IF(B322=B321,R321+1,1))","v":""}]
[null,null,null,null,null,null,null,null,null,null,null,null,null,null,null,null,null,""]
[null,null,null,null,null,null,null,null,null,null,null,null,null,null,null,null,null,""]
[null,null,null,null,null,null,null,null,null,null,null,null,null,null,null,null,null,""]
[null,null,null,null,null,null,null,null,null,null,null,null,null,null,null,null,null,""]
[null,null,null,null,null,null,null,null,null,null,null,null,null,null,null,null,null,""]
[null,null,null,null,null,null,null,null,null,null,null,null,null,null,null,null,null,""]
[null,null,null,null,null,null,null,null,null,null,null,null,null,null,null,null,null,""]
[null,null,null,null,null,null,null,null,null,null,null,null,null,null,null,null,null,""]
[null,null,null,null,null,null,null,null,null,null,null,null,null,null,null,null,null,""]
[null,null,null,null,null,null,null,null,null,null,null,null,null,null,null,null,null,""]
[null,null,null,null,null,null,null,null,null,null,null,null,null,null,null,null,null,""]
[null,null,null,null,null,null,null,null,null,null,null,null,null,null,null,null,null,""]
[null,null,null,null,null,null,null,null,null,null,null,null,null,null,null,null,null,""]
[null,null,null,null,null,null,null,null,null,null,null,null,null,null,null,null,null,""]
[null,null,null,null,null,null,null,null,null,null,null,null,null,null,null,null,null,""]
[null,null,null,null,null,null,null,null,null,null,null,null,null,null,null,null,null,""]
[null,null,null,null,null,null,null,null,null,null,null,null,null,null,null,null,null,""]
[null,null,null,null,null,null,null,null,null,null,null,null,null,null,null,null,null,""]
[null,null,null,null,null,null,null,null,null,null,null,null,null,null,null,null,null,""]
[null,null,null,null,null,null,null,null,null,null,null,null,null,null,null,null,null,""]
[null,null,null,null,null,null,null,null,null,null,null,null,null,null,null,null,null,""]
[null,null,null,null,null,null,null,null,null,null,null,null,null,null,null,null,null,""]
[null,null,null,null,null,null,null,null,null,null,null,null,null,null,null,null,null,""]
[null,null,null,null,null,null,null,null,null,null,null,null,null,null,null,null,null,""]
[null,null,null,null,null,null,null,null,null,null,null,null,null,null,null,null,null,""]
[null,null,null,null,null,null,null,null,null,null,null,null,null,null,null,null,null,""]
[null,null,null,null,null,null,null,null,null,null,null,null,null,null,null,null,null,""]
[null,null,null,null,null,null,null,null,null,null,null,null,null,null,null,null,null,""]
[null,null,null,null,null,null,null,null,null,null,null,null,null,null,null,null,null,""]
[null,null,null,null,null,null,null,null,null,null,null,null,null,null,null,null,null,""]
[null,null,null,null,null,null,null,null,null,null,null,null,null,null,null,null,null,""]
[null,null,null,null,null,null,null,null,null,null,null,null,null,null,null,null,null,""]
[null,null,null,null,null,null,null,null,null,null,null,null,null,null,null,null,null,""]
[null,null,null,null,null,null,null,null,null,null,null,null,null,null,null,null,null,""]
[null,null,null,null,null,null,null,null,null,null,null,null,null,null,null,null,null,""]
[null,null,null,null,null,null,null,null,null,null,null,null,null,null,null,null,null,""]
[null,null,null,null,null,null,null,null,null,null,null,null,null,null,null,null,null,""]
[null,null,null,null,null,null,null,null,null,null,null,null,null,null,null,null,null,""]
[null,null,null,null,null,null,null,null,null,null,null,null,null,null,null,null,null,""]
[null,null,null,null,null,null,null,null,null,null,null,null,null,null,null,null,null,""]
[null,null,null,null,null,null,null,null,null,null,null,null,null,null,null,null,null,""]
[null,null,null,null,null,null,null,null,null,null,null,null,null,null,null,null,null,""]
[null,null,null,null,null,null,null,null,null,null,null,null,null,null,null,null,null,""]
[null,null,null,null,null,null,null,null,null,null,null,null,null,null,null,null,null,""]
[null,null,null,null,null,null,null,null,null,null,null,null,null,null,null,null,null,""]
[null,null,null,null,null,null,null,null,null,null,null,null,null,null,null,null,null,""]
[null,null,null,null,null,null,null,null,null,null,null,null,null,null,null,null,null,""]
[null,null,null,null,null,null,null,null,null,null,null,null,null,null,null,null,null,""]
[null,null,null,null,null,null,null,null,null,null,null,null,null,null,null,null,null,""]
[null,null,null,null,null,null,null,null,null,null,null,null,null,null,null,null,null,""]
[null,null,null,null,null,null,null,null,null,null,null,null,null,null,null,null,null,""]
[null,null,null,null,null,null,null,null,null,null,null,null,null,null,null,null,null,""]
[null,null,null,null,null,null,null,null,null,null,null,null,null,null,null,null,null,""]
[null,null,null,null,null,null,null,null,null,null,null,null,null,null,null,null,null,""]
[null,null,null,null,null,null,null,null,null,null,null,null,null,null,null,null,null,""]
[null,null,null,null,null,null,null,null,null,null,null,null,null,null,null,null,null,""]
[null,null,null,null,null,null,null,null,null,null,null,null,null,null,null,null,null,""]
[null,null,null,null,null,null,null,null,null,null,null,null,null,null,null,null,null,""]
[null,null,null,null,null,null,null,null,null,null,null,null,null,null,null,null,null,""]
[null,null,null,null,null,null,null,null,null,null,null,null,null,null,null,null,null,""]
[null,null,null,null,null,null,null,null,null,null,null,null,null,null,null,null,null,""]
[null,null,null,null,null,null,null,null,null,null,null,null,null,null,null,null,null,""]
[null,null,null,null,null,null,null,null,null,null,null,null,null,null,null,null,null,""]
[null,null,null,null,null,null,null,null,null,null,null,null,null,null,null,null,null,{"$f":"IF(B386=\"\",\"\",IF(B386=B385,R385+1,1))","v":""}]
[null,null,null,null,null,null,null,null,null,null,null,null,null,null,null,null,null,""]
[null,null,null,null,null,null,null,null,null,null,null,null,null,null,null,null,null,""]
[null,null,null,null,null,null,null,null,null,null,null,null,null,null,null,null,null,""]
[null,null,null,null,null,null,null,null,null,null,null,null,null,null,null,null,null,""]
[null,null,null,null,null,null,null,null,null,null,null,null,null,null,null,null,null,""]
[null,null,null,null,null,null,null,null,null,null,null,null,null,null,null,null,null,""]
[null,null,null,null,null,null,null,null,null,null,null,null,null,null,null,null,null,""]
[null,null,null,null,null,null,null,null,null,null,null,null,null,null,null,null,null,""]
[null,null,null,null,null,null,null,null,null,null,null,null,null,null,null,null,null,""]
[null,null,null,null,null,null,null,null,null,null,null,null,null,null,null,null,null,""]
[null,null,null,null,null,null,null,null,null,null,null,null,null,null,null,null,null,""]
[null,null,null,null,null,null,null,null,null,null,null,null,null,null,null,null,null,""]
[null,null,null,null,null,null,null,null,null,null,null,null,null,null,null,null,null,""]
[null,null,null,null,null,null,null,null,null,null,null,null,null,null,null,null,null,""]
[null,null,null,null,null,null,null,null,null,null,null,null,null,null,null,null,null,""]
[null,null,null,null,null,null,null,null,null,null,null,null,null,null,null,null,null,""]
[null,null,null,null,null,null,null,null,null,null,null,null,null,null,null,null,null,""]
[null,null,null,null,null,null,null,null,null,null,null,null,null,null,null,null,null,""]
[null,null,null,null,null,null,null,null,null,null,null,null,null,null,null,null,null,""]
[null,null,null,null,null,null,null,null,null,null,null,null,null,null,null,null,null,""]
[null,null,null,null,null,null,null,null,null,null,null,null,null,null,null,null,null,""]
[null,null,null,null,null,null,null,null,null,null,null,null,null,null,null,null,null,""]
[null,null,null,null,null,null,null,null,null,null,null,null,null,null,null,null,null,""]
[null,null,null,null,null,null,null,null,null,null,null,null,null,null,null,null,null,""]
[null,null,null,null,null,null,null,null,null,null,null,null,null,null,null,null,null,""]
[null,null,null,null,null,null,null,null,null,null,null,null,null,null,null,null,null,""]
[null,null,null,null,null,null,null,null,null,null,null,null,null,null,null,null,null,""]
[null,null,null,null,null,null,null,null,null,null,null,null,null,null,null,null,null,""]
[null,null,null,null,null,null,null,null,null,null,null,null,null,null,null,null,null,""]
[null,null,null,null,null,null,null,null,null,null,null,null,null,null,null,null,null,""]
[null,null,null,null,null,null,null,null,null,null,null,null,null,null,null,null,null,""]
[null,null,null,null,null,null,null,null,null,null,null,null,null,null,null,null,null,""]
[null,null,null,null,null,null,null,null,null,null,null,null,null,null,null,null,null,""]
[null,null,null,null,null,null,null,null,null,null,null,null,null,null,null,null,null,""]
[null,null,null,null,null,null,null,null,null,null,null,null,null,null,null,null,null,""]
[null,null,null,null,null,null,null,null,null,null,null,null,null,null,null,null,null,""]
[null,null,null,null,null,null,null,null,null,null,null,null,null,null,null,null,null,""]
[null,null,null,null,null,null,null,null,null,null,null,null,null,null,null,null,null,""]
[null,null,null,null,null,null,null,null,null,null,null,null,null,null,null,null,null,""]
[null,null,null,null,null,null,null,null,null,null,null,null,null,null,null,null,null,""]
[null,null,null,null,null,null,null,null,null,null,null,null,null,null,null,null,null,""]
[null,null,null,null,null,null,null,null,null,null,null,null,null,null,null,null,null,""]
[null,null,null,null,null,null,null,null,null,null,null,null,null,null,null,null,null,""]
[null,null,null,null,null,null,null,null,null,null,null,null,null,null,null,null,null,""]
[null,null,null,null,null,null,null,null,null,null,null,null,null,null,null,null,null,""]
[null,null,null,null,null,null,null,null,null,null,null,null,null,null,null,null,null,""]
[null,null,null,null,null,null,null,null,null,null,null,null,null,null,null,null,null,""]
[null,null,null,null,null,null,null,null,null,null,null,null,null,null,null,null,null,""]
[null,null,null,null,null,null,null,null,null,null,null,null,null,null,null,null,null,""]
[null,null,null,null,null,null,null,null,null,null,null,null,null,null,null,null,null,""]
[null,null,null,null,null,null,null,null,null,null,null,null,null,null,null,null,null,""]
[null,null,null,null,null,null,null,null,null,null,null,null,null,null,null,null,null,""]
[null,null,null,null,null,null,null,null,null,null,null,null,null,null,null,null,null,""]
[null,null,null,null,null,null,null,null,null,null,null,null,null,null,null,null,null,""]
[null,null,null,null,null,null,null,null,null,null,null,null,null,null,null,null,null,""]
[null,null,null,null,null,null,null,null,null,null,null,null,null,null,null,null,null,""]
[null,null,null,null,null,null,null,null,null,null,null,null,null,null,null,null,null,""]
[null,null,null,null,null,null,null,null,null,null,null,null,null,null,null,null,null,""]
[null,null,null,null,null,null,null,null,null,null,null,null,null,null,null,null,null,""]
[null,null,null,null,null,null,null,null,null,null,null,null,null,null,null,null,null,""]
[null,null,null,null,null,null,null,null,null,null,null,null,null,null,null,null,null,""]
[null,null,null,null,null,null,null,null,null,null,null,null,null,null,null,null,null,""]
[null,null,null,null,null,null,null,null,null,null,null,null,null,null,null,null,null,""]
[null,null,null,null,null,null,null,null,null,null,null,null,null,null,null,null,null,{"$f":"IF(B450=\"\",\"\",IF(B450=B449,R449+1,1))","v":""}]
[null,null,null,null,null,null,null,null,null,null,null,null,null,null,null,null,null,""]
[null,null,null,null,null,null,null,null,null,null,null,null,null,null,null,null,null,""]
[null,null,null,null,null,null,null,null,null,null,null,null,null,null,null,null,null,""]
[null,null,null,null,null,null,null,null,null,null,null,null,null,null,null,null,null,""]
[null,null,null,null,null,null,null,null,null,null,null,null,null,null,null,null,null,""]
[null,null,null,null,null,null,null,null,null,null,null,null,null,null,null,null,null,""]
[null,null,null,null,null,null,null,null,null,null,null,null,null,null,null,null,null,""]
[null,null,null,null,null,null,null,null,null,null,null,null,null,null,null,null,null,""]
[null,null,null,null,null,null,null,null,null,null,null,null,null,null,null,null,null,""]
[null,null,null,null,null,null,null,null,null,null,null,null,null,null,null,null,null,""]
[null,null,null,null,null,null,null,null,null,null,null,null,null,null,null,null,null,""]
[null,null,null,null,null,null,null,null,null,null,null,null,null,null,null,null,null,""]
[null,null,null,null,null,null,null,null,null,null,null,null,null,null,null,null,null,""]
[null,null,null,null,null,null,null,null,null,null,null,null,null,null,null,null,null,""]
[null,null,null,null,null,null,null,null,null,null,null,null,null,null,null,null,null,""]
[null,null,null,null,null,null,null,null,null,null,null,null,null,null,null,null,null,""]

{"sheet":"Drop Downs (hidden)","index":6,"n_rows":500,"n_cols":11,"rows_kept":500,"cut":false,"hidden":true,"merged":[]}
[]
["Providers","Number of Projects",null,"Project Type","Associated Subtype(s)",null,"PSH","Budget",null,"RRH","Budget"]
[{"$f":"IF('HIC (hidden)'!A3=\"\",\"\",'HIC (hidden)'!B3)","v":""},{"$f":"IF(A3=\"\",\"\",COUNTIF('HIC (hidden)'!B:B,'Drop Downs (hidden)'!A3))","v":""},null,"ES","Congregate/Dormitory",null,null,"Services Only",null,null,"Single Adult Households"]
[{"$f":"IFERROR(IF(INDEX('HIC (hidden)'!$B$3:$B$499,MATCH(0,COUNTIF('Drop Downs (hidden)'!$A$3:A3,'HIC (hidden)'!$B$3:$B$499),0))=0,\"\",INDEX('HIC (hidden)'!$B$3:$B$499,MATCH(0,COUNTIF('Drop Downs (hidden)'!$A$3:A3,'HIC (hidden)'!$B$3:$B$499),0))),\"\")","v":""},{"$f":"IF(A4=\"\",\"\",COUNTIF('HIC (hidden)'!B:B,'Drop Downs (hidden)'!A4))","v":""},null,"ES","Separate Units",null,null,"Rental Assistance Only",null,null,"Family Households"]
[{"$f":"IFERROR(IF(INDEX('HIC (hidden)'!$B$3:$B$499,MATCH(0,COUNTIF('Drop Downs (hidden)'!$A$3:A4,'HIC (hidden)'!$B$3:$B$499),0))=0,\"\",INDEX('HIC (hidden)'!$B$3:$B$499,MATCH(0,COUNTIF('Drop Downs (hidden)'!$A$3:A4,'HIC (hidden)'!$B$3:$B$499),0))),\"\")","v":""},{"$f":"IF(A5=\"\",\"\",COUNTIF('HIC (hidden)'!B:B,'Drop Downs (hidden)'!A5))","v":""},null,"ES","Hotel/Motel Vouchers",null,null,"Services and Rental Assistance",null,null,"Both Single Adult and Family Households"]
[{"$f":"IFERROR(IF(INDEX('HIC (hidden)'!$B$3:$B$499,MATCH(0,COUNTIF('Drop Downs (hidden)'!$A$3:A5,'HIC (hidden)'!$B$3:$B$499),0))=0,\"\",INDEX('HIC (hidden)'!$B$3:$B$499,MATCH(0,COUNTIF('Drop Downs (hidden)'!$A$3:A5,'HIC (hidden)'!$B$3:$B$499),0))),\"\")","v":""},{"$f":"IF(A6=\"\",\"\",COUNTIF('HIC (hidden)'!B:B,'Drop Downs (hidden)'!A6))","v":""},null,"SH","Congregate/Dormitory"]
[{"$f":"IFERROR(IF(INDEX('HIC (hidden)'!$B$3:$B$499,MATCH(0,COUNTIF('Drop Downs (hidden)'!$A$3:A6,'HIC (hidden)'!$B$3:$B$499),0))=0,\"\",INDEX('HIC (hidden)'!$B$3:$B$499,MATCH(0,COUNTIF('Drop Downs (hidden)'!$A$3:A6,'HIC (hidden)'!$B$3:$B$499),0))),\"\")","v":""},{"$f":"IF(A7=\"\",\"\",COUNTIF('HIC (hidden)'!B:B,'Drop Downs (hidden)'!A7))","v":""},null,"SH","Separate Units",null,null,"Services Only",null,null,"Services Only"]
[{"$f":"IFERROR(IF(INDEX('HIC (hidden)'!$B$3:$B$499,MATCH(0,COUNTIF('Drop Downs (hidden)'!$A$3:A7,'HIC (hidden)'!$B$3:$B$499),0))=0,\"\",INDEX('HIC (hidden)'!$B$3:$B$499,MATCH(0,COUNTIF('Drop Downs (hidden)'!$A$3:A7,'HIC (hidden)'!$B$3:$B$499),0))),\"\")","v":""},{"$f":"IF(A8=\"\",\"\",COUNTIF('HIC (hidden)'!B:B,'Drop Downs (hidden)'!A8))","v":""},null,"SH","Hotel/Motel Vouchers",null,null,"Housing/Rental Assistance Only",null,null,"Rental Assistance Only"]
[{"$f":"IFERROR(IF(INDEX('HIC (hidden)'!$B$3:$B$499,MATCH(0,COUNTIF('Drop Downs (hidden)'!$A$3:A8,'HIC (hidden)'!$B$3:$B$499),0))=0,\"\",INDEX('HIC (hidden)'!$B$3:$B$499,MATCH(0,COUNTIF('Drop Downs (hidden)'!$A$3:A8,'HIC (hidden)'!$B$3:$B$499),0))),\"\")","v":""},{"$f":"IF(A9=\"\",\"\",COUNTIF('HIC (hidden)'!B:B,'Drop Downs (hidden)'!A9))","v":""},null,"TH","Single Site Congregate",null,null,"All Services and Rental Assistance",null,null,"All Services and Rental Assistance"]
[{"$f":"IFERROR(IF(INDEX('HIC (hidden)'!$B$3:$B$499,MATCH(0,COUNTIF('Drop Downs (hidden)'!$A$3:A9,'HIC (hidden)'!$B$3:$B$499),0))=0,\"\",INDEX('HIC (hidden)'!$B$3:$B$499,MATCH(0,COUNTIF('Drop Downs (hidden)'!$A$3:A9,'HIC (hidden)'!$B$3:$B$499),0))),\"\")","v":""},{"$f":"IF(A10=\"\",\"\",COUNTIF('HIC (hidden)'!B:B,'Drop Downs (hidden)'!A10))","v":""},null,"TH","Single Site Separate Units"]
[{"$f":"IFERROR(IF(INDEX('HIC (hidden)'!$B$3:$B$499,MATCH(0,COUNTIF('Drop Downs (hidden)'!$A$3:A10,'HIC (hidden)'!$B$3:$B$499),0))=0,\"\",INDEX('HIC (hidden)'!$B$3:$B$499,MATCH(0,COUNTIF('Drop Downs (hidden)'!$A$3:A10,'HIC (hidden)'!$B$3:$B$499),0))),\"\")","v":""},{"$f":"IF(A11=\"\",\"\",COUNTIF('HIC (hidden)'!B:B,'Drop Downs (hidden)'!A11))","v":""},null,"TH","Scattered Site"]
[{"$f":"IFERROR(IF(INDEX('HIC (hidden)'!$B$3:$B$499,MATCH(0,COUNTIF('Drop Downs (hidden)'!$A$3:A11,'HIC (hidden)'!$B$3:$B$499),0))=0,\"\",INDEX('HIC (hidden)'!$B$3:$B$499,MATCH(0,COUNTIF('Drop Downs (hidden)'!$A$3:A11,'HIC (hidden)'!$B$3:$B$499),0))),\"\")","v":""},{"$f":"IF(A12=\"\",\"\",COUNTIF('HIC (hidden)'!B:B,'Drop Downs (hidden)'!A12))","v":""},null,"TH","Scattered Site, Transition in Place"]
[{"$f":"IFERROR(IF(INDEX('HIC (hidden)'!$B$3:$B$499,MATCH(0,COUNTIF('Drop Downs (hidden)'!$A$3:A12,'HIC (hidden)'!$B$3:$B$499),0))=0,\"\",INDEX('HIC (hidden)'!$B$3:$B$499,MATCH(0,COUNTIF('Drop Downs (hidden)'!$A$3:A12,'HIC (hidden)'!$B$3:$B$499),0))),\"\")","v":""},{"$f":"IF(A13=\"\",\"\",COUNTIF('HIC (hidden)'!B:B,'Drop Downs (hidden)'!A13))","v":""},null,"TH","Other (explain in notes)"]
[{"$f":"IFERROR(IF(INDEX('HIC (hidden)'!$B$3:$B$499,MATCH(0,COUNTIF('Drop Downs (hidden)'!$A$3:A13,'HIC (hidden)'!$B$3:$B$499),0))=0,\"\",INDEX('HIC (hidden)'!$B$3:$B$499,MATCH(0,COUNTIF('Drop Downs (hidden)'!$A$3:A13,'HIC (hidden)'!$B$3:$B$499),0))),\"\")","v":""},{"$f":"IF(A14=\"\",\"\",COUNTIF('HIC (hidden)'!B:B,'Drop Downs (hidden)'!A14))","v":""},null,"PSH","Single Site"]
[{"$f":"IFERROR(IF(INDEX('HIC (hidden)'!$B$3:$B$499,MATCH(0,COUNTIF('Drop Downs (hidden)'!$A$3:A14,'HIC (hidden)'!$B$3:$B$499),0))=0,\"\",INDEX('HIC (hidden)'!$B$3:$B$499,MATCH(0,COUNTIF('Drop Downs (hidden)'!$A$3:A14,'HIC (hidden)'!$B$3:$B$499),0))),\"\")","v":""},{"$f":"IF(A15=\"\",\"\",COUNTIF('HIC (hidden)'!B:B,'Drop Downs (hidden)'!A15))","v":""},null,"PSH","Scattered Site Leasing"]
[{"$f":"IFERROR(IF(INDEX('HIC (hidden)'!$B$3:$B$499,MATCH(0,COUNTIF('Drop Downs (hidden)'!$A$3:A15,'HIC (hidden)'!$B$3:$B$499),0))=0,\"\",INDEX('HIC (hidden)'!$B$3:$B$499,MATCH(0,COUNTIF('Drop Downs (hidden)'!$A$3:A15,'HIC (hidden)'!$B$3:$B$499),0))),\"\")","v":""},{"$f":"IF(A16=\"\",\"\",COUNTIF('HIC (hidden)'!B:B,'Drop Downs (hidden)'!A16))","v":""},null,"PSH","Scattered Site Owned Units"]
[{"$f":"IFERROR(IF(INDEX('HIC (hidden)'!$B$3:$B$499,MATCH(0,COUNTIF('Drop Downs (hidden)'!$A$3:A16,'HIC (hidden)'!$B$3:$B$499),0))=0,\"\",INDEX('HIC (hidden)'!$B$3:$B$499,MATCH(0,COUNTIF('Drop Downs (hidden)'!$A$3:A16,'HIC (hidden)'!$B$3:$B$499),0))),\"\")","v":""},{"$f":"IF(A17=\"\",\"\",COUNTIF('HIC (hidden)'!B:B,'Drop Downs (hidden)'!A17))","v":""},null,"RRH","N/A"]
[{"$f":"IFERROR(IF(INDEX('HIC (hidden)'!$B$3:$B$499,MATCH(0,COUNTIF('Drop Downs (hidden)'!$A$3:A17,'HIC (hidden)'!$B$3:$B$499),0))=0,\"\",INDEX('HIC (hidden)'!$B$3:$B$499,MATCH(0,COUNTIF('Drop Downs (hidden)'!$A$3:A17,'HIC (hidden)'!$B$3:$B$499),0))),\"\")","v":""},{"$f":"IF(A18=\"\",\"\",COUNTIF('HIC (hidden)'!B:B,'Drop Downs (hidden)'!A18))","v":""}]
[{"$f":"IFERROR(IF(INDEX('HIC (hidden)'!$B$3:$B$499,MATCH(0,COUNTIF('Drop Downs (hidden)'!$A$3:A18,'HIC (hidden)'!$B$3:$B$499),0))=0,\"\",INDEX('HIC (hidden)'!$B$3:$B$499,MATCH(0,COUNTIF('Drop Downs (hidden)'!$A$3:A18,'HIC (hidden)'!$B$3:$B$499),0))),\"\")","v":""},{"$f":"IF(A19=\"\",\"\",COUNTIF('HIC (hidden)'!B:B,'Drop Downs (hidden)'!A19))","v":""}]
[{"$f":"IFERROR(IF(INDEX('HIC (hidden)'!$B$3:$B$499,MATCH(0,COUNTIF('Drop Downs (hidden)'!$A$3:A19,'HIC (hidden)'!$B$3:$B$499),0))=0,\"\",INDEX('HIC (hidden)'!$B$3:$B$499,MATCH(0,COUNTIF('Drop Downs (hidden)'!$A$3:A19,'HIC (hidden)'!$B$3:$B$499),0))),\"\")","v":""},{"$f":"IF(A20=\"\",\"\",COUNTIF('HIC (hidden)'!B:B,'Drop Downs (hidden)'!A20))","v":""}]
[{"$f":"IFERROR(IF(INDEX('HIC (hidden)'!$B$3:$B$499,MATCH(0,COUNTIF('Drop Downs (hidden)'!$A$3:A20,'HIC (hidden)'!$B$3:$B$499),0))=0,\"\",INDEX('HIC (hidden)'!$B$3:$B$499,MATCH(0,COUNTIF('Drop Downs (hidden)'!$A$3:A20,'HIC (hidden)'!$B$3:$B$499),0))),\"\")","v":""},{"$f":"IF(A21=\"\",\"\",COUNTIF('HIC (hidden)'!B:B,'Drop Downs (hidden)'!A21))","v":""}]
[{"$f":"IFERROR(IF(INDEX('HIC (hidden)'!$B$3:$B$499,MATCH(0,COUNTIF('Drop Downs (hidden)'!$A$3:A21,'HIC (hidden)'!$B$3:$B$499),0))=0,\"\",INDEX('HIC (hidden)'!$B$3:$B$499,MATCH(0,COUNTIF('Drop Downs (hidden)'!$A$3:A21,'HIC (hidden)'!$B$3:$B$499),0))),\"\")","v":""},{"$f":"IF(A22=\"\",\"\",COUNTIF('HIC (hidden)'!B:B,'Drop Downs (hidden)'!A22))","v":""}]
[{"$f":"IFERROR(IF(INDEX('HIC (hidden)'!$B$3:$B$499,MATCH(0,COUNTIF('Drop Downs (hidden)'!$A$3:A22,'HIC (hidden)'!$B$3:$B$499),0))=0,\"\",INDEX('HIC (hidden)'!$B$3:$B$499,MATCH(0,COUNTIF('Drop Downs (hidden)'!$A$3:A22,'HIC (hidden)'!$B$3:$B$499),0))),\"\")","v":""},{"$f":"IF(A23=\"\",\"\",COUNTIF('HIC (hidden)'!B:B,'Drop Downs (hidden)'!A23))","v":""}]
[{"$f":"IFERROR(IF(INDEX('HIC (hidden)'!$B$3:$B$499,MATCH(0,COUNTIF('Drop Downs (hidden)'!$A$3:A23,'HIC (hidden)'!$B$3:$B$499),0))=0,\"\",INDEX('HIC (hidden)'!$B$3:$B$499,MATCH(0,COUNTIF('Drop Downs (hidden)'!$A$3:A23,'HIC (hidden)'!$B$3:$B$499),0))),\"\")","v":""},{"$f":"IF(A24=\"\",\"\",COUNTIF('HIC (hidden)'!B:B,'Drop Downs (hidden)'!A24))","v":""}]
[{"$f":"IFERROR(IF(INDEX('HIC (hidden)'!$B$3:$B$499,MATCH(0,COUNTIF('Drop Downs (hidden)'!$A$3:A24,'HIC (hidden)'!$B$3:$B$499),0))=0,\"\",INDEX('HIC (hidden)'!$B$3:$B$499,MATCH(0,COUNTIF('Drop Downs (hidden)'!$A$3:A24,'HIC (hidden)'!$B$3:$B$499),0))),\"\")","v":""},{"$f":"IF(A25=\"\",\"\",COUNTIF('HIC (hidden)'!B:B,'Drop Downs (hidden)'!A25))","v":""}]
[{"$f":"IFERROR(IF(INDEX('HIC (hidden)'!$B$3:$B$499,MATCH(0,COUNTIF('Drop Downs (hidden)'!$A$3:A25,'HIC (hidden)'!$B$3:$B$499),0))=0,\"\",INDEX('HIC (hidden)'!$B$3:$B$499,MATCH(0,COUNTIF('Drop Downs (hidden)'!$A$3:A25,'HIC (hidden)'!$B$3:$B$499),0))),\"\")","v":""},{"$f":"IF(A26=\"\",\"\",COUNTIF('HIC (hidden)'!B:B,'Drop Downs (hidden)'!A26))","v":""}]
[{"$f":"IFERROR(IF(INDEX('HIC (hidden)'!$B$3:$B$499,MATCH(0,COUNTIF('Drop Downs (hidden)'!$A$3:A26,'HIC (hidden)'!$B$3:$B$499),0))=0,\"\",INDEX('HIC (hidden)'!$B$3:$B$499,MATCH(0,COUNTIF('Drop Downs (hidden)'!$A$3:A26,'HIC (hidden)'!$B$3:$B$499),0))),\"\")","v":""},{"$f":"IF(A27=\"\",\"\",COUNTIF('HIC (hidden)'!B:B,'Drop Downs (hidden)'!A27))","v":""}]
[{"$f":"IFERROR(IF(INDEX('HIC (hidden)'!$B$3:$B$499,MATCH(0,COUNTIF('Drop Downs (hidden)'!$A$3:A27,'HIC (hidden)'!$B$3:$B$499),0))=0,\"\",INDEX('HIC (hidden)'!$B$3:$B$499,MATCH(0,COUNTIF('Drop Downs (hidden)'!$A$3:A27,'HIC (hidden)'!$B$3:$B$499),0))),\"\")","v":""},{"$f":"IF(A28=\"\",\"\",COUNTIF('HIC (hidden)'!B:B,'Drop Downs (hidden)'!A28))","v":""}]
[{"$f":"IFERROR(IF(INDEX('HIC (hidden)'!$B$3:$B$499,MATCH(0,COUNTIF('Drop Downs (hidden)'!$A$3:A28,'HIC (hidden)'!$B$3:$B$499),0))=0,\"\",INDEX('HIC (hidden)'!$B$3:$B$499,MATCH(0,COUNTIF('Drop Downs (hidden)'!$A$3:A28,'HIC (hidden)'!$B$3:$B$499),0))),\"\")","v":""},{"$f":"IF(A29=\"\",\"\",COUNTIF('HIC (hidden)'!B:B,'Drop Downs (hidden)'!A29))","v":""}]
[{"$f":"IFERROR(IF(INDEX('HIC (hidden)'!$B$3:$B$499,MATCH(0,COUNTIF('Drop Downs (hidden)'!$A$3:A29,'HIC (hidden)'!$B$3:$B$499),0))=0,\"\",INDEX('HIC (hidden)'!$B$3:$B$499,MATCH(0,COUNTIF('Drop Downs (hidden)'!$A$3:A29,'HIC (hidden)'!$B$3:$B$499),0))),\"\")","v":""},{"$f":"IF(A30=\"\",\"\",COUNTIF('HIC (hidden)'!B:B,'Drop Downs (hidden)'!A30))","v":""}]
[{"$f":"IFERROR(IF(INDEX('HIC (hidden)'!$B$3:$B$499,MATCH(0,COUNTIF('Drop Downs (hidden)'!$A$3:A30,'HIC (hidden)'!$B$3:$B$499),0))=0,\"\",INDEX('HIC (hidden)'!$B$3:$B$499,MATCH(0,COUNTIF('Drop Downs (hidden)'!$A$3:A30,'HIC (hidden)'!$B$3:$B$499),0))),\"\")","v":""},{"$f":"IF(A31=\"\",\"\",COUNTIF('HIC (hidden)'!B:B,'Drop Downs (hidden)'!A31))","v":""}]
[{"$f":"IFERROR(IF(INDEX('HIC (hidden)'!$B$3:$B$499,MATCH(0,COUNTIF('Drop Downs (hidden)'!$A$3:A31,'HIC (hidden)'!$B$3:$B$499),0))=0,\"\",INDEX('HIC (hidden)'!$B$3:$B$499,MATCH(0,COUNTIF('Drop Downs (hidden)'!$A$3:A31,'HIC (hidden)'!$B$3:$B$499),0))),\"\")","v":""},{"$f":"IF(A32=\"\",\"\",COUNTIF('HIC (hidden)'!B:B,'Drop Downs (hidden)'!A32))","v":""}]
[{"$f":"IFERROR(IF(INDEX('HIC (hidden)'!$B$3:$B$499,MATCH(0,COUNTIF('Drop Downs (hidden)'!$A$3:A32,'HIC (hidden)'!$B$3:$B$499),0))=0,\"\",INDEX('HIC (hidden)'!$B$3:$B$499,MATCH(0,COUNTIF('Drop Downs (hidden)'!$A$3:A32,'HIC (hidden)'!$B$3:$B$499),0))),\"\")","v":""},{"$f":"IF(A33=\"\",\"\",COUNTIF('HIC (hidden)'!B:B,'Drop Downs (hidden)'!A33))","v":""}]
[{"$f":"IFERROR(IF(INDEX('HIC (hidden)'!$B$3:$B$499,MATCH(0,COUNTIF('Drop Downs (hidden)'!$A$3:A33,'HIC (hidden)'!$B$3:$B$499),0))=0,\"\",INDEX('HIC (hidden)'!$B$3:$B$499,MATCH(0,COUNTIF('Drop Downs (hidden)'!$A$3:A33,'HIC (hidden)'!$B$3:$B$499),0))),\"\")","v":""},{"$f":"IF(A34=\"\",\"\",COUNTIF('HIC (hidden)'!B:B,'Drop Downs (hidden)'!A34))","v":""}]
[{"$f":"IFERROR(IF(INDEX('HIC (hidden)'!$B$3:$B$499,MATCH(0,COUNTIF('Drop Downs (hidden)'!$A$3:A34,'HIC (hidden)'!$B$3:$B$499),0))=0,\"\",INDEX('HIC (hidden)'!$B$3:$B$499,MATCH(0,COUNTIF('Drop Downs (hidden)'!$A$3:A34,'HIC (hidden)'!$B$3:$B$499),0))),\"\")","v":""},{"$f":"IF(A35=\"\",\"\",COUNTIF('HIC (hidden)'!B:B,'Drop Downs (hidden)'!A35))","v":""}]
[{"$f":"IFERROR(IF(INDEX('HIC (hidden)'!$B$3:$B$499,MATCH(0,COUNTIF('Drop Downs (hidden)'!$A$3:A35,'HIC (hidden)'!$B$3:$B$499),0))=0,\"\",INDEX('HIC (hidden)'!$B$3:$B$499,MATCH(0,COUNTIF('Drop Downs (hidden)'!$A$3:A35,'HIC (hidden)'!$B$3:$B$499),0))),\"\")","v":""},{"$f":"IF(A36=\"\",\"\",COUNTIF('HIC (hidden)'!B:B,'Drop Downs (hidden)'!A36))","v":""}]
[{"$f":"IFERROR(IF(INDEX('HIC (hidden)'!$B$3:$B$499,MATCH(0,COUNTIF('Drop Downs (hidden)'!$A$3:A36,'HIC (hidden)'!$B$3:$B$499),0))=0,\"\",INDEX('HIC (hidden)'!$B$3:$B$499,MATCH(0,COUNTIF('Drop Downs (hidden)'!$A$3:A36,'HIC (hidden)'!$B$3:$B$499),0))),\"\")","v":""},{"$f":"IF(A37=\"\",\"\",COUNTIF('HIC (hidden)'!B:B,'Drop Downs (hidden)'!A37))","v":""}]
[{"$f":"IFERROR(IF(INDEX('HIC (hidden)'!$B$3:$B$499,MATCH(0,COUNTIF('Drop Downs (hidden)'!$A$3:A37,'HIC (hidden)'!$B$3:$B$499),0))=0,\"\",INDEX('HIC (hidden)'!$B$3:$B$499,MATCH(0,COUNTIF('Drop Downs (hidden)'!$A$3:A37,'HIC (hidden)'!$B$3:$B$499),0))),\"\")","v":""},{"$f":"IF(A38=\"\",\"\",COUNTIF('HIC (hidden)'!B:B,'Drop Downs (hidden)'!A38))","v":""}]
[{"$f":"IFERROR(IF(INDEX('HIC (hidden)'!$B$3:$B$499,MATCH(0,COUNTIF('Drop Downs (hidden)'!$A$3:A38,'HIC (hidden)'!$B$3:$B$499),0))=0,\"\",INDEX('HIC (hidden)'!$B$3:$B$499,MATCH(0,COUNTIF('Drop Downs (hidden)'!$A$3:A38,'HIC (hidden)'!$B$3:$B$499),0))),\"\")","v":""},{"$f":"IF(A39=\"\",\"\",COUNTIF('HIC (hidden)'!B:B,'Drop Downs (hidden)'!A39))","v":""}]
[{"$f":"IFERROR(IF(INDEX('HIC (hidden)'!$B$3:$B$499,MATCH(0,COUNTIF('Drop Downs (hidden)'!$A$3:A39,'HIC (hidden)'!$B$3:$B$499),0))=0,\"\",INDEX('HIC (hidden)'!$B$3:$B$499,MATCH(0,COUNTIF('Drop Downs (hidden)'!$A$3:A39,'HIC (hidden)'!$B$3:$B$499),0))),\"\")","v":""},{"$f":"IF(A40=\"\",\"\",COUNTIF('HIC (hidden)'!B:B,'Drop Downs (hidden)'!A40))","v":""}]
[{"$f":"IFERROR(IF(INDEX('HIC (hidden)'!$B$3:$B$499,MATCH(0,COUNTIF('Drop Downs (hidden)'!$A$3:A40,'HIC (hidden)'!$B$3:$B$499),0))=0,\"\",INDEX('HIC (hidden)'!$B$3:$B$499,MATCH(0,COUNTIF('Drop Downs (hidden)'!$A$3:A40,'HIC (hidden)'!$B$3:$B$499),0))),\"\")","v":""},{"$f":"IF(A41=\"\",\"\",COUNTIF('HIC (hidden)'!B:B,'Drop Downs (hidden)'!A41))","v":""}]
[{"$f":"IFERROR(IF(INDEX('HIC (hidden)'!$B$3:$B$499,MATCH(0,COUNTIF('Drop Downs (hidden)'!$A$3:A41,'HIC (hidden)'!$B$3:$B$499),0))=0,\"\",INDEX('HIC (hidden)'!$B$3:$B$499,MATCH(0,COUNTIF('Drop Downs (hidden)'!$A$3:A41,'HIC (hidden)'!$B$3:$B$499),0))),\"\")","v":""},{"$f":"IF(A42=\"\",\"\",COUNTIF('HIC (hidden)'!B:B,'Drop Downs (hidden)'!A42))","v":""}]
[{"$f":"IFERROR(IF(INDEX('HIC (hidden)'!$B$3:$B$499,MATCH(0,COUNTIF('Drop Downs (hidden)'!$A$3:A42,'HIC (hidden)'!$B$3:$B$499),0))=0,\"\",INDEX('HIC (hidden)'!$B$3:$B$499,MATCH(0,COUNTIF('Drop Downs (hidden)'!$A$3:A42,'HIC (hidden)'!$B$3:$B$499),0))),\"\")","v":""},{"$f":"IF(A43=\"\",\"\",COUNTIF('HIC (hidden)'!B:B,'Drop Downs (hidden)'!A43))","v":""}]
[{"$f":"IFERROR(IF(INDEX('HIC (hidden)'!$B$3:$B$499,MATCH(0,COUNTIF('Drop Downs (hidden)'!$A$3:A43,'HIC (hidden)'!$B$3:$B$499),0))=0,\"\",INDEX('HIC (hidden)'!$B$3:$B$499,MATCH(0,COUNTIF('Drop Downs (hidden)'!$A$3:A43,'HIC (hidden)'!$B$3:$B$499),0))),\"\")","v":""},{"$f":"IF(A44=\"\",\"\",COUNTIF('HIC (hidden)'!B:B,'Drop Downs (hidden)'!A44))","v":""}]
[{"$f":"IFERROR(IF(INDEX('HIC (hidden)'!$B$3:$B$499,MATCH(0,COUNTIF('Drop Downs (hidden)'!$A$3:A44,'HIC (hidden)'!$B$3:$B$499),0))=0,\"\",INDEX('HIC (hidden)'!$B$3:$B$499,MATCH(0,COUNTIF('Drop Downs (hidden)'!$A$3:A44,'HIC (hidden)'!$B$3:$B$499),0))),\"\")","v":""},{"$f":"IF(A45=\"\",\"\",COUNTIF('HIC (hidden)'!B:B,'Drop Downs (hidden)'!A45))","v":""}]
[{"$f":"IFERROR(IF(INDEX('HIC (hidden)'!$B$3:$B$499,MATCH(0,COUNTIF('Drop Downs (hidden)'!$A$3:A45,'HIC (hidden)'!$B$3:$B$499),0))=0,\"\",INDEX('HIC (hidden)'!$B$3:$B$499,MATCH(0,COUNTIF('Drop Downs (hidden)'!$A$3:A45,'HIC (hidden)'!$B$3:$B$499),0))),\"\")","v":""},{"$f":"IF(A46=\"\",\"\",COUNTIF('HIC (hidden)'!B:B,'Drop Downs (hidden)'!A46))","v":""}]
[{"$f":"IFERROR(IF(INDEX('HIC (hidden)'!$B$3:$B$499,MATCH(0,COUNTIF('Drop Downs (hidden)'!$A$3:A46,'HIC (hidden)'!$B$3:$B$499),0))=0,\"\",INDEX('HIC (hidden)'!$B$3:$B$499,MATCH(0,COUNTIF('Drop Downs (hidden)'!$A$3:A46,'HIC (hidden)'!$B$3:$B$499),0))),\"\")","v":""},{"$f":"IF(A47=\"\",\"\",COUNTIF('HIC (hidden)'!B:B,'Drop Downs (hidden)'!A47))","v":""}]
[{"$f":"IFERROR(IF(INDEX('HIC (hidden)'!$B$3:$B$499,MATCH(0,COUNTIF('Drop Downs (hidden)'!$A$3:A47,'HIC (hidden)'!$B$3:$B$499),0))=0,\"\",INDEX('HIC (hidden)'!$B$3:$B$499,MATCH(0,COUNTIF('Drop Downs (hidden)'!$A$3:A47,'HIC (hidden)'!$B$3:$B$499),0))),\"\")","v":""},{"$f":"IF(A48=\"\",\"\",COUNTIF('HIC (hidden)'!B:B,'Drop Downs (hidden)'!A48))","v":""}]
[{"$f":"IFERROR(IF(INDEX('HIC (hidden)'!$B$3:$B$499,MATCH(0,COUNTIF('Drop Downs (hidden)'!$A$3:A48,'HIC (hidden)'!$B$3:$B$499),0))=0,\"\",INDEX('HIC (hidden)'!$B$3:$B$499,MATCH(0,COUNTIF('Drop Downs (hidden)'!$A$3:A48,'HIC (hidden)'!$B$3:$B$499),0))),\"\")","v":""},{"$f":"IF(A49=\"\",\"\",COUNTIF('HIC (hidden)'!B:B,'Drop Downs (hidden)'!A49))","v":""}]
[{"$f":"IFERROR(IF(INDEX('HIC (hidden)'!$B$3:$B$499,MATCH(0,COUNTIF('Drop Downs (hidden)'!$A$3:A49,'HIC (hidden)'!$B$3:$B$499),0))=0,\"\",INDEX('HIC (hidden)'!$B$3:$B$499,MATCH(0,COUNTIF('Drop Downs (hidden)'!$A$3:A49,'HIC (hidden)'!$B$3:$B$499),0))),\"\")","v":""},{"$f":"IF(A50=\"\",\"\",COUNTIF('HIC (hidden)'!B:B,'Drop Downs (hidden)'!A50))","v":""}]
[{"$f":"IFERROR(IF(INDEX('HIC (hidden)'!$B$3:$B$499,MATCH(0,COUNTIF('Drop Downs (hidden)'!$A$3:A50,'HIC (hidden)'!$B$3:$B$499),0))=0,\"\",INDEX('HIC (hidden)'!$B$3:$B$499,MATCH(0,COUNTIF('Drop Downs (hidden)'!$A$3:A50,'HIC (hidden)'!$B$3:$B$499),0))),\"\")","v":""},{"$f":"IF(A51=\"\",\"\",COUNTIF('HIC (hidden)'!B:B,'Drop Downs (hidden)'!A51))","v":""}]
[{"$f":"IFERROR(IF(INDEX('HIC (hidden)'!$B$3:$B$499,MATCH(0,COUNTIF('Drop Downs (hidden)'!$A$3:A51,'HIC (hidden)'!$B$3:$B$499),0))=0,\"\",INDEX('HIC (hidden)'!$B$3:$B$499,MATCH(0,COUNTIF('Drop Downs (hidden)'!$A$3:A51,'HIC (hidden)'!$B$3:$B$499),0))),\"\")","v":""},{"$f":"IF(A52=\"\",\"\",COUNTIF('HIC (hidden)'!B:B,'Drop Downs (hidden)'!A52))","v":""}]
[{"$f":"IFERROR(IF(INDEX('HIC (hidden)'!$B$3:$B$499,MATCH(0,COUNTIF('Drop Downs (hidden)'!$A$3:A52,'HIC (hidden)'!$B$3:$B$499),0))=0,\"\",INDEX('HIC (hidden)'!$B$3:$B$499,MATCH(0,COUNTIF('Drop Downs (hidden)'!$A$3:A52,'HIC (hidden)'!$B$3:$B$499),0))),\"\")","v":""},{"$f":"IF(A53=\"\",\"\",COUNTIF('HIC (hidden)'!B:B,'Drop Downs (hidden)'!A53))","v":""}]
[{"$f":"IFERROR(IF(INDEX('HIC (hidden)'!$B$3:$B$499,MATCH(0,COUNTIF('Drop Downs (hidden)'!$A$3:A53,'HIC (hidden)'!$B$3:$B$499),0))=0,\"\",INDEX('HIC (hidden)'!$B$3:$B$499,MATCH(0,COUNTIF('Drop Downs (hidden)'!$A$3:A53,'HIC (hidden)'!$B$3:$B$499),0))),\"\")","v":""},{"$f":"IF(A54=\"\",\"\",COUNTIF('HIC (hidden)'!B:B,'Drop Downs (hidden)'!A54))","v":""}]
[{"$f":"IFERROR(IF(INDEX('HIC (hidden)'!$B$3:$B$499,MATCH(0,COUNTIF('Drop Downs (hidden)'!$A$3:A54,'HIC (hidden)'!$B$3:$B$499),0))=0,\"\",INDEX('HIC (hidden)'!$B$3:$B$499,MATCH(0,COUNTIF('Drop Downs (hidden)'!$A$3:A54,'HIC (hidden)'!$B$3:$B$499),0))),\"\")","v":""},{"$f":"IF(A55=\"\",\"\",COUNTIF('HIC (hidden)'!B:B,'Drop Downs (hidden)'!A55))","v":""}]
[{"$f":"IFERROR(IF(INDEX('HIC (hidden)'!$B$3:$B$499,MATCH(0,COUNTIF('Drop Downs (hidden)'!$A$3:A55,'HIC (hidden)'!$B$3:$B$499),0))=0,\"\",INDEX('HIC (hidden)'!$B$3:$B$499,MATCH(0,COUNTIF('Drop Downs (hidden)'!$A$3:A55,'HIC (hidden)'!$B$3:$B$499),0))),\"\")","v":""},{"$f":"IF(A56=\"\",\"\",COUNTIF('HIC (hidden)'!B:B,'Drop Downs (hidden)'!A56))","v":""}]
[{"$f":"IFERROR(IF(INDEX('HIC (hidden)'!$B$3:$B$499,MATCH(0,COUNTIF('Drop Downs (hidden)'!$A$3:A56,'HIC (hidden)'!$B$3:$B$499),0))=0,\"\",INDEX('HIC (hidden)'!$B$3:$B$499,MATCH(0,COUNTIF('Drop Downs (hidden)'!$A$3:A56,'HIC (hidden)'!$B$3:$B$499),0))),\"\")","v":""},{"$f":"IF(A57=\"\",\"\",COUNTIF('HIC (hidden)'!B:B,'Drop Downs (hidden)'!A57))","v":""}]
[{"$f":"IFERROR(IF(INDEX('HIC (hidden)'!$B$3:$B$499,MATCH(0,COUNTIF('Drop Downs (hidden)'!$A$3:A57,'HIC (hidden)'!$B$3:$B$499),0))=0,\"\",INDEX('HIC (hidden)'!$B$3:$B$499,MATCH(0,COUNTIF('Drop Downs (hidden)'!$A$3:A57,'HIC (hidden)'!$B$3:$B$499),0))),\"\")","v":""},{"$f":"IF(A58=\"\",\"\",COUNTIF('HIC (hidden)'!B:B,'Drop Downs (hidden)'!A58))","v":""}]
[{"$f":"IFERROR(IF(INDEX('HIC (hidden)'!$B$3:$B$499,MATCH(0,COUNTIF('Drop Downs (hidden)'!$A$3:A58,'HIC (hidden)'!$B$3:$B$499),0))=0,\"\",INDEX('HIC (hidden)'!$B$3:$B$499,MATCH(0,COUNTIF('Drop Downs (hidden)'!$A$3:A58,'HIC (hidden)'!$B$3:$B$499),0))),\"\")","v":""},{"$f":"IF(A59=\"\",\"\",COUNTIF('HIC (hidden)'!B:B,'Drop Downs (hidden)'!A59))","v":""}]
[{"$f":"IFERROR(IF(INDEX('HIC (hidden)'!$B$3:$B$499,MATCH(0,COUNTIF('Drop Downs (hidden)'!$A$3:A59,'HIC (hidden)'!$B$3:$B$499),0))=0,\"\",INDEX('HIC (hidden)'!$B$3:$B$499,MATCH(0,COUNTIF('Drop Downs (hidden)'!$A$3:A59,'HIC (hidden)'!$B$3:$B$499),0))),\"\")","v":""},{"$f":"IF(A60=\"\",\"\",COUNTIF('HIC (hidden)'!B:B,'Drop Downs (hidden)'!A60))","v":""}]
[{"$f":"IFERROR(IF(INDEX('HIC (hidden)'!$B$3:$B$499,MATCH(0,COUNTIF('Drop Downs (hidden)'!$A$3:A60,'HIC (hidden)'!$B$3:$B$499),0))=0,\"\",INDEX('HIC (hidden)'!$B$3:$B$499,MATCH(0,COUNTIF('Drop Downs (hidden)'!$A$3:A60,'HIC (hidden)'!$B$3:$B$499),0))),\"\")","v":""},{"$f":"IF(A61=\"\",\"\",COUNTIF('HIC (hidden)'!B:B,'Drop Downs (hidden)'!A61))","v":""}]
[{"$f":"IFERROR(IF(INDEX('HIC (hidden)'!$B$3:$B$499,MATCH(0,COUNTIF('Drop Downs (hidden)'!$A$3:A61,'HIC (hidden)'!$B$3:$B$499),0))=0,\"\",INDEX('HIC (hidden)'!$B$3:$B$499,MATCH(0,COUNTIF('Drop Downs (hidden)'!$A$3:A61,'HIC (hidden)'!$B$3:$B$499),0))),\"\")","v":""},{"$f":"IF(A62=\"\",\"\",COUNTIF('HIC (hidden)'!B:B,'Drop Downs (hidden)'!A62))","v":""}]
[{"$f":"IFERROR(IF(INDEX('HIC (hidden)'!$B$3:$B$499,MATCH(0,COUNTIF('Drop Downs (hidden)'!$A$3:A62,'HIC (hidden)'!$B$3:$B$499),0))=0,\"\",INDEX('HIC (hidden)'!$B$3:$B$499,MATCH(0,COUNTIF('Drop Downs (hidden)'!$A$3:A62,'HIC (hidden)'!$B$3:$B$499),0))),\"\")","v":""},{"$f":"IF(A63=\"\",\"\",COUNTIF('HIC (hidden)'!B:B,'Drop Downs (hidden)'!A63))","v":""}]
[{"$f":"IFERROR(IF(INDEX('HIC (hidden)'!$B$3:$B$499,MATCH(0,COUNTIF('Drop Downs (hidden)'!$A$3:A63,'HIC (hidden)'!$B$3:$B$499),0))=0,\"\",INDEX('HIC (hidden)'!$B$3:$B$499,MATCH(0,COUNTIF('Drop Downs (hidden)'!$A$3:A63,'HIC (hidden)'!$B$3:$B$499),0))),\"\")","v":""},{"$f":"IF(A64=\"\",\"\",COUNTIF('HIC (hidden)'!B:B,'Drop Downs (hidden)'!A64))","v":""}]
[{"$f":"IFERROR(IF(INDEX('HIC (hidden)'!$B$3:$B$499,MATCH(0,COUNTIF('Drop Downs (hidden)'!$A$3:A64,'HIC (hidden)'!$B$3:$B$499),0))=0,\"\",INDEX('HIC (hidden)'!$B$3:$B$499,MATCH(0,COUNTIF('Drop Downs (hidden)'!$A$3:A64,'HIC (hidden)'!$B$3:$B$499),0))),\"\")","v":""},{"$f":"IF(A65=\"\",\"\",COUNTIF('HIC (hidden)'!B:B,'Drop Downs (hidden)'!A65))","v":""}]
[{"$f":"IFERROR(IF(INDEX('HIC (hidden)'!$B$3:$B$499,MATCH(0,COUNTIF('Drop Downs (hidden)'!$A$3:A65,'HIC (hidden)'!$B$3:$B$499),0))=0,\"\",INDEX('HIC (hidden)'!$B$3:$B$499,MATCH(0,COUNTIF('Drop Downs (hidden)'!$A$3:A65,'HIC (hidden)'!$B$3:$B$499),0))),\"\")","v":""},{"$f":"IF(A66=\"\",\"\",COUNTIF('HIC (hidden)'!B:B,'Drop Downs (hidden)'!A66))","v":""}]
[{"$f":"IFERROR(IF(INDEX('HIC (hidden)'!$B$3:$B$499,MATCH(0,COUNTIF('Drop Downs (hidden)'!$A$3:A66,'HIC (hidden)'!$B$3:$B$499),0))=0,\"\",INDEX('HIC (hidden)'!$B$3:$B$499,MATCH(0,COUNTIF('Drop Downs (hidden)'!$A$3:A66,'HIC (hidden)'!$B$3:$B$499),0))),\"\")","v":""},{"$f":"IF(A67=\"\",\"\",COUNTIF('HIC (hidden)'!B:B,'Drop Downs (hidden)'!A67))","v":""}]
[{"$f":"IFERROR(IF(INDEX('HIC (hidden)'!$B$3:$B$499,MATCH(0,COUNTIF('Drop Downs (hidden)'!$A$3:A67,'HIC (hidden)'!$B$3:$B$499),0))=0,\"\",INDEX('HIC (hidden)'!$B$3:$B$499,MATCH(0,COUNTIF('Drop Downs (hidden)'!$A$3:A67,'HIC (hidden)'!$B$3:$B$499),0))),\"\")","v":""},{"$f":"IF(A68=\"\",\"\",COUNTIF('HIC (hidden)'!B:B,'Drop Downs (hidden)'!A68))","v":""}]
[{"$f":"IFERROR(IF(INDEX('HIC (hidden)'!$B$3:$B$499,MATCH(0,COUNTIF('Drop Downs (hidden)'!$A$3:A68,'HIC (hidden)'!$B$3:$B$499),0))=0,\"\",INDEX('HIC (hidden)'!$B$3:$B$499,MATCH(0,COUNTIF('Drop Downs (hidden)'!$A$3:A68,'HIC (hidden)'!$B$3:$B$499),0))),\"\")","v":""},{"$f":"IF(A69=\"\",\"\",COUNTIF('HIC (hidden)'!B:B,'Drop Downs (hidden)'!A69))","v":""}]
[{"$f":"IFERROR(IF(INDEX('HIC (hidden)'!$B$3:$B$499,MATCH(0,COUNTIF('Drop Downs (hidden)'!$A$3:A69,'HIC (hidden)'!$B$3:$B$499),0))=0,\"\",INDEX('HIC (hidden)'!$B$3:$B$499,MATCH(0,COUNTIF('Drop Downs (hidden)'!$A$3:A69,'HIC (hidden)'!$B$3:$B$499),0))),\"\")","v":""},{"$f":"IF(A70=\"\",\"\",COUNTIF('HIC (hidden)'!B:B,'Drop Downs (hidden)'!A70))","v":""}]
[{"$f":"IFERROR(IF(INDEX('HIC (hidden)'!$B$3:$B$499,MATCH(0,COUNTIF('Drop Downs (hidden)'!$A$3:A70,'HIC (hidden)'!$B$3:$B$499),0))=0,\"\",INDEX('HIC (hidden)'!$B$3:$B$499,MATCH(0,COUNTIF('Drop Downs (hidden)'!$A$3:A70,'HIC (hidden)'!$B$3:$B$499),0))),\"\")","v":""},{"$f":"IF(A71=\"\",\"\",COUNTIF('HIC (hidden)'!B:B,'Drop Downs (hidden)'!A71))","v":""}]
[{"$f":"IFERROR(IF(INDEX('HIC (hidden)'!$B$3:$B$499,MATCH(0,COUNTIF('Drop Downs (hidden)'!$A$3:A71,'HIC (hidden)'!$B$3:$B$499),0))=0,\"\",INDEX('HIC (hidden)'!$B$3:$B$499,MATCH(0,COUNTIF('Drop Downs (hidden)'!$A$3:A71,'HIC (hidden)'!$B$3:$B$499),0))),\"\")","v":""},{"$f":"IF(A72=\"\",\"\",COUNTIF('HIC (hidden)'!B:B,'Drop Downs (hidden)'!A72))","v":""}]
[{"$f":"IFERROR(IF(INDEX('HIC (hidden)'!$B$3:$B$499,MATCH(0,COUNTIF('Drop Downs (hidden)'!$A$3:A72,'HIC (hidden)'!$B$3:$B$499),0))=0,\"\",INDEX('HIC (hidden)'!$B$3:$B$499,MATCH(0,COUNTIF('Drop Downs (hidden)'!$A$3:A72,'HIC (hidden)'!$B$3:$B$499),0))),\"\")","v":""},{"$f":"IF(A73=\"\",\"\",COUNTIF('HIC (hidden)'!B:B,'Drop Downs (hidden)'!A73))","v":""}]
[{"$f":"IFERROR(IF(INDEX('HIC (hidden)'!$B$3:$B$499,MATCH(0,COUNTIF('Drop Downs (hidden)'!$A$3:A73,'HIC (hidden)'!$B$3:$B$499),0))=0,\"\",INDEX('HIC (hidden)'!$B$3:$B$499,MATCH(0,COUNTIF('Drop Downs (hidden)'!$A$3:A73,'HIC (hidden)'!$B$3:$B$499),0))),\"\")","v":""},{"$f":"IF(A74=\"\",\"\",COUNTIF('HIC (hidden)'!B:B,'Drop Downs (hidden)'!A74))","v":""}]
[{"$f":"IFERROR(IF(INDEX('HIC (hidden)'!$B$3:$B$499,MATCH(0,COUNTIF('Drop Downs (hidden)'!$A$3:A74,'HIC (hidden)'!$B$3:$B$499),0))=0,\"\",INDEX('HIC (hidden)'!$B$3:$B$499,MATCH(0,COUNTIF('Drop Downs (hidden)'!$A$3:A74,'HIC (hidden)'!$B$3:$B$499),0))),\"\")","v":""},{"$f":"IF(A75=\"\",\"\",COUNTIF('HIC (hidden)'!B:B,'Drop Downs (hidden)'!A75))","v":""}]
[{"$f":"IFERROR(IF(INDEX('HIC (hidden)'!$B$3:$B$499,MATCH(0,COUNTIF('Drop Downs (hidden)'!$A$3:A75,'HIC (hidden)'!$B$3:$B$499),0))=0,\"\",INDEX('HIC (hidden)'!$B$3:$B$499,MATCH(0,COUNTIF('Drop Downs (hidden)'!$A$3:A75,'HIC (hidden)'!$B$3:$B$499),0))),\"\")","v":""},{"$f":"IF(A76=\"\",\"\",COUNTIF('HIC (hidden)'!B:B,'Drop Downs (hidden)'!A76))","v":""}]
[{"$f":"IFERROR(IF(INDEX('HIC (hidden)'!$B$3:$B$499,MATCH(0,COUNTIF('Drop Downs (hidden)'!$A$3:A76,'HIC (hidden)'!$B$3:$B$499),0))=0,\"\",INDEX('HIC (hidden)'!$B$3:$B$499,MATCH(0,COUNTIF('Drop Downs (hidden)'!$A$3:A76,'HIC (hidden)'!$B$3:$B$499),0))),\"\")","v":""},{"$f":"IF(A77=\"\",\"\",COUNTIF('HIC (hidden)'!B:B,'Drop Downs (hidden)'!A77))","v":""}]
[{"$f":"IFERROR(IF(INDEX('HIC (hidden)'!$B$3:$B$499,MATCH(0,COUNTIF('Drop Downs (hidden)'!$A$3:A77,'HIC (hidden)'!$B$3:$B$499),0))=0,\"\",INDEX('HIC (hidden)'!$B$3:$B$499,MATCH(0,COUNTIF('Drop Downs (hidden)'!$A$3:A77,'HIC (hidden)'!$B$3:$B$499),0))),\"\")","v":""},{"$f":"IF(A78=\"\",\"\",COUNTIF('HIC (hidden)'!B:B,'Drop Downs (hidden)'!A78))","v":""}]
[{"$f":"IFERROR(IF(INDEX('HIC (hidden)'!$B$3:$B$499,MATCH(0,COUNTIF('Drop Downs (hidden)'!$A$3:A78,'HIC (hidden)'!$B$3:$B$499),0))=0,\"\",INDEX('HIC (hidden)'!$B$3:$B$499,MATCH(0,COUNTIF('Drop Downs (hidden)'!$A$3:A78,'HIC (hidden)'!$B$3:$B$499),0))),\"\")","v":""},{"$f":"IF(A79=\"\",\"\",COUNTIF('HIC (hidden)'!B:B,'Drop Downs (hidden)'!A79))","v":""}]
[{"$f":"IFERROR(IF(INDEX('HIC (hidden)'!$B$3:$B$499,MATCH(0,COUNTIF('Drop Downs (hidden)'!$A$3:A79,'HIC (hidden)'!$B$3:$B$499),0))=0,\"\",INDEX('HIC (hidden)'!$B$3:$B$499,MATCH(0,COUNTIF('Drop Downs (hidden)'!$A$3:A79,'HIC (hidden)'!$B$3:$B$499),0))),\"\")","v":""},{"$f":"IF(A80=\"\",\"\",COUNTIF('HIC (hidden)'!B:B,'Drop Downs (hidden)'!A80))","v":""}]
[{"$f":"IFERROR(IF(INDEX('HIC (hidden)'!$B$3:$B$499,MATCH(0,COUNTIF('Drop Downs (hidden)'!$A$3:A80,'HIC (hidden)'!$B$3:$B$499),0))=0,\"\",INDEX('HIC (hidden)'!$B$3:$B$499,MATCH(0,COUNTIF('Drop Downs (hidden)'!$A$3:A80,'HIC (hidden)'!$B$3:$B$499),0))),\"\")","v":""},{"$f":"IF(A81=\"\",\"\",COUNTIF('HIC (hidden)'!B:B,'Drop Downs (hidden)'!A81))","v":""}]
[{"$f":"IFERROR(IF(INDEX('HIC (hidden)'!$B$3:$B$499,MATCH(0,COUNTIF('Drop Downs (hidden)'!$A$3:A81,'HIC (hidden)'!$B$3:$B$499),0))=0,\"\",INDEX('HIC (hidden)'!$B$3:$B$499,MATCH(0,COUNTIF('Drop Downs (hidden)'!$A$3:A81,'HIC (hidden)'!$B$3:$B$499),0))),\"\")","v":""},{"$f":"IF(A82=\"\",\"\",COUNTIF('HIC (hidden)'!B:B,'Drop Downs (hidden)'!A82))","v":""}]
[{"$f":"IFERROR(IF(INDEX('HIC (hidden)'!$B$3:$B$499,MATCH(0,COUNTIF('Drop Downs (hidden)'!$A$3:A82,'HIC (hidden)'!$B$3:$B$499),0))=0,\"\",INDEX('HIC (hidden)'!$B$3:$B$499,MATCH(0,COUNTIF('Drop Downs (hidden)'!$A$3:A82,'HIC (hidden)'!$B$3:$B$499),0))),\"\")","v":""},{"$f":"IF(A83=\"\",\"\",COUNTIF('HIC (hidden)'!B:B,'Drop Downs (hidden)'!A83))","v":""}]
[{"$f":"IFERROR(IF(INDEX('HIC (hidden)'!$B$3:$B$499,MATCH(0,COUNTIF('Drop Downs (hidden)'!$A$3:A83,'HIC (hidden)'!$B$3:$B$499),0))=0,\"\",INDEX('HIC (hidden)'!$B$3:$B$499,MATCH(0,COUNTIF('Drop Downs (hidden)'!$A$3:A83,'HIC (hidden)'!$B$3:$B$499),0))),\"\")","v":""},{"$f":"IF(A84=\"\",\"\",COUNTIF('HIC (hidden)'!B:B,'Drop Downs (hidden)'!A84))","v":""}]
[{"$f":"IFERROR(IF(INDEX('HIC (hidden)'!$B$3:$B$499,MATCH(0,COUNTIF('Drop Downs (hidden)'!$A$3:A84,'HIC (hidden)'!$B$3:$B$499),0))=0,\"\",INDEX('HIC (hidden)'!$B$3:$B$499,MATCH(0,COUNTIF('Drop Downs (hidden)'!$A$3:A84,'HIC (hidden)'!$B$3:$B$499),0))),\"\")","v":""},{"$f":"IF(A85=\"\",\"\",COUNTIF('HIC (hidden)'!B:B,'Drop Downs (hidden)'!A85))","v":""}]
[{"$f":"IFERROR(IF(INDEX('HIC (hidden)'!$B$3:$B$499,MATCH(0,COUNTIF('Drop Downs (hidden)'!$A$3:A85,'HIC (hidden)'!$B$3:$B$499),0))=0,\"\",INDEX('HIC (hidden)'!$B$3:$B$499,MATCH(0,COUNTIF('Drop Downs (hidden)'!$A$3:A85,'HIC (hidden)'!$B$3:$B$499),0))),\"\")","v":""},{"$f":"IF(A86=\"\",\"\",COUNTIF('HIC (hidden)'!B:B,'Drop Downs (hidden)'!A86))","v":""}]
[{"$f":"IFERROR(IF(INDEX('HIC (hidden)'!$B$3:$B$499,MATCH(0,COUNTIF('Drop Downs (hidden)'!$A$3:A86,'HIC (hidden)'!$B$3:$B$499),0))=0,\"\",INDEX('HIC (hidden)'!$B$3:$B$499,MATCH(0,COUNTIF('Drop Downs (hidden)'!$A$3:A86,'HIC (hidden)'!$B$3:$B$499),0))),\"\")","v":""},{"$f":"IF(A87=\"\",\"\",COUNTIF('HIC (hidden)'!B:B,'Drop Downs (hidden)'!A87))","v":""}]
[{"$f":"IFERROR(IF(INDEX('HIC (hidden)'!$B$3:$B$499,MATCH(0,COUNTIF('Drop Downs (hidden)'!$A$3:A87,'HIC (hidden)'!$B$3:$B$499),0))=0,\"\",INDEX('HIC (hidden)'!$B$3:$B$499,MATCH(0,COUNTIF('Drop Downs (hidden)'!$A$3:A87,'HIC (hidden)'!$B$3:$B$499),0))),\"\")","v":""},{"$f":"IF(A88=\"\",\"\",COUNTIF('HIC (hidden)'!B:B,'Drop Downs (hidden)'!A88))","v":""}]
[{"$f":"IFERROR(IF(INDEX('HIC (hidden)'!$B$3:$B$499,MATCH(0,COUNTIF('Drop Downs (hidden)'!$A$3:A88,'HIC (hidden)'!$B$3:$B$499),0))=0,\"\",INDEX('HIC (hidden)'!$B$3:$B$499,MATCH(0,COUNTIF('Drop Downs (hidden)'!$A$3:A88,'HIC (hidden)'!$B$3:$B$499),0))),\"\")","v":""},{"$f":"IF(A89=\"\",\"\",COUNTIF('HIC (hidden)'!B:B,'Drop Downs (hidden)'!A89))","v":""}]
[{"$f":"IFERROR(IF(INDEX('HIC (hidden)'!$B$3:$B$499,MATCH(0,COUNTIF('Drop Downs (hidden)'!$A$3:A89,'HIC (hidden)'!$B$3:$B$499),0))=0,\"\",INDEX('HIC (hidden)'!$B$3:$B$499,MATCH(0,COUNTIF('Drop Downs (hidden)'!$A$3:A89,'HIC (hidden)'!$B$3:$B$499),0))),\"\")","v":""},{"$f":"IF(A90=\"\",\"\",COUNTIF('HIC (hidden)'!B:B,'Drop Downs (hidden)'!A90))","v":""}]
[{"$f":"IFERROR(IF(INDEX('HIC (hidden)'!$B$3:$B$499,MATCH(0,COUNTIF('Drop Downs (hidden)'!$A$3:A90,'HIC (hidden)'!$B$3:$B$499),0))=0,\"\",INDEX('HIC (hidden)'!$B$3:$B$499,MATCH(0,COUNTIF('Drop Downs (hidden)'!$A$3:A90,'HIC (hidden)'!$B$3:$B$499),0))),\"\")","v":""},{"$f":"IF(A91=\"\",\"\",COUNTIF('HIC (hidden)'!B:B,'Drop Downs (hidden)'!A91))","v":""}]
[{"$f":"IFERROR(IF(INDEX('HIC (hidden)'!$B$3:$B$499,MATCH(0,COUNTIF('Drop Downs (hidden)'!$A$3:A91,'HIC (hidden)'!$B$3:$B$499),0))=0,\"\",INDEX('HIC (hidden)'!$B$3:$B$499,MATCH(0,COUNTIF('Drop Downs (hidden)'!$A$3:A91,'HIC (hidden)'!$B$3:$B$499),0))),\"\")","v":""},{"$f":"IF(A92=\"\",\"\",COUNTIF('HIC (hidden)'!B:B,'Drop Downs (hidden)'!A92))","v":""}]
[{"$f":"IFERROR(IF(INDEX('HIC (hidden)'!$B$3:$B$499,MATCH(0,COUNTIF('Drop Downs (hidden)'!$A$3:A92,'HIC (hidden)'!$B$3:$B$499),0))=0,\"\",INDEX('HIC (hidden)'!$B$3:$B$499,MATCH(0,COUNTIF('Drop Downs (hidden)'!$A$3:A92,'HIC (hidden)'!$B$3:$B$499),0))),\"\")","v":""},{"$f":"IF(A93=\"\",\"\",COUNTIF('HIC (hidden)'!B:B,'Drop Downs (hidden)'!A93))","v":""}]
[{"$f":"IFERROR(IF(INDEX('HIC (hidden)'!$B$3:$B$499,MATCH(0,COUNTIF('Drop Downs (hidden)'!$A$3:A93,'HIC (hidden)'!$B$3:$B$499),0))=0,\"\",INDEX('HIC (hidden)'!$B$3:$B$499,MATCH(0,COUNTIF('Drop Downs (hidden)'!$A$3:A93,'HIC (hidden)'!$B$3:$B$499),0))),\"\")","v":""},{"$f":"IF(A94=\"\",\"\",COUNTIF('HIC (hidden)'!B:B,'Drop Downs (hidden)'!A94))","v":""}]
[{"$f":"IFERROR(IF(INDEX('HIC (hidden)'!$B$3:$B$499,MATCH(0,COUNTIF('Drop Downs (hidden)'!$A$3:A94,'HIC (hidden)'!$B$3:$B$499),0))=0,\"\",INDEX('HIC (hidden)'!$B$3:$B$499,MATCH(0,COUNTIF('Drop Downs (hidden)'!$A$3:A94,'HIC (hidden)'!$B$3:$B$499),0))),\"\")","v":""},{"$f":"IF(A95=\"\",\"\",COUNTIF('HIC (hidden)'!B:B,'Drop Downs (hidden)'!A95))","v":""}]
[{"$f":"IFERROR(IF(INDEX('HIC (hidden)'!$B$3:$B$499,MATCH(0,COUNTIF('Drop Downs (hidden)'!$A$3:A95,'HIC (hidden)'!$B$3:$B$499),0))=0,\"\",INDEX('HIC (hidden)'!$B$3:$B$499,MATCH(0,COUNTIF('Drop Downs (hidden)'!$A$3:A95,'HIC (hidden)'!$B$3:$B$499),0))),\"\")","v":""},{"$f":"IF(A96=\"\",\"\",COUNTIF('HIC (hidden)'!B:B,'Drop Downs (hidden)'!A96))","v":""}]
[{"$f":"IFERROR(IF(INDEX('HIC (hidden)'!$B$3:$B$499,MATCH(0,COUNTIF('Drop Downs (hidden)'!$A$3:A96,'HIC (hidden)'!$B$3:$B$499),0))=0,\"\",INDEX('HIC (hidden)'!$B$3:$B$499,MATCH(0,COUNTIF('Drop Downs (hidden)'!$A$3:A96,'HIC (hidden)'!$B$3:$B$499),0))),\"\")","v":""},{"$f":"IF(A97=\"\",\"\",COUNTIF('HIC (hidden)'!B:B,'Drop Downs (hidden)'!A97))","v":""}]
[{"$f":"IFERROR(IF(INDEX('HIC (hidden)'!$B$3:$B$499,MATCH(0,COUNTIF('Drop Downs (hidden)'!$A$3:A97,'HIC (hidden)'!$B$3:$B$499),0))=0,\"\",INDEX('HIC (hidden)'!$B$3:$B$499,MATCH(0,COUNTIF('Drop Downs (hidden)'!$A$3:A97,'HIC (hidden)'!$B$3:$B$499),0))),\"\")","v":""},{"$f":"IF(A98=\"\",\"\",COUNTIF('HIC (hidden)'!B:B,'Drop Downs (hidden)'!A98))","v":""}]
[{"$f":"IFERROR(IF(INDEX('HIC (hidden)'!$B$3:$B$499,MATCH(0,COUNTIF('Drop Downs (hidden)'!$A$3:A98,'HIC (hidden)'!$B$3:$B$499),0))=0,\"\",INDEX('HIC (hidden)'!$B$3:$B$499,MATCH(0,COUNTIF('Drop Downs (hidden)'!$A$3:A98,'HIC (hidden)'!$B$3:$B$499),0))),\"\")","v":""},{"$f":"IF(A99=\"\",\"\",COUNTIF('HIC (hidden)'!B:B,'Drop Downs (hidden)'!A99))","v":""}]
[{"$f":"IFERROR(IF(INDEX('HIC (hidden)'!$B$3:$B$499,MATCH(0,COUNTIF('Drop Downs (hidden)'!$A$3:A99,'HIC (hidden)'!$B$3:$B$499),0))=0,\"\",INDEX('HIC (hidden)'!$B$3:$B$499,MATCH(0,COUNTIF('Drop Downs (hidden)'!$A$3:A99,'HIC (hidden)'!$B$3:$B$499),0))),\"\")","v":""},{"$f":"IF(A100=\"\",\"\",COUNTIF('HIC (hidden)'!B:B,'Drop Downs (hidden)'!A100))","v":""}]
[{"$f":"IFERROR(IF(INDEX('HIC (hidden)'!$B$3:$B$499,MATCH(0,COUNTIF('Drop Downs (hidden)'!$A$3:A100,'HIC (hidden)'!$B$3:$B$499),0))=0,\"\",INDEX('HIC (hidden)'!$B$3:$B$499,MATCH(0,COUNTIF('Drop Downs (hidden)'!$A$3:A100,'HIC (hidden)'!$B$3:$B$499),0))),\"\")","v":""},{"$f":"IF(A101=\"\",\"\",COUNTIF('HIC (hidden)'!B:B,'Drop Downs (hidden)'!A101))","v":""}]
[{"$f":"IFERROR(IF(INDEX('HIC (hidden)'!$B$3:$B$499,MATCH(0,COUNTIF('Drop Downs (hidden)'!$A$3:A101,'HIC (hidden)'!$B$3:$B$499),0))=0,\"\",INDEX('HIC (hidden)'!$B$3:$B$499,MATCH(0,COUNTIF('Drop Downs (hidden)'!$A$3:A101,'HIC (hidden)'!$B$3:$B$499),0))),\"\")","v":""},{"$f":"IF(A102=\"\",\"\",COUNTIF('HIC (hidden)'!B:B,'Drop Downs (hidden)'!A102))","v":""}]
[{"$f":"IFERROR(IF(INDEX('HIC (hidden)'!$B$3:$B$499,MATCH(0,COUNTIF('Drop Downs (hidden)'!$A$3:A102,'HIC (hidden)'!$B$3:$B$499),0))=0,\"\",INDEX('HIC (hidden)'!$B$3:$B$499,MATCH(0,COUNTIF('Drop Downs (hidden)'!$A$3:A102,'HIC (hidden)'!$B$3:$B$499),0))),\"\")","v":""},{"$f":"IF(A103=\"\",\"\",COUNTIF('HIC (hidden)'!B:B,'Drop Downs (hidden)'!A103))","v":""}]
[{"$f":"IFERROR(IF(INDEX('HIC (hidden)'!$B$3:$B$499,MATCH(0,COUNTIF('Drop Downs (hidden)'!$A$3:A103,'HIC (hidden)'!$B$3:$B$499),0))=0,\"\",INDEX('HIC (hidden)'!$B$3:$B$499,MATCH(0,COUNTIF('Drop Downs (hidden)'!$A$3:A103,'HIC (hidden)'!$B$3:$B$499),0))),\"\")","v":""},{"$f":"IF(A104=\"\",\"\",COUNTIF('HIC (hidden)'!B:B,'Drop Downs (hidden)'!A104))","v":""}]
[{"$f":"IFERROR(IF(INDEX('HIC (hidden)'!$B$3:$B$499,MATCH(0,COUNTIF('Drop Downs (hidden)'!$A$3:A104,'HIC (hidden)'!$B$3:$B$499),0))=0,\"\",INDEX('HIC (hidden)'!$B$3:$B$499,MATCH(0,COUNTIF('Drop Downs (hidden)'!$A$3:A104,'HIC (hidden)'!$B$3:$B$499),0))),\"\")","v":""},{"$f":"IF(A105=\"\",\"\",COUNTIF('HIC (hidden)'!B:B,'Drop Downs (hidden)'!A105))","v":""}]
[{"$f":"IFERROR(IF(INDEX('HIC (hidden)'!$B$3:$B$499,MATCH(0,COUNTIF('Drop Downs (hidden)'!$A$3:A105,'HIC (hidden)'!$B$3:$B$499),0))=0,\"\",INDEX('HIC (hidden)'!$B$3:$B$499,MATCH(0,COUNTIF('Drop Downs (hidden)'!$A$3:A105,'HIC (hidden)'!$B$3:$B$499),0))),\"\")","v":""},{"$f":"IF(A106=\"\",\"\",COUNTIF('HIC (hidden)'!B:B,'Drop Downs (hidden)'!A106))","v":""}]
[{"$f":"IFERROR(IF(INDEX('HIC (hidden)'!$B$3:$B$499,MATCH(0,COUNTIF('Drop Downs (hidden)'!$A$3:A106,'HIC (hidden)'!$B$3:$B$499),0))=0,\"\",INDEX('HIC (hidden)'!$B$3:$B$499,MATCH(0,COUNTIF('Drop Downs (hidden)'!$A$3:A106,'HIC (hidden)'!$B$3:$B$499),0))),\"\")","v":""},{"$f":"IF(A107=\"\",\"\",COUNTIF('HIC (hidden)'!B:B,'Drop Downs (hidden)'!A107))","v":""}]
[{"$f":"IFERROR(IF(INDEX('HIC (hidden)'!$B$3:$B$499,MATCH(0,COUNTIF('Drop Downs (hidden)'!$A$3:A107,'HIC (hidden)'!$B$3:$B$499),0))=0,\"\",INDEX('HIC (hidden)'!$B$3:$B$499,MATCH(0,COUNTIF('Drop Downs (hidden)'!$A$3:A107,'HIC (hidden)'!$B$3:$B$499),0))),\"\")","v":""},{"$f":"IF(A108=\"\",\"\",COUNTIF('HIC (hidden)'!B:B,'Drop Downs (hidden)'!A108))","v":""}]
[{"$f":"IFERROR(IF(INDEX('HIC (hidden)'!$B$3:$B$499,MATCH(0,COUNTIF('Drop Downs (hidden)'!$A$3:A108,'HIC (hidden)'!$B$3:$B$499),0))=0,\"\",INDEX('HIC (hidden)'!$B$3:$B$499,MATCH(0,COUNTIF('Drop Downs (hidden)'!$A$3:A108,'HIC (hidden)'!$B$3:$B$499),0))),\"\")","v":""},{"$f":"IF(A109=\"\",\"\",COUNTIF('HIC (hidden)'!B:B,'Drop Downs (hidden)'!A109))","v":""}]
[{"$f":"IFERROR(IF(INDEX('HIC (hidden)'!$B$3:$B$499,MATCH(0,COUNTIF('Drop Downs (hidden)'!$A$3:A109,'HIC (hidden)'!$B$3:$B$499),0))=0,\"\",INDEX('HIC (hidden)'!$B$3:$B$499,MATCH(0,COUNTIF('Drop Downs (hidden)'!$A$3:A109,'HIC (hidden)'!$B$3:$B$499),0))),\"\")","v":""},{"$f":"IF(A110=\"\",\"\",COUNTIF('HIC (hidden)'!B:B,'Drop Downs (hidden)'!A110))","v":""}]
[{"$f":"IFERROR(IF(INDEX('HIC (hidden)'!$B$3:$B$499,MATCH(0,COUNTIF('Drop Downs (hidden)'!$A$3:A110,'HIC (hidden)'!$B$3:$B$499),0))=0,\"\",INDEX('HIC (hidden)'!$B$3:$B$499,MATCH(0,COUNTIF('Drop Downs (hidden)'!$A$3:A110,'HIC (hidden)'!$B$3:$B$499),0))),\"\")","v":""},{"$f":"IF(A111=\"\",\"\",COUNTIF('HIC (hidden)'!B:B,'Drop Downs (hidden)'!A111))","v":""}]
[{"$f":"IFERROR(IF(INDEX('HIC (hidden)'!$B$3:$B$499,MATCH(0,COUNTIF('Drop Downs (hidden)'!$A$3:A111,'HIC (hidden)'!$B$3:$B$499),0))=0,\"\",INDEX('HIC (hidden)'!$B$3:$B$499,MATCH(0,COUNTIF('Drop Downs (hidden)'!$A$3:A111,'HIC (hidden)'!$B$3:$B$499),0))),\"\")","v":""},{"$f":"IF(A112=\"\",\"\",COUNTIF('HIC (hidden)'!B:B,'Drop Downs (hidden)'!A112))","v":""}]
[{"$f":"IFERROR(IF(INDEX('HIC (hidden)'!$B$3:$B$499,MATCH(0,COUNTIF('Drop Downs (hidden)'!$A$3:A112,'HIC (hidden)'!$B$3:$B$499),0))=0,\"\",INDEX('HIC (hidden)'!$B$3:$B$499,MATCH(0,COUNTIF('Drop Downs (hidden)'!$A$3:A112,'HIC (hidden)'!$B$3:$B$499),0))),\"\")","v":""},{"$f":"IF(A113=\"\",\"\",COUNTIF('HIC (hidden)'!B:B,'Drop Downs (hidden)'!A113))","v":""}]
[{"$f":"IFERROR(IF(INDEX('HIC (hidden)'!$B$3:$B$499,MATCH(0,COUNTIF('Drop Downs (hidden)'!$A$3:A113,'HIC (hidden)'!$B$3:$B$499),0))=0,\"\",INDEX('HIC (hidden)'!$B$3:$B$499,MATCH(0,COUNTIF('Drop Downs (hidden)'!$A$3:A113,'HIC (hidden)'!$B$3:$B$499),0))),\"\")","v":""},{"$f":"IF(A114=\"\",\"\",COUNTIF('HIC (hidden)'!B:B,'Drop Downs (hidden)'!A114))","v":""}]
[{"$f":"IFERROR(IF(INDEX('HIC (hidden)'!$B$3:$B$499,MATCH(0,COUNTIF('Drop Downs (hidden)'!$A$3:A114,'HIC (hidden)'!$B$3:$B$499),0))=0,\"\",INDEX('HIC (hidden)'!$B$3:$B$499,MATCH(0,COUNTIF('Drop Downs (hidden)'!$A$3:A114,'HIC (hidden)'!$B$3:$B$499),0))),\"\")","v":""},{"$f":"IF(A115=\"\",\"\",COUNTIF('HIC (hidden)'!B:B,'Drop Downs (hidden)'!A115))","v":""}]
[{"$f":"IFERROR(IF(INDEX('HIC (hidden)'!$B$3:$B$499,MATCH(0,COUNTIF('Drop Downs (hidden)'!$A$3:A115,'HIC (hidden)'!$B$3:$B$499),0))=0,\"\",INDEX('HIC (hidden)'!$B$3:$B$499,MATCH(0,COUNTIF('Drop Downs (hidden)'!$A$3:A115,'HIC (hidden)'!$B$3:$B$499),0))),\"\")","v":""},{"$f":"IF(A116=\"\",\"\",COUNTIF('HIC (hidden)'!B:B,'Drop Downs (hidden)'!A116))","v":""}]
[{"$f":"IFERROR(IF(INDEX('HIC (hidden)'!$B$3:$B$499,MATCH(0,COUNTIF('Drop Downs (hidden)'!$A$3:A116,'HIC (hidden)'!$B$3:$B$499),0))=0,\"\",INDEX('HIC (hidden)'!$B$3:$B$499,MATCH(0,COUNTIF('Drop Downs (hidden)'!$A$3:A116,'HIC (hidden)'!$B$3:$B$499),0))),\"\")","v":""},{"$f":"IF(A117=\"\",\"\",COUNTIF('HIC (hidden)'!B:B,'Drop Downs (hidden)'!A117))","v":""}]
[{"$f":"IFERROR(IF(INDEX('HIC (hidden)'!$B$3:$B$499,MATCH(0,COUNTIF('Drop Downs (hidden)'!$A$3:A117,'HIC (hidden)'!$B$3:$B$499),0))=0,\"\",INDEX('HIC (hidden)'!$B$3:$B$499,MATCH(0,COUNTIF('Drop Downs (hidden)'!$A$3:A117,'HIC (hidden)'!$B$3:$B$499),0))),\"\")","v":""},{"$f":"IF(A118=\"\",\"\",COUNTIF('HIC (hidden)'!B:B,'Drop Downs (hidden)'!A118))","v":""}]
[{"$f":"IFERROR(IF(INDEX('HIC (hidden)'!$B$3:$B$499,MATCH(0,COUNTIF('Drop Downs (hidden)'!$A$3:A118,'HIC (hidden)'!$B$3:$B$499),0))=0,\"\",INDEX('HIC (hidden)'!$B$3:$B$499,MATCH(0,COUNTIF('Drop Downs (hidden)'!$A$3:A118,'HIC (hidden)'!$B$3:$B$499),0))),\"\")","v":""},{"$f":"IF(A119=\"\",\"\",COUNTIF('HIC (hidden)'!B:B,'Drop Downs (hidden)'!A119))","v":""}]
[{"$f":"IFERROR(IF(INDEX('HIC (hidden)'!$B$3:$B$499,MATCH(0,COUNTIF('Drop Downs (hidden)'!$A$3:A119,'HIC (hidden)'!$B$3:$B$499),0))=0,\"\",INDEX('HIC (hidden)'!$B$3:$B$499,MATCH(0,COUNTIF('Drop Downs (hidden)'!$A$3:A119,'HIC (hidden)'!$B$3:$B$499),0))),\"\")","v":""},{"$f":"IF(A120=\"\",\"\",COUNTIF('HIC (hidden)'!B:B,'Drop Downs (hidden)'!A120))","v":""}]
[{"$f":"IFERROR(IF(INDEX('HIC (hidden)'!$B$3:$B$499,MATCH(0,COUNTIF('Drop Downs (hidden)'!$A$3:A120,'HIC (hidden)'!$B$3:$B$499),0))=0,\"\",INDEX('HIC (hidden)'!$B$3:$B$499,MATCH(0,COUNTIF('Drop Downs (hidden)'!$A$3:A120,'HIC (hidden)'!$B$3:$B$499),0))),\"\")","v":""},{"$f":"IF(A121=\"\",\"\",COUNTIF('HIC (hidden)'!B:B,'Drop Downs (hidden)'!A121))","v":""}]
[{"$f":"IFERROR(IF(INDEX('HIC (hidden)'!$B$3:$B$499,MATCH(0,COUNTIF('Drop Downs (hidden)'!$A$3:A121,'HIC (hidden)'!$B$3:$B$499),0))=0,\"\",INDEX('HIC (hidden)'!$B$3:$B$499,MATCH(0,COUNTIF('Drop Downs (hidden)'!$A$3:A121,'HIC (hidden)'!$B$3:$B$499),0))),\"\")","v":""},{"$f":"IF(A122=\"\",\"\",COUNTIF('HIC (hidden)'!B:B,'Drop Downs (hidden)'!A122))","v":""}]
[{"$f":"IFERROR(IF(INDEX('HIC (hidden)'!$B$3:$B$499,MATCH(0,COUNTIF('Drop Downs (hidden)'!$A$3:A122,'HIC (hidden)'!$B$3:$B$499),0))=0,\"\",INDEX('HIC (hidden)'!$B$3:$B$499,MATCH(0,COUNTIF('Drop Downs (hidden)'!$A$3:A122,'HIC (hidden)'!$B$3:$B$499),0))),\"\")","v":""},{"$f":"IF(A123=\"\",\"\",COUNTIF('HIC (hidden)'!B:B,'Drop Downs (hidden)'!A123))","v":""}]
[{"$f":"IFERROR(IF(INDEX('HIC (hidden)'!$B$3:$B$499,MATCH(0,COUNTIF('Drop Downs (hidden)'!$A$3:A123,'HIC (hidden)'!$B$3:$B$499),0))=0,\"\",INDEX('HIC (hidden)'!$B$3:$B$499,MATCH(0,COUNTIF('Drop Downs (hidden)'!$A$3:A123,'HIC (hidden)'!$B$3:$B$499),0))),\"\")","v":""},{"$f":"IF(A124=\"\",\"\",COUNTIF('HIC (hidden)'!B:B,'Drop Downs (hidden)'!A124))","v":""}]
[{"$f":"IFERROR(IF(INDEX('HIC (hidden)'!$B$3:$B$499,MATCH(0,COUNTIF('Drop Downs (hidden)'!$A$3:A124,'HIC (hidden)'!$B$3:$B$499),0))=0,\"\",INDEX('HIC (hidden)'!$B$3:$B$499,MATCH(0,COUNTIF('Drop Downs (hidden)'!$A$3:A124,'HIC (hidden)'!$B$3:$B$499),0))),\"\")","v":""},{"$f":"IF(A125=\"\",\"\",COUNTIF('HIC (hidden)'!B:B,'Drop Downs (hidden)'!A125))","v":""}]
[{"$f":"IFERROR(IF(INDEX('HIC (hidden)'!$B$3:$B$499,MATCH(0,COUNTIF('Drop Downs (hidden)'!$A$3:A125,'HIC (hidden)'!$B$3:$B$499),0))=0,\"\",INDEX('HIC (hidden)'!$B$3:$B$499,MATCH(0,COUNTIF('Drop Downs (hidden)'!$A$3:A125,'HIC (hidden)'!$B$3:$B$499),0))),\"\")","v":""},{"$f":"IF(A126=\"\",\"\",COUNTIF('HIC (hidden)'!B:B,'Drop Downs (hidden)'!A126))","v":""}]
[{"$f":"IFERROR(IF(INDEX('HIC (hidden)'!$B$3:$B$499,MATCH(0,COUNTIF('Drop Downs (hidden)'!$A$3:A126,'HIC (hidden)'!$B$3:$B$499),0))=0,\"\",INDEX('HIC (hidden)'!$B$3:$B$499,MATCH(0,COUNTIF('Drop Downs (hidden)'!$A$3:A126,'HIC (hidden)'!$B$3:$B$499),0))),\"\")","v":""},{"$f":"IF(A127=\"\",\"\",COUNTIF('HIC (hidden)'!B:B,'Drop Downs (hidden)'!A127))","v":""}]
[{"$f":"IFERROR(IF(INDEX('HIC (hidden)'!$B$3:$B$499,MATCH(0,COUNTIF('Drop Downs (hidden)'!$A$3:A127,'HIC (hidden)'!$B$3:$B$499),0))=0,\"\",INDEX('HIC (hidden)'!$B$3:$B$499,MATCH(0,COUNTIF('Drop Downs (hidden)'!$A$3:A127,'HIC (hidden)'!$B$3:$B$499),0))),\"\")","v":""},{"$f":"IF(A128=\"\",\"\",COUNTIF('HIC (hidden)'!B:B,'Drop Downs (hidden)'!A128))","v":""}]
[{"$f":"IFERROR(IF(INDEX('HIC (hidden)'!$B$3:$B$499,MATCH(0,COUNTIF('Drop Downs (hidden)'!$A$3:A128,'HIC (hidden)'!$B$3:$B$499),0))=0,\"\",INDEX('HIC (hidden)'!$B$3:$B$499,MATCH(0,COUNTIF('Drop Downs (hidden)'!$A$3:A128,'HIC (hidden)'!$B$3:$B$499),0))),\"\")","v":""},{"$f":"IF(A129=\"\",\"\",COUNTIF('HIC (hidden)'!B:B,'Drop Downs (hidden)'!A129))","v":""}]
[{"$f":"IFERROR(IF(INDEX('HIC (hidden)'!$B$3:$B$499,MATCH(0,COUNTIF('Drop Downs (hidden)'!$A$3:A129,'HIC (hidden)'!$B$3:$B$499),0))=0,\"\",INDEX('HIC (hidden)'!$B$3:$B$499,MATCH(0,COUNTIF('Drop Downs (hidden)'!$A$3:A129,'HIC (hidden)'!$B$3:$B$499),0))),\"\")","v":""},{"$f":"IF(A130=\"\",\"\",COUNTIF('HIC (hidden)'!B:B,'Drop Downs (hidden)'!A130))","v":""}]
[{"$f":"IFERROR(IF(INDEX('HIC (hidden)'!$B$3:$B$499,MATCH(0,COUNTIF('Drop Downs (hidden)'!$A$3:A130,'HIC (hidden)'!$B$3:$B$499),0))=0,\"\",INDEX('HIC (hidden)'!$B$3:$B$499,MATCH(0,COUNTIF('Drop Downs (hidden)'!$A$3:A130,'HIC (hidden)'!$B$3:$B$499),0))),\"\")","v":""},{"$f":"IF(A131=\"\",\"\",COUNTIF('HIC (hidden)'!B:B,'Drop Downs (hidden)'!A131))","v":""}]
[{"$f":"IFERROR(IF(INDEX('HIC (hidden)'!$B$3:$B$499,MATCH(0,COUNTIF('Drop Downs (hidden)'!$A$3:A131,'HIC (hidden)'!$B$3:$B$499),0))=0,\"\",INDEX('HIC (hidden)'!$B$3:$B$499,MATCH(0,COUNTIF('Drop Downs (hidden)'!$A$3:A131,'HIC (hidden)'!$B$3:$B$499),0))),\"\")","v":""},{"$f":"IF(A132=\"\",\"\",COUNTIF('HIC (hidden)'!B:B,'Drop Downs (hidden)'!A132))","v":""}]
[{"$f":"IFERROR(IF(INDEX('HIC (hidden)'!$B$3:$B$499,MATCH(0,COUNTIF('Drop Downs (hidden)'!$A$3:A132,'HIC (hidden)'!$B$3:$B$499),0))=0,\"\",INDEX('HIC (hidden)'!$B$3:$B$499,MATCH(0,COUNTIF('Drop Downs (hidden)'!$A$3:A132,'HIC (hidden)'!$B$3:$B$499),0))),\"\")","v":""},{"$f":"IF(A133=\"\",\"\",COUNTIF('HIC (hidden)'!B:B,'Drop Downs (hidden)'!A133))","v":""}]
[{"$f":"IFERROR(IF(INDEX('HIC (hidden)'!$B$3:$B$499,MATCH(0,COUNTIF('Drop Downs (hidden)'!$A$3:A133,'HIC (hidden)'!$B$3:$B$499),0))=0,\"\",INDEX('HIC (hidden)'!$B$3:$B$499,MATCH(0,COUNTIF('Drop Downs (hidden)'!$A$3:A133,'HIC (hidden)'!$B$3:$B$499),0))),\"\")","v":""},{"$f":"IF(A134=\"\",\"\",COUNTIF('HIC (hidden)'!B:B,'Drop Downs (hidden)'!A134))","v":""}]
[{"$f":"IFERROR(IF(INDEX('HIC (hidden)'!$B$3:$B$499,MATCH(0,COUNTIF('Drop Downs (hidden)'!$A$3:A134,'HIC (hidden)'!$B$3:$B$499),0))=0,\"\",INDEX('HIC (hidden)'!$B$3:$B$499,MATCH(0,COUNTIF('Drop Downs (hidden)'!$A$3:A134,'HIC (hidden)'!$B$3:$B$499),0))),\"\")","v":""},{"$f":"IF(A135=\"\",\"\",COUNTIF('HIC (hidden)'!B:B,'Drop Downs (hidden)'!A135))","v":""}]
[{"$f":"IFERROR(IF(INDEX('HIC (hidden)'!$B$3:$B$499,MATCH(0,COUNTIF('Drop Downs (hidden)'!$A$3:A135,'HIC (hidden)'!$B$3:$B$499),0))=0,\"\",INDEX('HIC (hidden)'!$B$3:$B$499,MATCH(0,COUNTIF('Drop Downs (hidden)'!$A$3:A135,'HIC (hidden)'!$B$3:$B$499),0))),\"\")","v":""},{"$f":"IF(A136=\"\",\"\",COUNTIF('HIC (hidden)'!B:B,'Drop Downs (hidden)'!A136))","v":""}]
[{"$f":"IFERROR(IF(INDEX('HIC (hidden)'!$B$3:$B$499,MATCH(0,COUNTIF('Drop Downs (hidden)'!$A$3:A136,'HIC (hidden)'!$B$3:$B$499),0))=0,\"\",INDEX('HIC (hidden)'!$B$3:$B$499,MATCH(0,COUNTIF('Drop Downs (hidden)'!$A$3:A136,'HIC (hidden)'!$B$3:$B$499),0))),\"\")","v":""},{"$f":"IF(A137=\"\",\"\",COUNTIF('HIC (hidden)'!B:B,'Drop Downs (hidden)'!A137))","v":""}]
[{"$f":"IFERROR(IF(INDEX('HIC (hidden)'!$B$3:$B$499,MATCH(0,COUNTIF('Drop Downs (hidden)'!$A$3:A137,'HIC (hidden)'!$B$3:$B$499),0))=0,\"\",INDEX('HIC (hidden)'!$B$3:$B$499,MATCH(0,COUNTIF('Drop Downs (hidden)'!$A$3:A137,'HIC (hidden)'!$B$3:$B$499),0))),\"\")","v":""},{"$f":"IF(A138=\"\",\"\",COUNTIF('HIC (hidden)'!B:B,'Drop Downs (hidden)'!A138))","v":""}]
[{"$f":"IFERROR(IF(INDEX('HIC (hidden)'!$B$3:$B$499,MATCH(0,COUNTIF('Drop Downs (hidden)'!$A$3:A138,'HIC (hidden)'!$B$3:$B$499),0))=0,\"\",INDEX('HIC (hidden)'!$B$3:$B$499,MATCH(0,COUNTIF('Drop Downs (hidden)'!$A$3:A138,'HIC (hidden)'!$B$3:$B$499),0))),\"\")","v":""},{"$f":"IF(A139=\"\",\"\",COUNTIF('HIC (hidden)'!B:B,'Drop Downs (hidden)'!A139))","v":""}]
[{"$f":"IFERROR(IF(INDEX('HIC (hidden)'!$B$3:$B$499,MATCH(0,COUNTIF('Drop Downs (hidden)'!$A$3:A139,'HIC (hidden)'!$B$3:$B$499),0))=0,\"\",INDEX('HIC (hidden)'!$B$3:$B$499,MATCH(0,COUNTIF('Drop Downs (hidden)'!$A$3:A139,'HIC (hidden)'!$B$3:$B$499),0))),\"\")","v":""},{"$f":"IF(A140=\"\",\"\",COUNTIF('HIC (hidden)'!B:B,'Drop Downs (hidden)'!A140))","v":""}]
[{"$f":"IFERROR(IF(INDEX('HIC (hidden)'!$B$3:$B$499,MATCH(0,COUNTIF('Drop Downs (hidden)'!$A$3:A140,'HIC (hidden)'!$B$3:$B$499),0))=0,\"\",INDEX('HIC (hidden)'!$B$3:$B$499,MATCH(0,COUNTIF('Drop Downs (hidden)'!$A$3:A140,'HIC (hidden)'!$B$3:$B$499),0))),\"\")","v":""},{"$f":"IF(A141=\"\",\"\",COUNTIF('HIC (hidden)'!B:B,'Drop Downs (hidden)'!A141))","v":""}]
[{"$f":"IFERROR(IF(INDEX('HIC (hidden)'!$B$3:$B$499,MATCH(0,COUNTIF('Drop Downs (hidden)'!$A$3:A141,'HIC (hidden)'!$B$3:$B$499),0))=0,\"\",INDEX('HIC (hidden)'!$B$3:$B$499,MATCH(0,COUNTIF('Drop Downs (hidden)'!$A$3:A141,'HIC (hidden)'!$B$3:$B$499),0))),\"\")","v":""},{"$f":"IF(A142=\"\",\"\",COUNTIF('HIC (hidden)'!B:B,'Drop Downs (hidden)'!A142))","v":""}]
[{"$f":"IFERROR(IF(INDEX('HIC (hidden)'!$B$3:$B$499,MATCH(0,COUNTIF('Drop Downs (hidden)'!$A$3:A142,'HIC (hidden)'!$B$3:$B$499),0))=0,\"\",INDEX('HIC (hidden)'!$B$3:$B$499,MATCH(0,COUNTIF('Drop Downs (hidden)'!$A$3:A142,'HIC (hidden)'!$B$3:$B$499),0))),\"\")","v":""},{"$f":"IF(A143=\"\",\"\",COUNTIF('HIC (hidden)'!B:B,'Drop Downs (hidden)'!A143))","v":""}]
[{"$f":"IFERROR(IF(INDEX('HIC (hidden)'!$B$3:$B$499,MATCH(0,COUNTIF('Drop Downs (hidden)'!$A$3:A143,'HIC (hidden)'!$B$3:$B$499),0))=0,\"\",INDEX('HIC (hidden)'!$B$3:$B$499,MATCH(0,COUNTIF('Drop Downs (hidden)'!$A$3:A143,'HIC (hidden)'!$B$3:$B$499),0))),\"\")","v":""},{"$f":"IF(A144=\"\",\"\",COUNTIF('HIC (hidden)'!B:B,'Drop Downs (hidden)'!A144))","v":""}]
[{"$f":"IFERROR(IF(INDEX('HIC (hidden)'!$B$3:$B$499,MATCH(0,COUNTIF('Drop Downs (hidden)'!$A$3:A144,'HIC (hidden)'!$B$3:$B$499),0))=0,\"\",INDEX('HIC (hidden)'!$B$3:$B$499,MATCH(0,COUNTIF('Drop Downs (hidden)'!$A$3:A144,'HIC (hidden)'!$B$3:$B$499),0))),\"\")","v":""},{"$f":"IF(A145=\"\",\"\",COUNTIF('HIC (hidden)'!B:B,'Drop Downs (hidden)'!A145))","v":""}]
[{"$f":"IFERROR(IF(INDEX('HIC (hidden)'!$B$3:$B$499,MATCH(0,COUNTIF('Drop Downs (hidden)'!$A$3:A145,'HIC (hidden)'!$B$3:$B$499),0))=0,\"\",INDEX('HIC (hidden)'!$B$3:$B$499,MATCH(0,COUNTIF('Drop Downs (hidden)'!$A$3:A145,'HIC (hidden)'!$B$3:$B$499),0))),\"\")","v":""},{"$f":"IF(A146=\"\",\"\",COUNTIF('HIC (hidden)'!B:B,'Drop Downs (hidden)'!A146))","v":""}]
[{"$f":"IFERROR(IF(INDEX('HIC (hidden)'!$B$3:$B$499,MATCH(0,COUNTIF('Drop Downs (hidden)'!$A$3:A146,'HIC (hidden)'!$B$3:$B$499),0))=0,\"\",INDEX('HIC (hidden)'!$B$3:$B$499,MATCH(0,COUNTIF('Drop Downs (hidden)'!$A$3:A146,'HIC (hidden)'!$B$3:$B$499),0))),\"\")","v":""},{"$f":"IF(A147=\"\",\"\",COUNTIF('HIC (hidden)'!B:B,'Drop Downs (hidden)'!A147))","v":""}]
[{"$f":"IFERROR(IF(INDEX('HIC (hidden)'!$B$3:$B$499,MATCH(0,COUNTIF('Drop Downs (hidden)'!$A$3:A147,'HIC (hidden)'!$B$3:$B$499),0))=0,\"\",INDEX('HIC (hidden)'!$B$3:$B$499,MATCH(0,COUNTIF('Drop Downs (hidden)'!$A$3:A147,'HIC (hidden)'!$B$3:$B$499),0))),\"\")","v":""},{"$f":"IF(A148=\"\",\"\",COUNTIF('HIC (hidden)'!B:B,'Drop Downs (hidden)'!A148))","v":""}]
[{"$f":"IFERROR(IF(INDEX('HIC (hidden)'!$B$3:$B$499,MATCH(0,COUNTIF('Drop Downs (hidden)'!$A$3:A148,'HIC (hidden)'!$B$3:$B$499),0))=0,\"\",INDEX('HIC (hidden)'!$B$3:$B$499,MATCH(0,COUNTIF('Drop Downs (hidden)'!$A$3:A148,'HIC (hidden)'!$B$3:$B$499),0))),\"\")","v":""},{"$f":"IF(A149=\"\",\"\",COUNTIF('HIC (hidden)'!B:B,'Drop Downs (hidden)'!A149))","v":""}]
[{"$f":"IFERROR(IF(INDEX('HIC (hidden)'!$B$3:$B$499,MATCH(0,COUNTIF('Drop Downs (hidden)'!$A$3:A149,'HIC (hidden)'!$B$3:$B$499),0))=0,\"\",INDEX('HIC (hidden)'!$B$3:$B$499,MATCH(0,COUNTIF('Drop Downs (hidden)'!$A$3:A149,'HIC (hidden)'!$B$3:$B$499),0))),\"\")","v":""},{"$f":"IF(A150=\"\",\"\",COUNTIF('HIC (hidden)'!B:B,'Drop Downs (hidden)'!A150))","v":""}]
[{"$f":"IFERROR(IF(INDEX('HIC (hidden)'!$B$3:$B$499,MATCH(0,COUNTIF('Drop Downs (hidden)'!$A$3:A150,'HIC (hidden)'!$B$3:$B$499),0))=0,\"\",INDEX('HIC (hidden)'!$B$3:$B$499,MATCH(0,COUNTIF('Drop Downs (hidden)'!$A$3:A150,'HIC (hidden)'!$B$3:$B$499),0))),\"\")","v":""},{"$f":"IF(A151=\"\",\"\",COUNTIF('HIC (hidden)'!B:B,'Drop Downs (hidden)'!A151))","v":""}]
[{"$f":"IFERROR(IF(INDEX('HIC (hidden)'!$B$3:$B$499,MATCH(0,COUNTIF('Drop Downs (hidden)'!$A$3:A151,'HIC (hidden)'!$B$3:$B$499),0))=0,\"\",INDEX('HIC (hidden)'!$B$3:$B$499,MATCH(0,COUNTIF('Drop Downs (hidden)'!$A$3:A151,'HIC (hidden)'!$B$3:$B$499),0))),\"\")","v":""},{"$f":"IF(A152=\"\",\"\",COUNTIF('HIC (hidden)'!B:B,'Drop Downs (hidden)'!A152))","v":""}]
[{"$f":"IFERROR(IF(INDEX('HIC (hidden)'!$B$3:$B$499,MATCH(0,COUNTIF('Drop Downs (hidden)'!$A$3:A152,'HIC (hidden)'!$B$3:$B$499),0))=0,\"\",INDEX('HIC (hidden)'!$B$3:$B$499,MATCH(0,COUNTIF('Drop Downs (hidden)'!$A$3:A152,'HIC (hidden)'!$B$3:$B$499),0))),\"\")","v":""},{"$f":"IF(A153=\"\",\"\",COUNTIF('HIC (hidden)'!B:B,'Drop Downs (hidden)'!A153))","v":""}]
[{"$f":"IFERROR(IF(INDEX('HIC (hidden)'!$B$3:$B$499,MATCH(0,COUNTIF('Drop Downs (hidden)'!$A$3:A153,'HIC (hidden)'!$B$3:$B$499),0))=0,\"\",INDEX('HIC (hidden)'!$B$3:$B$499,MATCH(0,COUNTIF('Drop Downs (hidden)'!$A$3:A153,'HIC (hidden)'!$B$3:$B$499),0))),\"\")","v":""},{"$f":"IF(A154=\"\",\"\",COUNTIF('HIC (hidden)'!B:B,'Drop Downs (hidden)'!A154))","v":""}]
[{"$f":"IFERROR(IF(INDEX('HIC (hidden)'!$B$3:$B$499,MATCH(0,COUNTIF('Drop Downs (hidden)'!$A$3:A154,'HIC (hidden)'!$B$3:$B$499),0))=0,\"\",INDEX('HIC (hidden)'!$B$3:$B$499,MATCH(0,COUNTIF('Drop Downs (hidden)'!$A$3:A154,'HIC (hidden)'!$B$3:$B$499),0))),\"\")","v":""},{"$f":"IF(A155=\"\",\"\",COUNTIF('HIC (hidden)'!B:B,'Drop Downs (hidden)'!A155))","v":""}]
[{"$f":"IFERROR(IF(INDEX('HIC (hidden)'!$B$3:$B$499,MATCH(0,COUNTIF('Drop Downs (hidden)'!$A$3:A155,'HIC (hidden)'!$B$3:$B$499),0))=0,\"\",INDEX('HIC (hidden)'!$B$3:$B$499,MATCH(0,COUNTIF('Drop Downs (hidden)'!$A$3:A155,'HIC (hidden)'!$B$3:$B$499),0))),\"\")","v":""},{"$f":"IF(A156=\"\",\"\",COUNTIF('HIC (hidden)'!B:B,'Drop Downs (hidden)'!A156))","v":""}]
[{"$f":"IFERROR(IF(INDEX('HIC (hidden)'!$B$3:$B$499,MATCH(0,COUNTIF('Drop Downs (hidden)'!$A$3:A156,'HIC (hidden)'!$B$3:$B$499),0))=0,\"\",INDEX('HIC (hidden)'!$B$3:$B$499,MATCH(0,COUNTIF('Drop Downs (hidden)'!$A$3:A156,'HIC (hidden)'!$B$3:$B$499),0))),\"\")","v":""},{"$f":"IF(A157=\"\",\"\",COUNTIF('HIC (hidden)'!B:B,'Drop Downs (hidden)'!A157))","v":""}]
[{"$f":"IFERROR(IF(INDEX('HIC (hidden)'!$B$3:$B$499,MATCH(0,COUNTIF('Drop Downs (hidden)'!$A$3:A157,'HIC (hidden)'!$B$3:$B$499),0))=0,\"\",INDEX('HIC (hidden)'!$B$3:$B$499,MATCH(0,COUNTIF('Drop Downs (hidden)'!$A$3:A157,'HIC (hidden)'!$B$3:$B$499),0))),\"\")","v":""},{"$f":"IF(A158=\"\",\"\",COUNTIF('HIC (hidden)'!B:B,'Drop Downs (hidden)'!A158))","v":""}]
[{"$f":"IFERROR(IF(INDEX('HIC (hidden)'!$B$3:$B$499,MATCH(0,COUNTIF('Drop Downs (hidden)'!$A$3:A158,'HIC (hidden)'!$B$3:$B$499),0))=0,\"\",INDEX('HIC (hidden)'!$B$3:$B$499,MATCH(0,COUNTIF('Drop Downs (hidden)'!$A$3:A158,'HIC (hidden)'!$B$3:$B$499),0))),\"\")","v":""},{"$f":"IF(A159=\"\",\"\",COUNTIF('HIC (hidden)'!B:B,'Drop Downs (hidden)'!A159))","v":""}]
[{"$f":"IFERROR(IF(INDEX('HIC (hidden)'!$B$3:$B$499,MATCH(0,COUNTIF('Drop Downs (hidden)'!$A$3:A159,'HIC (hidden)'!$B$3:$B$499),0))=0,\"\",INDEX('HIC (hidden)'!$B$3:$B$499,MATCH(0,COUNTIF('Drop Downs (hidden)'!$A$3:A159,'HIC (hidden)'!$B$3:$B$499),0))),\"\")","v":""},{"$f":"IF(A160=\"\",\"\",COUNTIF('HIC (hidden)'!B:B,'Drop Downs (hidden)'!A160))","v":""}]
[{"$f":"IFERROR(IF(INDEX('HIC (hidden)'!$B$3:$B$499,MATCH(0,COUNTIF('Drop Downs (hidden)'!$A$3:A160,'HIC (hidden)'!$B$3:$B$499),0))=0,\"\",INDEX('HIC (hidden)'!$B$3:$B$499,MATCH(0,COUNTIF('Drop Downs (hidden)'!$A$3:A160,'HIC (hidden)'!$B$3:$B$499),0))),\"\")","v":""},{"$f":"IF(A161=\"\",\"\",COUNTIF('HIC (hidden)'!B:B,'Drop Downs (hidden)'!A161))","v":""}]
[{"$f":"IFERROR(IF(INDEX('HIC (hidden)'!$B$3:$B$499,MATCH(0,COUNTIF('Drop Downs (hidden)'!$A$3:A161,'HIC (hidden)'!$B$3:$B$499),0))=0,\"\",INDEX('HIC (hidden)'!$B$3:$B$499,MATCH(0,COUNTIF('Drop Downs (hidden)'!$A$3:A161,'HIC (hidden)'!$B$3:$B$499),0))),\"\")","v":""},{"$f":"IF(A162=\"\",\"\",COUNTIF('HIC (hidden)'!B:B,'Drop Downs (hidden)'!A162))","v":""}]
[{"$f":"IFERROR(IF(INDEX('HIC (hidden)'!$B$3:$B$499,MATCH(0,COUNTIF('Drop Downs (hidden)'!$A$3:A162,'HIC (hidden)'!$B$3:$B$499),0))=0,\"\",INDEX('HIC (hidden)'!$B$3:$B$499,MATCH(0,COUNTIF('Drop Downs (hidden)'!$A$3:A162,'HIC (hidden)'!$B$3:$B$499),0))),\"\")","v":""},{"$f":"IF(A163=\"\",\"\",COUNTIF('HIC (hidden)'!B:B,'Drop Downs (hidden)'!A163))","v":""}]
[{"$f":"IFERROR(IF(INDEX('HIC (hidden)'!$B$3:$B$499,MATCH(0,COUNTIF('Drop Downs (hidden)'!$A$3:A163,'HIC (hidden)'!$B$3:$B$499),0))=0,\"\",INDEX('HIC (hidden)'!$B$3:$B$499,MATCH(0,COUNTIF('Drop Downs (hidden)'!$A$3:A163,'HIC (hidden)'!$B$3:$B$499),0))),\"\")","v":""},{"$f":"IF(A164=\"\",\"\",COUNTIF('HIC (hidden)'!B:B,'Drop Downs (hidden)'!A164))","v":""}]
[{"$f":"IFERROR(IF(INDEX('HIC (hidden)'!$B$3:$B$499,MATCH(0,COUNTIF('Drop Downs (hidden)'!$A$3:A164,'HIC (hidden)'!$B$3:$B$499),0))=0,\"\",INDEX('HIC (hidden)'!$B$3:$B$499,MATCH(0,COUNTIF('Drop Downs (hidden)'!$A$3:A164,'HIC (hidden)'!$B$3:$B$499),0))),\"\")","v":""},{"$f":"IF(A165=\"\",\"\",COUNTIF('HIC (hidden)'!B:B,'Drop Downs (hidden)'!A165))","v":""}]
[{"$f":"IFERROR(IF(INDEX('HIC (hidden)'!$B$3:$B$499,MATCH(0,COUNTIF('Drop Downs (hidden)'!$A$3:A165,'HIC (hidden)'!$B$3:$B$499),0))=0,\"\",INDEX('HIC (hidden)'!$B$3:$B$499,MATCH(0,COUNTIF('Drop Downs (hidden)'!$A$3:A165,'HIC (hidden)'!$B$3:$B$499),0))),\"\")","v":""},{"$f":"IF(A166=\"\",\"\",COUNTIF('HIC (hidden)'!B:B,'Drop Downs (hidden)'!A166))","v":""}]
[{"$f":"IFERROR(IF(INDEX('HIC (hidden)'!$B$3:$B$499,MATCH(0,COUNTIF('Drop Downs (hidden)'!$A$3:A166,'HIC (hidden)'!$B$3:$B$499),0))=0,\"\",INDEX('HIC (hidden)'!$B$3:$B$499,MATCH(0,COUNTIF('Drop Downs (hidden)'!$A$3:A166,'HIC (hidden)'!$B$3:$B$499),0))),\"\")","v":""},{"$f":"IF(A167=\"\",\"\",COUNTIF('HIC (hidden)'!B:B,'Drop Downs (hidden)'!A167))","v":""}]
[{"$f":"IFERROR(IF(INDEX('HIC (hidden)'!$B$3:$B$499,MATCH(0,COUNTIF('Drop Downs (hidden)'!$A$3:A167,'HIC (hidden)'!$B$3:$B$499),0))=0,\"\",INDEX('HIC (hidden)'!$B$3:$B$499,MATCH(0,COUNTIF('Drop Downs (hidden)'!$A$3:A167,'HIC (hidden)'!$B$3:$B$499),0))),\"\")","v":""},{"$f":"IF(A168=\"\",\"\",COUNTIF('HIC (hidden)'!B:B,'Drop Downs (hidden)'!A168))","v":""}]
[{"$f":"IFERROR(IF(INDEX('HIC (hidden)'!$B$3:$B$499,MATCH(0,COUNTIF('Drop Downs (hidden)'!$A$3:A168,'HIC (hidden)'!$B$3:$B$499),0))=0,\"\",INDEX('HIC (hidden)'!$B$3:$B$499,MATCH(0,COUNTIF('Drop Downs (hidden)'!$A$3:A168,'HIC (hidden)'!$B$3:$B$499),0))),\"\")","v":""},{"$f":"IF(A169=\"\",\"\",COUNTIF('HIC (hidden)'!B:B,'Drop Downs (hidden)'!A169))","v":""}]
[{"$f":"IFERROR(IF(INDEX('HIC (hidden)'!$B$3:$B$499,MATCH(0,COUNTIF('Drop Downs (hidden)'!$A$3:A169,'HIC (hidden)'!$B$3:$B$499),0))=0,\"\",INDEX('HIC (hidden)'!$B$3:$B$499,MATCH(0,COUNTIF('Drop Downs (hidden)'!$A$3:A169,'HIC (hidden)'!$B$3:$B$499),0))),\"\")","v":""},{"$f":"IF(A170=\"\",\"\",COUNTIF('HIC (hidden)'!B:B,'Drop Downs (hidden)'!A170))","v":""}]
[{"$f":"IFERROR(IF(INDEX('HIC (hidden)'!$B$3:$B$499,MATCH(0,COUNTIF('Drop Downs (hidden)'!$A$3:A170,'HIC (hidden)'!$B$3:$B$499),0))=0,\"\",INDEX('HIC (hidden)'!$B$3:$B$499,MATCH(0,COUNTIF('Drop Downs (hidden)'!$A$3:A170,'HIC (hidden)'!$B$3:$B$499),0))),\"\")","v":""},{"$f":"IF(A171=\"\",\"\",COUNTIF('HIC (hidden)'!B:B,'Drop Downs (hidden)'!A171))","v":""}]
[{"$f":"IFERROR(IF(INDEX('HIC (hidden)'!$B$3:$B$499,MATCH(0,COUNTIF('Drop Downs (hidden)'!$A$3:A171,'HIC (hidden)'!$B$3:$B$499),0))=0,\"\",INDEX('HIC (hidden)'!$B$3:$B$499,MATCH(0,COUNTIF('Drop Downs (hidden)'!$A$3:A171,'HIC (hidden)'!$B$3:$B$499),0))),\"\")","v":""},{"$f":"IF(A172=\"\",\"\",COUNTIF('HIC (hidden)'!B:B,'Drop Downs (hidden)'!A172))","v":""}]
[{"$f":"IFERROR(IF(INDEX('HIC (hidden)'!$B$3:$B$499,MATCH(0,COUNTIF('Drop Downs (hidden)'!$A$3:A172,'HIC (hidden)'!$B$3:$B$499),0))=0,\"\",INDEX('HIC (hidden)'!$B$3:$B$499,MATCH(0,COUNTIF('Drop Downs (hidden)'!$A$3:A172,'HIC (hidden)'!$B$3:$B$499),0))),\"\")","v":""},{"$f":"IF(A173=\"\",\"\",COUNTIF('HIC (hidden)'!B:B,'Drop Downs (hidden)'!A173))","v":""}]
[{"$f":"IFERROR(IF(INDEX('HIC (hidden)'!$B$3:$B$499,MATCH(0,COUNTIF('Drop Downs (hidden)'!$A$3:A173,'HIC (hidden)'!$B$3:$B$499),0))=0,\"\",INDEX('HIC (hidden)'!$B$3:$B$499,MATCH(0,COUNTIF('Drop Downs (hidden)'!$A$3:A173,'HIC (hidden)'!$B$3:$B$499),0))),\"\")","v":""},{"$f":"IF(A174=\"\",\"\",COUNTIF('HIC (hidden)'!B:B,'Drop Downs (hidden)'!A174))","v":""}]
[{"$f":"IFERROR(IF(INDEX('HIC (hidden)'!$B$3:$B$499,MATCH(0,COUNTIF('Drop Downs (hidden)'!$A$3:A174,'HIC (hidden)'!$B$3:$B$499),0))=0,\"\",INDEX('HIC (hidden)'!$B$3:$B$499,MATCH(0,COUNTIF('Drop Downs (hidden)'!$A$3:A174,'HIC (hidden)'!$B$3:$B$499),0))),\"\")","v":""},{"$f":"IF(A175=\"\",\"\",COUNTIF('HIC (hidden)'!B:B,'Drop Downs (hidden)'!A175))","v":""}]
[{"$f":"IFERROR(IF(INDEX('HIC (hidden)'!$B$3:$B$499,MATCH(0,COUNTIF('Drop Downs (hidden)'!$A$3:A175,'HIC (hidden)'!$B$3:$B$499),0))=0,\"\",INDEX('HIC (hidden)'!$B$3:$B$499,MATCH(0,COUNTIF('Drop Downs (hidden)'!$A$3:A175,'HIC (hidden)'!$B$3:$B$499),0))),\"\")","v":""},{"$f":"IF(A176=\"\",\"\",COUNTIF('HIC (hidden)'!B:B,'Drop Downs (hidden)'!A176))","v":""}]
[{"$f":"IFERROR(IF(INDEX('HIC (hidden)'!$B$3:$B$499,MATCH(0,COUNTIF('Drop Downs (hidden)'!$A$3:A176,'HIC (hidden)'!$B$3:$B$499),0))=0,\"\",INDEX('HIC (hidden)'!$B$3:$B$499,MATCH(0,COUNTIF('Drop Downs (hidden)'!$A$3:A176,'HIC (hidden)'!$B$3:$B$499),0))),\"\")","v":""},{"$f":"IF(A177=\"\",\"\",COUNTIF('HIC (hidden)'!B:B,'Drop Downs (hidden)'!A177))","v":""}]
[{"$f":"IFERROR(IF(INDEX('HIC (hidden)'!$B$3:$B$499,MATCH(0,COUNTIF('Drop Downs (hidden)'!$A$3:A177,'HIC (hidden)'!$B$3:$B$499),0))=0,\"\",INDEX('HIC (hidden)'!$B$3:$B$499,MATCH(0,COUNTIF('Drop Downs (hidden)'!$A$3:A177,'HIC (hidden)'!$B$3:$B$499),0))),\"\")","v":""},{"$f":"IF(A178=\"\",\"\",COUNTIF('HIC (hidden)'!B:B,'Drop Downs (hidden)'!A178))","v":""}]
[{"$f":"IFERROR(IF(INDEX('HIC (hidden)'!$B$3:$B$499,MATCH(0,COUNTIF('Drop Downs (hidden)'!$A$3:A178,'HIC (hidden)'!$B$3:$B$499),0))=0,\"\",INDEX('HIC (hidden)'!$B$3:$B$499,MATCH(0,COUNTIF('Drop Downs (hidden)'!$A$3:A178,'HIC (hidden)'!$B$3:$B$499),0))),\"\")","v":""},{"$f":"IF(A179=\"\",\"\",COUNTIF('HIC (hidden)'!B:B,'Drop Downs (hidden)'!A179))","v":""}]
[{"$f":"IFERROR(IF(INDEX('HIC (hidden)'!$B$3:$B$499,MATCH(0,COUNTIF('Drop Downs (hidden)'!$A$3:A179,'HIC (hidden)'!$B$3:$B$499),0))=0,\"\",INDEX('HIC (hidden)'!$B$3:$B$499,MATCH(0,COUNTIF('Drop Downs (hidden)'!$A$3:A179,'HIC (hidden)'!$B$3:$B$499),0))),\"\")","v":""},{"$f":"IF(A180=\"\",\"\",COUNTIF('HIC (hidden)'!B:B,'Drop Downs (hidden)'!A180))","v":""}]
[{"$f":"IFERROR(IF(INDEX('HIC (hidden)'!$B$3:$B$499,MATCH(0,COUNTIF('Drop Downs (hidden)'!$A$3:A180,'HIC (hidden)'!$B$3:$B$499),0))=0,\"\",INDEX('HIC (hidden)'!$B$3:$B$499,MATCH(0,COUNTIF('Drop Downs (hidden)'!$A$3:A180,'HIC (hidden)'!$B$3:$B$499),0))),\"\")","v":""},{"$f":"IF(A181=\"\",\"\",COUNTIF('HIC (hidden)'!B:B,'Drop Downs (hidden)'!A181))","v":""}]
[{"$f":"IFERROR(IF(INDEX('HIC (hidden)'!$B$3:$B$499,MATCH(0,COUNTIF('Drop Downs (hidden)'!$A$3:A181,'HIC (hidden)'!$B$3:$B$499),0))=0,\"\",INDEX('HIC (hidden)'!$B$3:$B$499,MATCH(0,COUNTIF('Drop Downs (hidden)'!$A$3:A181,'HIC (hidden)'!$B$3:$B$499),0))),\"\")","v":""},{"$f":"IF(A182=\"\",\"\",COUNTIF('HIC (hidden)'!B:B,'Drop Downs (hidden)'!A182))","v":""}]
[{"$f":"IFERROR(IF(INDEX('HIC (hidden)'!$B$3:$B$499,MATCH(0,COUNTIF('Drop Downs (hidden)'!$A$3:A182,'HIC (hidden)'!$B$3:$B$499),0))=0,\"\",INDEX('HIC (hidden)'!$B$3:$B$499,MATCH(0,COUNTIF('Drop Downs (hidden)'!$A$3:A182,'HIC (hidden)'!$B$3:$B$499),0))),\"\")","v":""},{"$f":"IF(A183=\"\",\"\",COUNTIF('HIC (hidden)'!B:B,'Drop Downs (hidden)'!A183))","v":""}]
[{"$f":"IFERROR(IF(INDEX('HIC (hidden)'!$B$3:$B$499,MATCH(0,COUNTIF('Drop Downs (hidden)'!$A$3:A183,'HIC (hidden)'!$B$3:$B$499),0))=0,\"\",INDEX('HIC (hidden)'!$B$3:$B$499,MATCH(0,COUNTIF('Drop Downs (hidden)'!$A$3:A183,'HIC (hidden)'!$B$3:$B$499),0))),\"\")","v":""},{"$f":"IF(A184=\"\",\"\",COUNTIF('HIC (hidden)'!B:B,'Drop Downs (hidden)'!A184))","v":""}]
[{"$f":"IFERROR(IF(INDEX('HIC (hidden)'!$B$3:$B$499,MATCH(0,COUNTIF('Drop Downs (hidden)'!$A$3:A184,'HIC (hidden)'!$B$3:$B$499),0))=0,\"\",INDEX('HIC (hidden)'!$B$3:$B$499,MATCH(0,COUNTIF('Drop Downs (hidden)'!$A$3:A184,'HIC (hidden)'!$B$3:$B$499),0))),\"\")","v":""},{"$f":"IF(A185=\"\",\"\",COUNTIF('HIC (hidden)'!B:B,'Drop Downs (hidden)'!A185))","v":""}]
[{"$f":"IFERROR(IF(INDEX('HIC (hidden)'!$B$3:$B$499,MATCH(0,COUNTIF('Drop Downs (hidden)'!$A$3:A185,'HIC (hidden)'!$B$3:$B$499),0))=0,\"\",INDEX('HIC (hidden)'!$B$3:$B$499,MATCH(0,COUNTIF('Drop Downs (hidden)'!$A$3:A185,'HIC (hidden)'!$B$3:$B$499),0))),\"\")","v":""},{"$f":"IF(A186=\"\",\"\",COUNTIF('HIC (hidden)'!B:B,'Drop Downs (hidden)'!A186))","v":""}]
[{"$f":"IFERROR(IF(INDEX('HIC (hidden)'!$B$3:$B$499,MATCH(0,COUNTIF('Drop Downs (hidden)'!$A$3:A186,'HIC (hidden)'!$B$3:$B$499),0))=0,\"\",INDEX('HIC (hidden)'!$B$3:$B$499,MATCH(0,COUNTIF('Drop Downs (hidden)'!$A$3:A186,'HIC (hidden)'!$B$3:$B$499),0))),\"\")","v":""},{"$f":"IF(A187=\"\",\"\",COUNTIF('HIC (hidden)'!B:B,'Drop Downs (hidden)'!A187))","v":""}]
[{"$f":"IFERROR(IF(INDEX('HIC (hidden)'!$B$3:$B$499,MATCH(0,COUNTIF('Drop Downs (hidden)'!$A$3:A187,'HIC (hidden)'!$B$3:$B$499),0))=0,\"\",INDEX('HIC (hidden)'!$B$3:$B$499,MATCH(0,COUNTIF('Drop Downs (hidden)'!$A$3:A187,'HIC (hidden)'!$B$3:$B$499),0))),\"\")","v":""},{"$f":"IF(A188=\"\",\"\",COUNTIF('HIC (hidden)'!B:B,'Drop Downs (hidden)'!A188))","v":""}]
[{"$f":"IFERROR(IF(INDEX('HIC (hidden)'!$B$3:$B$499,MATCH(0,COUNTIF('Drop Downs (hidden)'!$A$3:A188,'HIC (hidden)'!$B$3:$B$499),0))=0,\"\",INDEX('HIC (hidden)'!$B$3:$B$499,MATCH(0,COUNTIF('Drop Downs (hidden)'!$A$3:A188,'HIC (hidden)'!$B$3:$B$499),0))),\"\")","v":""},{"$f":"IF(A189=\"\",\"\",COUNTIF('HIC (hidden)'!B:B,'Drop Downs (hidden)'!A189))","v":""}]
[{"$f":"IFERROR(IF(INDEX('HIC (hidden)'!$B$3:$B$499,MATCH(0,COUNTIF('Drop Downs (hidden)'!$A$3:A189,'HIC (hidden)'!$B$3:$B$499),0))=0,\"\",INDEX('HIC (hidden)'!$B$3:$B$499,MATCH(0,COUNTIF('Drop Downs (hidden)'!$A$3:A189,'HIC (hidden)'!$B$3:$B$499),0))),\"\")","v":""},{"$f":"IF(A190=\"\",\"\",COUNTIF('HIC (hidden)'!B:B,'Drop Downs (hidden)'!A190))","v":""}]
[{"$f":"IFERROR(IF(INDEX('HIC (hidden)'!$B$3:$B$499,MATCH(0,COUNTIF('Drop Downs (hidden)'!$A$3:A190,'HIC (hidden)'!$B$3:$B$499),0))=0,\"\",INDEX('HIC (hidden)'!$B$3:$B$499,MATCH(0,COUNTIF('Drop Downs (hidden)'!$A$3:A190,'HIC (hidden)'!$B$3:$B$499),0))),\"\")","v":""},{"$f":"IF(A191=\"\",\"\",COUNTIF('HIC (hidden)'!B:B,'Drop Downs (hidden)'!A191))","v":""}]
[{"$f":"IFERROR(IF(INDEX('HIC (hidden)'!$B$3:$B$499,MATCH(0,COUNTIF('Drop Downs (hidden)'!$A$3:A191,'HIC (hidden)'!$B$3:$B$499),0))=0,\"\",INDEX('HIC (hidden)'!$B$3:$B$499,MATCH(0,COUNTIF('Drop Downs (hidden)'!$A$3:A191,'HIC (hidden)'!$B$3:$B$499),0))),\"\")","v":""},{"$f":"IF(A192=\"\",\"\",COUNTIF('HIC (hidden)'!B:B,'Drop Downs (hidden)'!A192))","v":""}]
[{"$f":"IFERROR(IF(INDEX('HIC (hidden)'!$B$3:$B$499,MATCH(0,COUNTIF('Drop Downs (hidden)'!$A$3:A192,'HIC (hidden)'!$B$3:$B$499),0))=0,\"\",INDEX('HIC (hidden)'!$B$3:$B$499,MATCH(0,COUNTIF('Drop Downs (hidden)'!$A$3:A192,'HIC (hidden)'!$B$3:$B$499),0))),\"\")","v":""},{"$f":"IF(A193=\"\",\"\",COUNTIF('HIC (hidden)'!B:B,'Drop Downs (hidden)'!A193))","v":""}]
[{"$f":"IFERROR(IF(INDEX('HIC (hidden)'!$B$3:$B$499,MATCH(0,COUNTIF('Drop Downs (hidden)'!$A$3:A193,'HIC (hidden)'!$B$3:$B$499),0))=0,\"\",INDEX('HIC (hidden)'!$B$3:$B$499,MATCH(0,COUNTIF('Drop Downs (hidden)'!$A$3:A193,'HIC (hidden)'!$B$3:$B$499),0))),\"\")","v":""},{"$f":"IF(A194=\"\",\"\",COUNTIF('HIC (hidden)'!B:B,'Drop Downs (hidden)'!A194))","v":""}]
[{"$f":"IFERROR(IF(INDEX('HIC (hidden)'!$B$3:$B$499,MATCH(0,COUNTIF('Drop Downs (hidden)'!$A$3:A194,'HIC (hidden)'!$B$3:$B$499),0))=0,\"\",INDEX('HIC (hidden)'!$B$3:$B$499,MATCH(0,COUNTIF('Drop Downs (hidden)'!$A$3:A194,'HIC (hidden)'!$B$3:$B$499),0))),\"\")","v":""},{"$f":"IF(A195=\"\",\"\",COUNTIF('HIC (hidden)'!B:B,'Drop Downs (hidden)'!A195))","v":""}]
[{"$f":"IFERROR(IF(INDEX('HIC (hidden)'!$B$3:$B$499,MATCH(0,COUNTIF('Drop Downs (hidden)'!$A$3:A195,'HIC (hidden)'!$B$3:$B$499),0))=0,\"\",INDEX('HIC (hidden)'!$B$3:$B$499,MATCH(0,COUNTIF('Drop Downs (hidden)'!$A$3:A195,'HIC (hidden)'!$B$3:$B$499),0))),\"\")","v":""},{"$f":"IF(A196=\"\",\"\",COUNTIF('HIC (hidden)'!B:B,'Drop Downs (hidden)'!A196))","v":""}]
[{"$f":"IFERROR(IF(INDEX('HIC (hidden)'!$B$3:$B$499,MATCH(0,COUNTIF('Drop Downs (hidden)'!$A$3:A196,'HIC (hidden)'!$B$3:$B$499),0))=0,\"\",INDEX('HIC (hidden)'!$B$3:$B$499,MATCH(0,COUNTIF('Drop Downs (hidden)'!$A$3:A196,'HIC (hidden)'!$B$3:$B$499),0))),\"\")","v":""},{"$f":"IF(A197=\"\",\"\",COUNTIF('HIC (hidden)'!B:B,'Drop Downs (hidden)'!A197))","v":""}]
[{"$f":"IFERROR(IF(INDEX('HIC (hidden)'!$B$3:$B$499,MATCH(0,COUNTIF('Drop Downs (hidden)'!$A$3:A197,'HIC (hidden)'!$B$3:$B$499),0))=0,\"\",INDEX('HIC (hidden)'!$B$3:$B$499,MATCH(0,COUNTIF('Drop Downs (hidden)'!$A$3:A197,'HIC (hidden)'!$B$3:$B$499),0))),\"\")","v":""},{"$f":"IF(A198=\"\",\"\",COUNTIF('HIC (hidden)'!B:B,'Drop Downs (hidden)'!A198))","v":""}]
[{"$f":"IFERROR(IF(INDEX('HIC (hidden)'!$B$3:$B$499,MATCH(0,COUNTIF('Drop Downs (hidden)'!$A$3:A198,'HIC (hidden)'!$B$3:$B$499),0))=0,\"\",INDEX('HIC (hidden)'!$B$3:$B$499,MATCH(0,COUNTIF('Drop Downs (hidden)'!$A$3:A198,'HIC (hidden)'!$B$3:$B$499),0))),\"\")","v":""},{"$f":"IF(A199=\"\",\"\",COUNTIF('HIC (hidden)'!B:B,'Drop Downs (hidden)'!A199))","v":""}]
[{"$f":"IFERROR(IF(INDEX('HIC (hidden)'!$B$3:$B$499,MATCH(0,COUNTIF('Drop Downs (hidden)'!$A$3:A199,'HIC (hidden)'!$B$3:$B$499),0))=0,\"\",INDEX('HIC (hidden)'!$B$3:$B$499,MATCH(0,COUNTIF('Drop Downs (hidden)'!$A$3:A199,'HIC (hidden)'!$B$3:$B$499),0))),\"\")","v":""},{"$f":"IF(A200=\"\",\"\",COUNTIF('HIC (hidden)'!B:B,'Drop Downs (hidden)'!A200))","v":""}]
[{"$f":"IFERROR(IF(INDEX('HIC (hidden)'!$B$3:$B$499,MATCH(0,COUNTIF('Drop Downs (hidden)'!$A$3:A200,'HIC (hidden)'!$B$3:$B$499),0))=0,\"\",INDEX('HIC (hidden)'!$B$3:$B$499,MATCH(0,COUNTIF('Drop Downs (hidden)'!$A$3:A200,'HIC (hidden)'!$B$3:$B$499),0))),\"\")","v":""},{"$f":"IF(A201=\"\",\"\",COUNTIF('HIC (hidden)'!B:B,'Drop Downs (hidden)'!A201))","v":""}]
[{"$f":"IFERROR(IF(INDEX('HIC (hidden)'!$B$3:$B$499,MATCH(0,COUNTIF('Drop Downs (hidden)'!$A$3:A201,'HIC (hidden)'!$B$3:$B$499),0))=0,\"\",INDEX('HIC (hidden)'!$B$3:$B$499,MATCH(0,COUNTIF('Drop Downs (hidden)'!$A$3:A201,'HIC (hidden)'!$B$3:$B$499),0))),\"\")","v":""},{"$f":"IF(A202=\"\",\"\",COUNTIF('HIC (hidden)'!B:B,'Drop Downs (hidden)'!A202))","v":""}]
[{"$f":"IFERROR(IF(INDEX('HIC (hidden)'!$B$3:$B$499,MATCH(0,COUNTIF('Drop Downs (hidden)'!$A$3:A202,'HIC (hidden)'!$B$3:$B$499),0))=0,\"\",INDEX('HIC (hidden)'!$B$3:$B$499,MATCH(0,COUNTIF('Drop Downs (hidden)'!$A$3:A202,'HIC (hidden)'!$B$3:$B$499),0))),\"\")","v":""},{"$f":"IF(A203=\"\",\"\",COUNTIF('HIC (hidden)'!B:B,'Drop Downs (hidden)'!A203))","v":""}]
[{"$f":"IFERROR(IF(INDEX('HIC (hidden)'!$B$3:$B$499,MATCH(0,COUNTIF('Drop Downs (hidden)'!$A$3:A203,'HIC (hidden)'!$B$3:$B$499),0))=0,\"\",INDEX('HIC (hidden)'!$B$3:$B$499,MATCH(0,COUNTIF('Drop Downs (hidden)'!$A$3:A203,'HIC (hidden)'!$B$3:$B$499),0))),\"\")","v":""},{"$f":"IF(A204=\"\",\"\",COUNTIF('HIC (hidden)'!B:B,'Drop Downs (hidden)'!A204))","v":""}]
[{"$f":"IFERROR(IF(INDEX('HIC (hidden)'!$B$3:$B$499,MATCH(0,COUNTIF('Drop Downs (hidden)'!$A$3:A204,'HIC (hidden)'!$B$3:$B$499),0))=0,\"\",INDEX('HIC (hidden)'!$B$3:$B$499,MATCH(0,COUNTIF('Drop Downs (hidden)'!$A$3:A204,'HIC (hidden)'!$B$3:$B$499),0))),\"\")","v":""}]
[{"$f":"IFERROR(IF(INDEX('HIC (hidden)'!$B$3:$B$499,MATCH(0,COUNTIF('Drop Downs (hidden)'!$A$3:A205,'HIC (hidden)'!$B$3:$B$499),0))=0,\"\",INDEX('HIC (hidden)'!$B$3:$B$499,MATCH(0,COUNTIF('Drop Downs (hidden)'!$A$3:A205,'HIC (hidden)'!$B$3:$B$499),0))),\"\")","v":""}]
[{"$f":"IFERROR(IF(INDEX('HIC (hidden)'!$B$3:$B$499,MATCH(0,COUNTIF('Drop Downs (hidden)'!$A$3:A206,'HIC (hidden)'!$B$3:$B$499),0))=0,\"\",INDEX('HIC (hidden)'!$B$3:$B$499,MATCH(0,COUNTIF('Drop Downs (hidden)'!$A$3:A206,'HIC (hidden)'!$B$3:$B$499),0))),\"\")","v":""}]
[{"$f":"IFERROR(IF(INDEX('HIC (hidden)'!$B$3:$B$499,MATCH(0,COUNTIF('Drop Downs (hidden)'!$A$3:A207,'HIC (hidden)'!$B$3:$B$499),0))=0,\"\",INDEX('HIC (hidden)'!$B$3:$B$499,MATCH(0,COUNTIF('Drop Downs (hidden)'!$A$3:A207,'HIC (hidden)'!$B$3:$B$499),0))),\"\")","v":""}]
[{"$f":"IFERROR(IF(INDEX('HIC (hidden)'!$B$3:$B$499,MATCH(0,COUNTIF('Drop Downs (hidden)'!$A$3:A208,'HIC (hidden)'!$B$3:$B$499),0))=0,\"\",INDEX('HIC (hidden)'!$B$3:$B$499,MATCH(0,COUNTIF('Drop Downs (hidden)'!$A$3:A208,'HIC (hidden)'!$B$3:$B$499),0))),\"\")","v":""}]
[{"$f":"IFERROR(IF(INDEX('HIC (hidden)'!$B$3:$B$499,MATCH(0,COUNTIF('Drop Downs (hidden)'!$A$3:A209,'HIC (hidden)'!$B$3:$B$499),0))=0,\"\",INDEX('HIC (hidden)'!$B$3:$B$499,MATCH(0,COUNTIF('Drop Downs (hidden)'!$A$3:A209,'HIC (hidden)'!$B$3:$B$499),0))),\"\")","v":""}]
[{"$f":"IFERROR(IF(INDEX('HIC (hidden)'!$B$3:$B$499,MATCH(0,COUNTIF('Drop Downs (hidden)'!$A$3:A210,'HIC (hidden)'!$B$3:$B$499),0))=0,\"\",INDEX('HIC (hidden)'!$B$3:$B$499,MATCH(0,COUNTIF('Drop Downs (hidden)'!$A$3:A210,'HIC (hidden)'!$B$3:$B$499),0))),\"\")","v":""}]
[{"$f":"IFERROR(IF(INDEX('HIC (hidden)'!$B$3:$B$499,MATCH(0,COUNTIF('Drop Downs (hidden)'!$A$3:A211,'HIC (hidden)'!$B$3:$B$499),0))=0,\"\",INDEX('HIC (hidden)'!$B$3:$B$499,MATCH(0,COUNTIF('Drop Downs (hidden)'!$A$3:A211,'HIC (hidden)'!$B$3:$B$499),0))),\"\")","v":""}]
[{"$f":"IFERROR(IF(INDEX('HIC (hidden)'!$B$3:$B$499,MATCH(0,COUNTIF('Drop Downs (hidden)'!$A$3:A212,'HIC (hidden)'!$B$3:$B$499),0))=0,\"\",INDEX('HIC (hidden)'!$B$3:$B$499,MATCH(0,COUNTIF('Drop Downs (hidden)'!$A$3:A212,'HIC (hidden)'!$B$3:$B$499),0))),\"\")","v":""}]
[{"$f":"IFERROR(IF(INDEX('HIC (hidden)'!$B$3:$B$499,MATCH(0,COUNTIF('Drop Downs (hidden)'!$A$3:A213,'HIC (hidden)'!$B$3:$B$499),0))=0,\"\",INDEX('HIC (hidden)'!$B$3:$B$499,MATCH(0,COUNTIF('Drop Downs (hidden)'!$A$3:A213,'HIC (hidden)'!$B$3:$B$499),0))),\"\")","v":""}]
[{"$f":"IFERROR(IF(INDEX('HIC (hidden)'!$B$3:$B$499,MATCH(0,COUNTIF('Drop Downs (hidden)'!$A$3:A214,'HIC (hidden)'!$B$3:$B$499),0))=0,\"\",INDEX('HIC (hidden)'!$B$3:$B$499,MATCH(0,COUNTIF('Drop Downs (hidden)'!$A$3:A214,'HIC (hidden)'!$B$3:$B$499),0))),\"\")","v":""}]
[{"$f":"IFERROR(IF(INDEX('HIC (hidden)'!$B$3:$B$499,MATCH(0,COUNTIF('Drop Downs (hidden)'!$A$3:A215,'HIC (hidden)'!$B$3:$B$499),0))=0,\"\",INDEX('HIC (hidden)'!$B$3:$B$499,MATCH(0,COUNTIF('Drop Downs (hidden)'!$A$3:A215,'HIC (hidden)'!$B$3:$B$499),0))),\"\")","v":""}]
[{"$f":"IFERROR(IF(INDEX('HIC (hidden)'!$B$3:$B$499,MATCH(0,COUNTIF('Drop Downs (hidden)'!$A$3:A216,'HIC (hidden)'!$B$3:$B$499),0))=0,\"\",INDEX('HIC (hidden)'!$B$3:$B$499,MATCH(0,COUNTIF('Drop Downs (hidden)'!$A$3:A216,'HIC (hidden)'!$B$3:$B$499),0))),\"\")","v":""}]
[{"$f":"IFERROR(IF(INDEX('HIC (hidden)'!$B$3:$B$499,MATCH(0,COUNTIF('Drop Downs (hidden)'!$A$3:A217,'HIC (hidden)'!$B$3:$B$499),0))=0,\"\",INDEX('HIC (hidden)'!$B$3:$B$499,MATCH(0,COUNTIF('Drop Downs (hidden)'!$A$3:A217,'HIC (hidden)'!$B$3:$B$499),0))),\"\")","v":""}]
[{"$f":"IFERROR(IF(INDEX('HIC (hidden)'!$B$3:$B$499,MATCH(0,COUNTIF('Drop Downs (hidden)'!$A$3:A218,'HIC (hidden)'!$B$3:$B$499),0))=0,\"\",INDEX('HIC (hidden)'!$B$3:$B$499,MATCH(0,COUNTIF('Drop Downs (hidden)'!$A$3:A218,'HIC (hidden)'!$B$3:$B$499),0))),\"\")","v":""}]
[{"$f":"IFERROR(IF(INDEX('HIC (hidden)'!$B$3:$B$499,MATCH(0,COUNTIF('Drop Downs (hidden)'!$A$3:A219,'HIC (hidden)'!$B$3:$B$499),0))=0,\"\",INDEX('HIC (hidden)'!$B$3:$B$499,MATCH(0,COUNTIF('Drop Downs (hidden)'!$A$3:A219,'HIC (hidden)'!$B$3:$B$499),0))),\"\")","v":""}]
[{"$f":"IFERROR(IF(INDEX('HIC (hidden)'!$B$3:$B$499,MATCH(0,COUNTIF('Drop Downs (hidden)'!$A$3:A220,'HIC (hidden)'!$B$3:$B$499),0))=0,\"\",INDEX('HIC (hidden)'!$B$3:$B$499,MATCH(0,COUNTIF('Drop Downs (hidden)'!$A$3:A220,'HIC (hidden)'!$B$3:$B$499),0))),\"\")","v":""}]
[{"$f":"IFERROR(IF(INDEX('HIC (hidden)'!$B$3:$B$499,MATCH(0,COUNTIF('Drop Downs (hidden)'!$A$3:A221,'HIC (hidden)'!$B$3:$B$499),0))=0,\"\",INDEX('HIC (hidden)'!$B$3:$B$499,MATCH(0,COUNTIF('Drop Downs (hidden)'!$A$3:A221,'HIC (hidden)'!$B$3:$B$499),0))),\"\")","v":""}]
[{"$f":"IFERROR(IF(INDEX('HIC (hidden)'!$B$3:$B$499,MATCH(0,COUNTIF('Drop Downs (hidden)'!$A$3:A222,'HIC (hidden)'!$B$3:$B$499),0))=0,\"\",INDEX('HIC (hidden)'!$B$3:$B$499,MATCH(0,COUNTIF('Drop Downs (hidden)'!$A$3:A222,'HIC (hidden)'!$B$3:$B$499),0))),\"\")","v":""}]
[{"$f":"IFERROR(IF(INDEX('HIC (hidden)'!$B$3:$B$499,MATCH(0,COUNTIF('Drop Downs (hidden)'!$A$3:A223,'HIC (hidden)'!$B$3:$B$499),0))=0,\"\",INDEX('HIC (hidden)'!$B$3:$B$499,MATCH(0,COUNTIF('Drop Downs (hidden)'!$A$3:A223,'HIC (hidden)'!$B$3:$B$499),0))),\"\")","v":""}]
[{"$f":"IFERROR(IF(INDEX('HIC (hidden)'!$B$3:$B$499,MATCH(0,COUNTIF('Drop Downs (hidden)'!$A$3:A224,'HIC (hidden)'!$B$3:$B$499),0))=0,\"\",INDEX('HIC (hidden)'!$B$3:$B$499,MATCH(0,COUNTIF('Drop Downs (hidden)'!$A$3:A224,'HIC (hidden)'!$B$3:$B$499),0))),\"\")","v":""}]
[{"$f":"IFERROR(IF(INDEX('HIC (hidden)'!$B$3:$B$499,MATCH(0,COUNTIF('Drop Downs (hidden)'!$A$3:A225,'HIC (hidden)'!$B$3:$B$499),0))=0,\"\",INDEX('HIC (hidden)'!$B$3:$B$499,MATCH(0,COUNTIF('Drop Downs (hidden)'!$A$3:A225,'HIC (hidden)'!$B$3:$B$499),0))),\"\")","v":""}]
[{"$f":"IFERROR(IF(INDEX('HIC (hidden)'!$B$3:$B$499,MATCH(0,COUNTIF('Drop Downs (hidden)'!$A$3:A226,'HIC (hidden)'!$B$3:$B$499),0))=0,\"\",INDEX('HIC (hidden)'!$B$3:$B$499,MATCH(0,COUNTIF('Drop Downs (hidden)'!$A$3:A226,'HIC (hidden)'!$B$3:$B$499),0))),\"\")","v":""}]
[{"$f":"IFERROR(IF(INDEX('HIC (hidden)'!$B$3:$B$499,MATCH(0,COUNTIF('Drop Downs (hidden)'!$A$3:A227,'HIC (hidden)'!$B$3:$B$499),0))=0,\"\",INDEX('HIC (hidden)'!$B$3:$B$499,MATCH(0,COUNTIF('Drop Downs (hidden)'!$A$3:A227,'HIC (hidden)'!$B$3:$B$499),0))),\"\")","v":""}]
[{"$f":"IFERROR(IF(INDEX('HIC (hidden)'!$B$3:$B$499,MATCH(0,COUNTIF('Drop Downs (hidden)'!$A$3:A228,'HIC (hidden)'!$B$3:$B$499),0))=0,\"\",INDEX('HIC (hidden)'!$B$3:$B$499,MATCH(0,COUNTIF('Drop Downs (hidden)'!$A$3:A228,'HIC (hidden)'!$B$3:$B$499),0))),\"\")","v":""}]
[{"$f":"IFERROR(IF(INDEX('HIC (hidden)'!$B$3:$B$499,MATCH(0,COUNTIF('Drop Downs (hidden)'!$A$3:A229,'HIC (hidden)'!$B$3:$B$499),0))=0,\"\",INDEX('HIC (hidden)'!$B$3:$B$499,MATCH(0,COUNTIF('Drop Downs (hidden)'!$A$3:A229,'HIC (hidden)'!$B$3:$B$499),0))),\"\")","v":""}]
[{"$f":"IFERROR(IF(INDEX('HIC (hidden)'!$B$3:$B$499,MATCH(0,COUNTIF('Drop Downs (hidden)'!$A$3:A230,'HIC (hidden)'!$B$3:$B$499),0))=0,\"\",INDEX('HIC (hidden)'!$B$3:$B$499,MATCH(0,COUNTIF('Drop Downs (hidden)'!$A$3:A230,'HIC (hidden)'!$B$3:$B$499),0))),\"\")","v":""}]
[{"$f":"IFERROR(IF(INDEX('HIC (hidden)'!$B$3:$B$499,MATCH(0,COUNTIF('Drop Downs (hidden)'!$A$3:A231,'HIC (hidden)'!$B$3:$B$499),0))=0,\"\",INDEX('HIC (hidden)'!$B$3:$B$499,MATCH(0,COUNTIF('Drop Downs (hidden)'!$A$3:A231,'HIC (hidden)'!$B$3:$B$499),0))),\"\")","v":""}]
[{"$f":"IFERROR(IF(INDEX('HIC (hidden)'!$B$3:$B$499,MATCH(0,COUNTIF('Drop Downs (hidden)'!$A$3:A232,'HIC (hidden)'!$B$3:$B$499),0))=0,\"\",INDEX('HIC (hidden)'!$B$3:$B$499,MATCH(0,COUNTIF('Drop Downs (hidden)'!$A$3:A232,'HIC (hidden)'!$B$3:$B$499),0))),\"\")","v":""}]
[{"$f":"IFERROR(IF(INDEX('HIC (hidden)'!$B$3:$B$499,MATCH(0,COUNTIF('Drop Downs (hidden)'!$A$3:A233,'HIC (hidden)'!$B$3:$B$499),0))=0,\"\",INDEX('HIC (hidden)'!$B$3:$B$499,MATCH(0,COUNTIF('Drop Downs (hidden)'!$A$3:A233,'HIC (hidden)'!$B$3:$B$499),0))),\"\")","v":""}]
[{"$f":"IFERROR(IF(INDEX('HIC (hidden)'!$B$3:$B$499,MATCH(0,COUNTIF('Drop Downs (hidden)'!$A$3:A234,'HIC (hidden)'!$B$3:$B$499),0))=0,\"\",INDEX('HIC (hidden)'!$B$3:$B$499,MATCH(0,COUNTIF('Drop Downs (hidden)'!$A$3:A234,'HIC (hidden)'!$B$3:$B$499),0))),\"\")","v":""}]
[{"$f":"IFERROR(IF(INDEX('HIC (hidden)'!$B$3:$B$499,MATCH(0,COUNTIF('Drop Downs (hidden)'!$A$3:A235,'HIC (hidden)'!$B$3:$B$499),0))=0,\"\",INDEX('HIC (hidden)'!$B$3:$B$499,MATCH(0,COUNTIF('Drop Downs (hidden)'!$A$3:A235,'HIC (hidden)'!$B$3:$B$499),0))),\"\")","v":""}]
[{"$f":"IFERROR(IF(INDEX('HIC (hidden)'!$B$3:$B$499,MATCH(0,COUNTIF('Drop Downs (hidden)'!$A$3:A236,'HIC (hidden)'!$B$3:$B$499),0))=0,\"\",INDEX('HIC (hidden)'!$B$3:$B$499,MATCH(0,COUNTIF('Drop Downs (hidden)'!$A$3:A236,'HIC (hidden)'!$B$3:$B$499),0))),\"\")","v":""}]
[{"$f":"IFERROR(IF(INDEX('HIC (hidden)'!$B$3:$B$499,MATCH(0,COUNTIF('Drop Downs (hidden)'!$A$3:A237,'HIC (hidden)'!$B$3:$B$499),0))=0,\"\",INDEX('HIC (hidden)'!$B$3:$B$499,MATCH(0,COUNTIF('Drop Downs (hidden)'!$A$3:A237,'HIC (hidden)'!$B$3:$B$499),0))),\"\")","v":""}]
[{"$f":"IFERROR(IF(INDEX('HIC (hidden)'!$B$3:$B$499,MATCH(0,COUNTIF('Drop Downs (hidden)'!$A$3:A238,'HIC (hidden)'!$B$3:$B$499),0))=0,\"\",INDEX('HIC (hidden)'!$B$3:$B$499,MATCH(0,COUNTIF('Drop Downs (hidden)'!$A$3:A238,'HIC (hidden)'!$B$3:$B$499),0))),\"\")","v":""}]
[{"$f":"IFERROR(IF(INDEX('HIC (hidden)'!$B$3:$B$499,MATCH(0,COUNTIF('Drop Downs (hidden)'!$A$3:A239,'HIC (hidden)'!$B$3:$B$499),0))=0,\"\",INDEX('HIC (hidden)'!$B$3:$B$499,MATCH(0,COUNTIF('Drop Downs (hidden)'!$A$3:A239,'HIC (hidden)'!$B$3:$B$499),0))),\"\")","v":""}]
[{"$f":"IFERROR(IF(INDEX('HIC (hidden)'!$B$3:$B$499,MATCH(0,COUNTIF('Drop Downs (hidden)'!$A$3:A240,'HIC (hidden)'!$B$3:$B$499),0))=0,\"\",INDEX('HIC (hidden)'!$B$3:$B$499,MATCH(0,COUNTIF('Drop Downs (hidden)'!$A$3:A240,'HIC (hidden)'!$B$3:$B$499),0))),\"\")","v":""}]
[{"$f":"IFERROR(IF(INDEX('HIC (hidden)'!$B$3:$B$499,MATCH(0,COUNTIF('Drop Downs (hidden)'!$A$3:A241,'HIC (hidden)'!$B$3:$B$499),0))=0,\"\",INDEX('HIC (hidden)'!$B$3:$B$499,MATCH(0,COUNTIF('Drop Downs (hidden)'!$A$3:A241,'HIC (hidden)'!$B$3:$B$499),0))),\"\")","v":""}]
[{"$f":"IFERROR(IF(INDEX('HIC (hidden)'!$B$3:$B$499,MATCH(0,COUNTIF('Drop Downs (hidden)'!$A$3:A242,'HIC (hidden)'!$B$3:$B$499),0))=0,\"\",INDEX('HIC (hidden)'!$B$3:$B$499,MATCH(0,COUNTIF('Drop Downs (hidden)'!$A$3:A242,'HIC (hidden)'!$B$3:$B$499),0))),\"\")","v":""}]
[{"$f":"IFERROR(IF(INDEX('HIC (hidden)'!$B$3:$B$499,MATCH(0,COUNTIF('Drop Downs (hidden)'!$A$3:A243,'HIC (hidden)'!$B$3:$B$499),0))=0,\"\",INDEX('HIC (hidden)'!$B$3:$B$499,MATCH(0,COUNTIF('Drop Downs (hidden)'!$A$3:A243,'HIC (hidden)'!$B$3:$B$499),0))),\"\")","v":""}]
[{"$f":"IFERROR(IF(INDEX('HIC (hidden)'!$B$3:$B$499,MATCH(0,COUNTIF('Drop Downs (hidden)'!$A$3:A244,'HIC (hidden)'!$B$3:$B$499),0))=0,\"\",INDEX('HIC (hidden)'!$B$3:$B$499,MATCH(0,COUNTIF('Drop Downs (hidden)'!$A$3:A244,'HIC (hidden)'!$B$3:$B$499),0))),\"\")","v":""}]
[{"$f":"IFERROR(IF(INDEX('HIC (hidden)'!$B$3:$B$499,MATCH(0,COUNTIF('Drop Downs (hidden)'!$A$3:A245,'HIC (hidden)'!$B$3:$B$499),0))=0,\"\",INDEX('HIC (hidden)'!$B$3:$B$499,MATCH(0,COUNTIF('Drop Downs (hidden)'!$A$3:A245,'HIC (hidden)'!$B$3:$B$499),0))),\"\")","v":""}]
[{"$f":"IFERROR(IF(INDEX('HIC (hidden)'!$B$3:$B$499,MATCH(0,COUNTIF('Drop Downs (hidden)'!$A$3:A246,'HIC (hidden)'!$B$3:$B$499),0))=0,\"\",INDEX('HIC (hidden)'!$B$3:$B$499,MATCH(0,COUNTIF('Drop Downs (hidden)'!$A$3:A246,'HIC (hidden)'!$B$3:$B$499),0))),\"\")","v":""}]
[{"$f":"IFERROR(IF(INDEX('HIC (hidden)'!$B$3:$B$499,MATCH(0,COUNTIF('Drop Downs (hidden)'!$A$3:A247,'HIC (hidden)'!$B$3:$B$499),0))=0,\"\",INDEX('HIC (hidden)'!$B$3:$B$499,MATCH(0,COUNTIF('Drop Downs (hidden)'!$A$3:A247,'HIC (hidden)'!$B$3:$B$499),0))),\"\")","v":""}]
[{"$f":"IFERROR(IF(INDEX('HIC (hidden)'!$B$3:$B$499,MATCH(0,COUNTIF('Drop Downs (hidden)'!$A$3:A248,'HIC (hidden)'!$B$3:$B$499),0))=0,\"\",INDEX('HIC (hidden)'!$B$3:$B$499,MATCH(0,COUNTIF('Drop Downs (hidden)'!$A$3:A248,'HIC (hidden)'!$B$3:$B$499),0))),\"\")","v":""}]
[{"$f":"IFERROR(IF(INDEX('HIC (hidden)'!$B$3:$B$499,MATCH(0,COUNTIF('Drop Downs (hidden)'!$A$3:A249,'HIC (hidden)'!$B$3:$B$499),0))=0,\"\",INDEX('HIC (hidden)'!$B$3:$B$499,MATCH(0,COUNTIF('Drop Downs (hidden)'!$A$3:A249,'HIC (hidden)'!$B$3:$B$499),0))),\"\")","v":""}]
[{"$f":"IFERROR(IF(INDEX('HIC (hidden)'!$B$3:$B$499,MATCH(0,COUNTIF('Drop Downs (hidden)'!$A$3:A250,'HIC (hidden)'!$B$3:$B$499),0))=0,\"\",INDEX('HIC (hidden)'!$B$3:$B$499,MATCH(0,COUNTIF('Drop Downs (hidden)'!$A$3:A250,'HIC (hidden)'!$B$3:$B$499),0))),\"\")","v":""}]
[{"$f":"IFERROR(IF(INDEX('HIC (hidden)'!$B$3:$B$499,MATCH(0,COUNTIF('Drop Downs (hidden)'!$A$3:A251,'HIC (hidden)'!$B$3:$B$499),0))=0,\"\",INDEX('HIC (hidden)'!$B$3:$B$499,MATCH(0,COUNTIF('Drop Downs (hidden)'!$A$3:A251,'HIC (hidden)'!$B$3:$B$499),0))),\"\")","v":""}]
[{"$f":"IFERROR(IF(INDEX('HIC (hidden)'!$B$3:$B$499,MATCH(0,COUNTIF('Drop Downs (hidden)'!$A$3:A252,'HIC (hidden)'!$B$3:$B$499),0))=0,\"\",INDEX('HIC (hidden)'!$B$3:$B$499,MATCH(0,COUNTIF('Drop Downs (hidden)'!$A$3:A252,'HIC (hidden)'!$B$3:$B$499),0))),\"\")","v":""}]
[{"$f":"IFERROR(IF(INDEX('HIC (hidden)'!$B$3:$B$499,MATCH(0,COUNTIF('Drop Downs (hidden)'!$A$3:A253,'HIC (hidden)'!$B$3:$B$499),0))=0,\"\",INDEX('HIC (hidden)'!$B$3:$B$499,MATCH(0,COUNTIF('Drop Downs (hidden)'!$A$3:A253,'HIC (hidden)'!$B$3:$B$499),0))),\"\")","v":""}]
[{"$f":"IFERROR(IF(INDEX('HIC (hidden)'!$B$3:$B$499,MATCH(0,COUNTIF('Drop Downs (hidden)'!$A$3:A254,'HIC (hidden)'!$B$3:$B$499),0))=0,\"\",INDEX('HIC (hidden)'!$B$3:$B$499,MATCH(0,COUNTIF('Drop Downs (hidden)'!$A$3:A254,'HIC (hidden)'!$B$3:$B$499),0))),\"\")","v":""}]
[{"$f":"IFERROR(IF(INDEX('HIC (hidden)'!$B$3:$B$499,MATCH(0,COUNTIF('Drop Downs (hidden)'!$A$3:A255,'HIC (hidden)'!$B$3:$B$499),0))=0,\"\",INDEX('HIC (hidden)'!$B$3:$B$499,MATCH(0,COUNTIF('Drop Downs (hidden)'!$A$3:A255,'HIC (hidden)'!$B$3:$B$499),0))),\"\")","v":""}]
[{"$f":"IFERROR(IF(INDEX('HIC (hidden)'!$B$3:$B$499,MATCH(0,COUNTIF('Drop Downs (hidden)'!$A$3:A256,'HIC (hidden)'!$B$3:$B$499),0))=0,\"\",INDEX('HIC (hidden)'!$B$3:$B$499,MATCH(0,COUNTIF('Drop Downs (hidden)'!$A$3:A256,'HIC (hidden)'!$B$3:$B$499),0))),\"\")","v":""}]
[{"$f":"IFERROR(IF(INDEX('HIC (hidden)'!$B$3:$B$499,MATCH(0,COUNTIF('Drop Downs (hidden)'!$A$3:A257,'HIC (hidden)'!$B$3:$B$499),0))=0,\"\",INDEX('HIC (hidden)'!$B$3:$B$499,MATCH(0,COUNTIF('Drop Downs (hidden)'!$A$3:A257,'HIC (hidden)'!$B$3:$B$499),0))),\"\")","v":""}]
[{"$f":"IFERROR(IF(INDEX('HIC (hidden)'!$B$3:$B$499,MATCH(0,COUNTIF('Drop Downs (hidden)'!$A$3:A258,'HIC (hidden)'!$B$3:$B$499),0))=0,\"\",INDEX('HIC (hidden)'!$B$3:$B$499,MATCH(0,COUNTIF('Drop Downs (hidden)'!$A$3:A258,'HIC (hidden)'!$B$3:$B$499),0))),\"\")","v":""}]
[{"$f":"IFERROR(IF(INDEX('HIC (hidden)'!$B$3:$B$499,MATCH(0,COUNTIF('Drop Downs (hidden)'!$A$3:A259,'HIC (hidden)'!$B$3:$B$499),0))=0,\"\",INDEX('HIC (hidden)'!$B$3:$B$499,MATCH(0,COUNTIF('Drop Downs (hidden)'!$A$3:A259,'HIC (hidden)'!$B$3:$B$499),0))),\"\")","v":""}]
[{"$f":"IFERROR(IF(INDEX('HIC (hidden)'!$B$3:$B$499,MATCH(0,COUNTIF('Drop Downs (hidden)'!$A$3:A260,'HIC (hidden)'!$B$3:$B$499),0))=0,\"\",INDEX('HIC (hidden)'!$B$3:$B$499,MATCH(0,COUNTIF('Drop Downs (hidden)'!$A$3:A260,'HIC (hidden)'!$B$3:$B$499),0))),\"\")","v":""}]
[{"$f":"IFERROR(IF(INDEX('HIC (hidden)'!$B$3:$B$499,MATCH(0,COUNTIF('Drop Downs (hidden)'!$A$3:A261,'HIC (hidden)'!$B$3:$B$499),0))=0,\"\",INDEX('HIC (hidden)'!$B$3:$B$499,MATCH(0,COUNTIF('Drop Downs (hidden)'!$A$3:A261,'HIC (hidden)'!$B$3:$B$499),0))),\"\")","v":""}]
[{"$f":"IFERROR(IF(INDEX('HIC (hidden)'!$B$3:$B$499,MATCH(0,COUNTIF('Drop Downs (hidden)'!$A$3:A262,'HIC (hidden)'!$B$3:$B$499),0))=0,\"\",INDEX('HIC (hidden)'!$B$3:$B$499,MATCH(0,COUNTIF('Drop Downs (hidden)'!$A$3:A262,'HIC (hidden)'!$B$3:$B$499),0))),\"\")","v":""}]
[{"$f":"IFERROR(IF(INDEX('HIC (hidden)'!$B$3:$B$499,MATCH(0,COUNTIF('Drop Downs (hidden)'!$A$3:A263,'HIC (hidden)'!$B$3:$B$499),0))=0,\"\",INDEX('HIC (hidden)'!$B$3:$B$499,MATCH(0,COUNTIF('Drop Downs (hidden)'!$A$3:A263,'HIC (hidden)'!$B$3:$B$499),0))),\"\")","v":""}]
[{"$f":"IFERROR(IF(INDEX('HIC (hidden)'!$B$3:$B$499,MATCH(0,COUNTIF('Drop Downs (hidden)'!$A$3:A264,'HIC (hidden)'!$B$3:$B$499),0))=0,\"\",INDEX('HIC (hidden)'!$B$3:$B$499,MATCH(0,COUNTIF('Drop Downs (hidden)'!$A$3:A264,'HIC (hidden)'!$B$3:$B$499),0))),\"\")","v":""}]
[{"$f":"IFERROR(IF(INDEX('HIC (hidden)'!$B$3:$B$499,MATCH(0,COUNTIF('Drop Downs (hidden)'!$A$3:A265,'HIC (hidden)'!$B$3:$B$499),0))=0,\"\",INDEX('HIC (hidden)'!$B$3:$B$499,MATCH(0,COUNTIF('Drop Downs (hidden)'!$A$3:A265,'HIC (hidden)'!$B$3:$B$499),0))),\"\")","v":""}]
[{"$f":"IFERROR(IF(INDEX('HIC (hidden)'!$B$3:$B$499,MATCH(0,COUNTIF('Drop Downs (hidden)'!$A$3:A266,'HIC (hidden)'!$B$3:$B$499),0))=0,\"\",INDEX('HIC (hidden)'!$B$3:$B$499,MATCH(0,COUNTIF('Drop Downs (hidden)'!$A$3:A266,'HIC (hidden)'!$B$3:$B$499),0))),\"\")","v":""}]
[{"$f":"IFERROR(IF(INDEX('HIC (hidden)'!$B$3:$B$499,MATCH(0,COUNTIF('Drop Downs (hidden)'!$A$3:A267,'HIC (hidden)'!$B$3:$B$499),0))=0,\"\",INDEX('HIC (hidden)'!$B$3:$B$499,MATCH(0,COUNTIF('Drop Downs (hidden)'!$A$3:A267,'HIC (hidden)'!$B$3:$B$499),0))),\"\")","v":""}]
[{"$f":"IFERROR(IF(INDEX('HIC (hidden)'!$B$3:$B$499,MATCH(0,COUNTIF('Drop Downs (hidden)'!$A$3:A268,'HIC (hidden)'!$B$3:$B$499),0))=0,\"\",INDEX('HIC (hidden)'!$B$3:$B$499,MATCH(0,COUNTIF('Drop Downs (hidden)'!$A$3:A268,'HIC (hidden)'!$B$3:$B$499),0))),\"\")","v":""}]
[{"$f":"IFERROR(IF(INDEX('HIC (hidden)'!$B$3:$B$499,MATCH(0,COUNTIF('Drop Downs (hidden)'!$A$3:A269,'HIC (hidden)'!$B$3:$B$499),0))=0,\"\",INDEX('HIC (hidden)'!$B$3:$B$499,MATCH(0,COUNTIF('Drop Downs (hidden)'!$A$3:A269,'HIC (hidden)'!$B$3:$B$499),0))),\"\")","v":""}]
[{"$f":"IFERROR(IF(INDEX('HIC (hidden)'!$B$3:$B$499,MATCH(0,COUNTIF('Drop Downs (hidden)'!$A$3:A270,'HIC (hidden)'!$B$3:$B$499),0))=0,\"\",INDEX('HIC (hidden)'!$B$3:$B$499,MATCH(0,COUNTIF('Drop Downs (hidden)'!$A$3:A270,'HIC (hidden)'!$B$3:$B$499),0))),\"\")","v":""}]
[{"$f":"IFERROR(IF(INDEX('HIC (hidden)'!$B$3:$B$499,MATCH(0,COUNTIF('Drop Downs (hidden)'!$A$3:A271,'HIC (hidden)'!$B$3:$B$499),0))=0,\"\",INDEX('HIC (hidden)'!$B$3:$B$499,MATCH(0,COUNTIF('Drop Downs (hidden)'!$A$3:A271,'HIC (hidden)'!$B$3:$B$499),0))),\"\")","v":""}]
[{"$f":"IFERROR(IF(INDEX('HIC (hidden)'!$B$3:$B$499,MATCH(0,COUNTIF('Drop Downs (hidden)'!$A$3:A272,'HIC (hidden)'!$B$3:$B$499),0))=0,\"\",INDEX('HIC (hidden)'!$B$3:$B$499,MATCH(0,COUNTIF('Drop Downs (hidden)'!$A$3:A272,'HIC (hidden)'!$B$3:$B$499),0))),\"\")","v":""}]
[{"$f":"IFERROR(IF(INDEX('HIC (hidden)'!$B$3:$B$499,MATCH(0,COUNTIF('Drop Downs (hidden)'!$A$3:A273,'HIC (hidden)'!$B$3:$B$499),0))=0,\"\",INDEX('HIC (hidden)'!$B$3:$B$499,MATCH(0,COUNTIF('Drop Downs (hidden)'!$A$3:A273,'HIC (hidden)'!$B$3:$B$499),0))),\"\")","v":""}]
[{"$f":"IFERROR(IF(INDEX('HIC (hidden)'!$B$3:$B$499,MATCH(0,COUNTIF('Drop Downs (hidden)'!$A$3:A274,'HIC (hidden)'!$B$3:$B$499),0))=0,\"\",INDEX('HIC (hidden)'!$B$3:$B$499,MATCH(0,COUNTIF('Drop Downs (hidden)'!$A$3:A274,'HIC (hidden)'!$B$3:$B$499),0))),\"\")","v":""}]
[{"$f":"IFERROR(IF(INDEX('HIC (hidden)'!$B$3:$B$499,MATCH(0,COUNTIF('Drop Downs (hidden)'!$A$3:A275,'HIC (hidden)'!$B$3:$B$499),0))=0,\"\",INDEX('HIC (hidden)'!$B$3:$B$499,MATCH(0,COUNTIF('Drop Downs (hidden)'!$A$3:A275,'HIC (hidden)'!$B$3:$B$499),0))),\"\")","v":""}]
[{"$f":"IFERROR(IF(INDEX('HIC (hidden)'!$B$3:$B$499,MATCH(0,COUNTIF('Drop Downs (hidden)'!$A$3:A276,'HIC (hidden)'!$B$3:$B$499),0))=0,\"\",INDEX('HIC (hidden)'!$B$3:$B$499,MATCH(0,COUNTIF('Drop Downs (hidden)'!$A$3:A276,'HIC (hidden)'!$B$3:$B$499),0))),\"\")","v":""}]
[{"$f":"IFERROR(IF(INDEX('HIC (hidden)'!$B$3:$B$499,MATCH(0,COUNTIF('Drop Downs (hidden)'!$A$3:A277,'HIC (hidden)'!$B$3:$B$499),0))=0,\"\",INDEX('HIC (hidden)'!$B$3:$B$499,MATCH(0,COUNTIF('Drop Downs (hidden)'!$A$3:A277,'HIC (hidden)'!$B$3:$B$499),0))),\"\")","v":""}]
[{"$f":"IFERROR(IF(INDEX('HIC (hidden)'!$B$3:$B$499,MATCH(0,COUNTIF('Drop Downs (hidden)'!$A$3:A278,'HIC (hidden)'!$B$3:$B$499),0))=0,\"\",INDEX('HIC (hidden)'!$B$3:$B$499,MATCH(0,COUNTIF('Drop Downs (hidden)'!$A$3:A278,'HIC (hidden)'!$B$3:$B$499),0))),\"\")","v":""}]
[{"$f":"IFERROR(IF(INDEX('HIC (hidden)'!$B$3:$B$499,MATCH(0,COUNTIF('Drop Downs (hidden)'!$A$3:A279,'HIC (hidden)'!$B$3:$B$499),0))=0,\"\",INDEX('HIC (hidden)'!$B$3:$B$499,MATCH(0,COUNTIF('Drop Downs (hidden)'!$A$3:A279,'HIC (hidden)'!$B$3:$B$499),0))),\"\")","v":""}]
[{"$f":"IFERROR(IF(INDEX('HIC (hidden)'!$B$3:$B$499,MATCH(0,COUNTIF('Drop Downs (hidden)'!$A$3:A280,'HIC (hidden)'!$B$3:$B$499),0))=0,\"\",INDEX('HIC (hidden)'!$B$3:$B$499,MATCH(0,COUNTIF('Drop Downs (hidden)'!$A$3:A280,'HIC (hidden)'!$B$3:$B$499),0))),\"\")","v":""}]
[{"$f":"IFERROR(IF(INDEX('HIC (hidden)'!$B$3:$B$499,MATCH(0,COUNTIF('Drop Downs (hidden)'!$A$3:A281,'HIC (hidden)'!$B$3:$B$499),0))=0,\"\",INDEX('HIC (hidden)'!$B$3:$B$499,MATCH(0,COUNTIF('Drop Downs (hidden)'!$A$3:A281,'HIC (hidden)'!$B$3:$B$499),0))),\"\")","v":""}]
[{"$f":"IFERROR(IF(INDEX('HIC (hidden)'!$B$3:$B$499,MATCH(0,COUNTIF('Drop Downs (hidden)'!$A$3:A282,'HIC (hidden)'!$B$3:$B$499),0))=0,\"\",INDEX('HIC (hidden)'!$B$3:$B$499,MATCH(0,COUNTIF('Drop Downs (hidden)'!$A$3:A282,'HIC (hidden)'!$B$3:$B$499),0))),\"\")","v":""}]
[{"$f":"IFERROR(IF(INDEX('HIC (hidden)'!$B$3:$B$499,MATCH(0,COUNTIF('Drop Downs (hidden)'!$A$3:A283,'HIC (hidden)'!$B$3:$B$499),0))=0,\"\",INDEX('HIC (hidden)'!$B$3:$B$499,MATCH(0,COUNTIF('Drop Downs (hidden)'!$A$3:A283,'HIC (hidden)'!$B$3:$B$499),0))),\"\")","v":""}]
[{"$f":"IFERROR(IF(INDEX('HIC (hidden)'!$B$3:$B$499,MATCH(0,COUNTIF('Drop Downs (hidden)'!$A$3:A284,'HIC (hidden)'!$B$3:$B$499),0))=0,\"\",INDEX('HIC (hidden)'!$B$3:$B$499,MATCH(0,COUNTIF('Drop Downs (hidden)'!$A$3:A284,'HIC (hidden)'!$B$3:$B$499),0))),\"\")","v":""}]
[{"$f":"IFERROR(IF(INDEX('HIC (hidden)'!$B$3:$B$499,MATCH(0,COUNTIF('Drop Downs (hidden)'!$A$3:A285,'HIC (hidden)'!$B$3:$B$499),0))=0,\"\",INDEX('HIC (hidden)'!$B$3:$B$499,MATCH(0,COUNTIF('Drop Downs (hidden)'!$A$3:A285,'HIC (hidden)'!$B$3:$B$499),0))),\"\")","v":""}]
[{"$f":"IFERROR(IF(INDEX('HIC (hidden)'!$B$3:$B$499,MATCH(0,COUNTIF('Drop Downs (hidden)'!$A$3:A286,'HIC (hidden)'!$B$3:$B$499),0))=0,\"\",INDEX('HIC (hidden)'!$B$3:$B$499,MATCH(0,COUNTIF('Drop Downs (hidden)'!$A$3:A286,'HIC (hidden)'!$B$3:$B$499),0))),\"\")","v":""}]
[{"$f":"IFERROR(IF(INDEX('HIC (hidden)'!$B$3:$B$499,MATCH(0,COUNTIF('Drop Downs (hidden)'!$A$3:A287,'HIC (hidden)'!$B$3:$B$499),0))=0,\"\",INDEX('HIC (hidden)'!$B$3:$B$499,MATCH(0,COUNTIF('Drop Downs (hidden)'!$A$3:A287,'HIC (hidden)'!$B$3:$B$499),0))),\"\")","v":""}]
[{"$f":"IFERROR(IF(INDEX('HIC (hidden)'!$B$3:$B$499,MATCH(0,COUNTIF('Drop Downs (hidden)'!$A$3:A288,'HIC (hidden)'!$B$3:$B$499),0))=0,\"\",INDEX('HIC (hidden)'!$B$3:$B$499,MATCH(0,COUNTIF('Drop Downs (hidden)'!$A$3:A288,'HIC (hidden)'!$B$3:$B$499),0))),\"\")","v":""}]
[{"$f":"IFERROR(IF(INDEX('HIC (hidden)'!$B$3:$B$499,MATCH(0,COUNTIF('Drop Downs (hidden)'!$A$3:A289,'HIC (hidden)'!$B$3:$B$499),0))=0,\"\",INDEX('HIC (hidden)'!$B$3:$B$499,MATCH(0,COUNTIF('Drop Downs (hidden)'!$A$3:A289,'HIC (hidden)'!$B$3:$B$499),0))),\"\")","v":""}]
[{"$f":"IFERROR(IF(INDEX('HIC (hidden)'!$B$3:$B$499,MATCH(0,COUNTIF('Drop Downs (hidden)'!$A$3:A290,'HIC (hidden)'!$B$3:$B$499),0))=0,\"\",INDEX('HIC (hidden)'!$B$3:$B$499,MATCH(0,COUNTIF('Drop Downs (hidden)'!$A$3:A290,'HIC (hidden)'!$B$3:$B$499),0))),\"\")","v":""}]
[{"$f":"IFERROR(IF(INDEX('HIC (hidden)'!$B$3:$B$499,MATCH(0,COUNTIF('Drop Downs (hidden)'!$A$3:A291,'HIC (hidden)'!$B$3:$B$499),0))=0,\"\",INDEX('HIC (hidden)'!$B$3:$B$499,MATCH(0,COUNTIF('Drop Downs (hidden)'!$A$3:A291,'HIC (hidden)'!$B$3:$B$499),0))),\"\")","v":""}]
[{"$f":"IFERROR(IF(INDEX('HIC (hidden)'!$B$3:$B$499,MATCH(0,COUNTIF('Drop Downs (hidden)'!$A$3:A292,'HIC (hidden)'!$B$3:$B$499),0))=0,\"\",INDEX('HIC (hidden)'!$B$3:$B$499,MATCH(0,COUNTIF('Drop Downs (hidden)'!$A$3:A292,'HIC (hidden)'!$B$3:$B$499),0))),\"\")","v":""}]
[{"$f":"IFERROR(IF(INDEX('HIC (hidden)'!$B$3:$B$499,MATCH(0,COUNTIF('Drop Downs (hidden)'!$A$3:A293,'HIC (hidden)'!$B$3:$B$499),0))=0,\"\",INDEX('HIC (hidden)'!$B$3:$B$499,MATCH(0,COUNTIF('Drop Downs (hidden)'!$A$3:A293,'HIC (hidden)'!$B$3:$B$499),0))),\"\")","v":""}]
[{"$f":"IFERROR(IF(INDEX('HIC (hidden)'!$B$3:$B$499,MATCH(0,COUNTIF('Drop Downs (hidden)'!$A$3:A294,'HIC (hidden)'!$B$3:$B$499),0))=0,\"\",INDEX('HIC (hidden)'!$B$3:$B$499,MATCH(0,COUNTIF('Drop Downs (hidden)'!$A$3:A294,'HIC (hidden)'!$B$3:$B$499),0))),\"\")","v":""}]
[{"$f":"IFERROR(IF(INDEX('HIC (hidden)'!$B$3:$B$499,MATCH(0,COUNTIF('Drop Downs (hidden)'!$A$3:A295,'HIC (hidden)'!$B$3:$B$499),0))=0,\"\",INDEX('HIC (hidden)'!$B$3:$B$499,MATCH(0,COUNTIF('Drop Downs (hidden)'!$A$3:A295,'HIC (hidden)'!$B$3:$B$499),0))),\"\")","v":""}]
[{"$f":"IFERROR(IF(INDEX('HIC (hidden)'!$B$3:$B$499,MATCH(0,COUNTIF('Drop Downs (hidden)'!$A$3:A296,'HIC (hidden)'!$B$3:$B$499),0))=0,\"\",INDEX('HIC (hidden)'!$B$3:$B$499,MATCH(0,COUNTIF('Drop Downs (hidden)'!$A$3:A296,'HIC (hidden)'!$B$3:$B$499),0))),\"\")","v":""}]
[{"$f":"IFERROR(IF(INDEX('HIC (hidden)'!$B$3:$B$499,MATCH(0,COUNTIF('Drop Downs (hidden)'!$A$3:A297,'HIC (hidden)'!$B$3:$B$499),0))=0,\"\",INDEX('HIC (hidden)'!$B$3:$B$499,MATCH(0,COUNTIF('Drop Downs (hidden)'!$A$3:A297,'HIC (hidden)'!$B$3:$B$499),0))),\"\")","v":""}]
[{"$f":"IFERROR(IF(INDEX('HIC (hidden)'!$B$3:$B$499,MATCH(0,COUNTIF('Drop Downs (hidden)'!$A$3:A298,'HIC (hidden)'!$B$3:$B$499),0))=0,\"\",INDEX('HIC (hidden)'!$B$3:$B$499,MATCH(0,COUNTIF('Drop Downs (hidden)'!$A$3:A298,'HIC (hidden)'!$B$3:$B$499),0))),\"\")","v":""}]
[{"$f":"IFERROR(IF(INDEX('HIC (hidden)'!$B$3:$B$499,MATCH(0,COUNTIF('Drop Downs (hidden)'!$A$3:A299,'HIC (hidden)'!$B$3:$B$499),0))=0,\"\",INDEX('HIC (hidden)'!$B$3:$B$499,MATCH(0,COUNTIF('Drop Downs (hidden)'!$A$3:A299,'HIC (hidden)'!$B$3:$B$499),0))),\"\")","v":""}]
[{"$f":"IFERROR(IF(INDEX('HIC (hidden)'!$B$3:$B$499,MATCH(0,COUNTIF('Drop Downs (hidden)'!$A$3:A300,'HIC (hidden)'!$B$3:$B$499),0))=0,\"\",INDEX('HIC (hidden)'!$B$3:$B$499,MATCH(0,COUNTIF('Drop Downs (hidden)'!$A$3:A300,'HIC (hidden)'!$B$3:$B$499),0))),\"\")","v":""}]
[{"$f":"IFERROR(IF(INDEX('HIC (hidden)'!$B$3:$B$499,MATCH(0,COUNTIF('Drop Downs (hidden)'!$A$3:A301,'HIC (hidden)'!$B$3:$B$499),0))=0,\"\",INDEX('HIC (hidden)'!$B$3:$B$499,MATCH(0,COUNTIF('Drop Downs (hidden)'!$A$3:A301,'HIC (hidden)'!$B$3:$B$499),0))),\"\")","v":""}]
[{"$f":"IFERROR(IF(INDEX('HIC (hidden)'!$B$3:$B$499,MATCH(0,COUNTIF('Drop Downs (hidden)'!$A$3:A302,'HIC (hidden)'!$B$3:$B$499),0))=0,\"\",INDEX('HIC (hidden)'!$B$3:$B$499,MATCH(0,COUNTIF('Drop Downs (hidden)'!$A$3:A302,'HIC (hidden)'!$B$3:$B$499),0))),\"\")","v":""}]
[{"$f":"IFERROR(IF(INDEX('HIC (hidden)'!$B$3:$B$499,MATCH(0,COUNTIF('Drop Downs (hidden)'!$A$3:A303,'HIC (hidden)'!$B$3:$B$499),0))=0,\"\",INDEX('HIC (hidden)'!$B$3:$B$499,MATCH(0,COUNTIF('Drop Downs (hidden)'!$A$3:A303,'HIC (hidden)'!$B$3:$B$499),0))),\"\")","v":""}]
[{"$f":"IFERROR(IF(INDEX('HIC (hidden)'!$B$3:$B$499,MATCH(0,COUNTIF('Drop Downs (hidden)'!$A$3:A304,'HIC (hidden)'!$B$3:$B$499),0))=0,\"\",INDEX('HIC (hidden)'!$B$3:$B$499,MATCH(0,COUNTIF('Drop Downs (hidden)'!$A$3:A304,'HIC (hidden)'!$B$3:$B$499),0))),\"\")","v":""}]
[{"$f":"IFERROR(IF(INDEX('HIC (hidden)'!$B$3:$B$499,MATCH(0,COUNTIF('Drop Downs (hidden)'!$A$3:A305,'HIC (hidden)'!$B$3:$B$499),0))=0,\"\",INDEX('HIC (hidden)'!$B$3:$B$499,MATCH(0,COUNTIF('Drop Downs (hidden)'!$A$3:A305,'HIC (hidden)'!$B$3:$B$499),0))),\"\")","v":""}]
[{"$f":"IFERROR(IF(INDEX('HIC (hidden)'!$B$3:$B$499,MATCH(0,COUNTIF('Drop Downs (hidden)'!$A$3:A306,'HIC (hidden)'!$B$3:$B$499),0))=0,\"\",INDEX('HIC (hidden)'!$B$3:$B$499,MATCH(0,COUNTIF('Drop Downs (hidden)'!$A$3:A306,'HIC (hidden)'!$B$3:$B$499),0))),\"\")","v":""}]
[{"$f":"IFERROR(IF(INDEX('HIC (hidden)'!$B$3:$B$499,MATCH(0,COUNTIF('Drop Downs (hidden)'!$A$3:A307,'HIC (hidden)'!$B$3:$B$499),0))=0,\"\",INDEX('HIC (hidden)'!$B$3:$B$499,MATCH(0,COUNTIF('Drop Downs (hidden)'!$A$3:A307,'HIC (hidden)'!$B$3:$B$499),0))),\"\")","v":""}]
[{"$f":"IFERROR(IF(INDEX('HIC (hidden)'!$B$3:$B$499,MATCH(0,COUNTIF('Drop Downs (hidden)'!$A$3:A308,'HIC (hidden)'!$B$3:$B$499),0))=0,\"\",INDEX('HIC (hidden)'!$B$3:$B$499,MATCH(0,COUNTIF('Drop Downs (hidden)'!$A$3:A308,'HIC (hidden)'!$B$3:$B$499),0))),\"\")","v":""}]
[{"$f":"IFERROR(IF(INDEX('HIC (hidden)'!$B$3:$B$499,MATCH(0,COUNTIF('Drop Downs (hidden)'!$A$3:A309,'HIC (hidden)'!$B$3:$B$499),0))=0,\"\",INDEX('HIC (hidden)'!$B$3:$B$499,MATCH(0,COUNTIF('Drop Downs (hidden)'!$A$3:A309,'HIC (hidden)'!$B$3:$B$499),0))),\"\")","v":""}]
[{"$f":"IFERROR(IF(INDEX('HIC (hidden)'!$B$3:$B$499,MATCH(0,COUNTIF('Drop Downs (hidden)'!$A$3:A310,'HIC (hidden)'!$B$3:$B$499),0))=0,\"\",INDEX('HIC (hidden)'!$B$3:$B$499,MATCH(0,COUNTIF('Drop Downs (hidden)'!$A$3:A310,'HIC (hidden)'!$B$3:$B$499),0))),\"\")","v":""}]
[{"$f":"IFERROR(IF(INDEX('HIC (hidden)'!$B$3:$B$499,MATCH(0,COUNTIF('Drop Downs (hidden)'!$A$3:A311,'HIC (hidden)'!$B$3:$B$499),0))=0,\"\",INDEX('HIC (hidden)'!$B$3:$B$499,MATCH(0,COUNTIF('Drop Downs (hidden)'!$A$3:A311,'HIC (hidden)'!$B$3:$B$499),0))),\"\")","v":""}]
[{"$f":"IFERROR(IF(INDEX('HIC (hidden)'!$B$3:$B$499,MATCH(0,COUNTIF('Drop Downs (hidden)'!$A$3:A312,'HIC (hidden)'!$B$3:$B$499),0))=0,\"\",INDEX('HIC (hidden)'!$B$3:$B$499,MATCH(0,COUNTIF('Drop Downs (hidden)'!$A$3:A312,'HIC (hidden)'!$B$3:$B$499),0))),\"\")","v":""}]
[{"$f":"IFERROR(IF(INDEX('HIC (hidden)'!$B$3:$B$499,MATCH(0,COUNTIF('Drop Downs (hidden)'!$A$3:A313,'HIC (hidden)'!$B$3:$B$499),0))=0,\"\",INDEX('HIC (hidden)'!$B$3:$B$499,MATCH(0,COUNTIF('Drop Downs (hidden)'!$A$3:A313,'HIC (hidden)'!$B$3:$B$499),0))),\"\")","v":""}]
[{"$f":"IFERROR(IF(INDEX('HIC (hidden)'!$B$3:$B$499,MATCH(0,COUNTIF('Drop Downs (hidden)'!$A$3:A314,'HIC (hidden)'!$B$3:$B$499),0))=0,\"\",INDEX('HIC (hidden)'!$B$3:$B$499,MATCH(0,COUNTIF('Drop Downs (hidden)'!$A$3:A314,'HIC (hidden)'!$B$3:$B$499),0))),\"\")","v":""}]
[{"$f":"IFERROR(IF(INDEX('HIC (hidden)'!$B$3:$B$499,MATCH(0,COUNTIF('Drop Downs (hidden)'!$A$3:A315,'HIC (hidden)'!$B$3:$B$499),0))=0,\"\",INDEX('HIC (hidden)'!$B$3:$B$499,MATCH(0,COUNTIF('Drop Downs (hidden)'!$A$3:A315,'HIC (hidden)'!$B$3:$B$499),0))),\"\")","v":""}]
[{"$f":"IFERROR(IF(INDEX('HIC (hidden)'!$B$3:$B$499,MATCH(0,COUNTIF('Drop Downs (hidden)'!$A$3:A316,'HIC (hidden)'!$B$3:$B$499),0))=0,\"\",INDEX('HIC (hidden)'!$B$3:$B$499,MATCH(0,COUNTIF('Drop Downs (hidden)'!$A$3:A316,'HIC (hidden)'!$B$3:$B$499),0))),\"\")","v":""}]
[{"$f":"IFERROR(IF(INDEX('HIC (hidden)'!$B$3:$B$499,MATCH(0,COUNTIF('Drop Downs (hidden)'!$A$3:A317,'HIC (hidden)'!$B$3:$B$499),0))=0,\"\",INDEX('HIC (hidden)'!$B$3:$B$499,MATCH(0,COUNTIF('Drop Downs (hidden)'!$A$3:A317,'HIC (hidden)'!$B$3:$B$499),0))),\"\")","v":""}]
[{"$f":"IFERROR(IF(INDEX('HIC (hidden)'!$B$3:$B$499,MATCH(0,COUNTIF('Drop Downs (hidden)'!$A$3:A318,'HIC (hidden)'!$B$3:$B$499),0))=0,\"\",INDEX('HIC (hidden)'!$B$3:$B$499,MATCH(0,COUNTIF('Drop Downs (hidden)'!$A$3:A318,'HIC (hidden)'!$B$3:$B$499),0))),\"\")","v":""}]
[{"$f":"IFERROR(IF(INDEX('HIC (hidden)'!$B$3:$B$499,MATCH(0,COUNTIF('Drop Downs (hidden)'!$A$3:A319,'HIC (hidden)'!$B$3:$B$499),0))=0,\"\",INDEX('HIC (hidden)'!$B$3:$B$499,MATCH(0,COUNTIF('Drop Downs (hidden)'!$A$3:A319,'HIC (hidden)'!$B$3:$B$499),0))),\"\")","v":""}]
[{"$f":"IFERROR(IF(INDEX('HIC (hidden)'!$B$3:$B$499,MATCH(0,COUNTIF('Drop Downs (hidden)'!$A$3:A320,'HIC (hidden)'!$B$3:$B$499),0))=0,\"\",INDEX('HIC (hidden)'!$B$3:$B$499,MATCH(0,COUNTIF('Drop Downs (hidden)'!$A$3:A320,'HIC (hidden)'!$B$3:$B$499),0))),\"\")","v":""}]
[{"$f":"IFERROR(IF(INDEX('HIC (hidden)'!$B$3:$B$499,MATCH(0,COUNTIF('Drop Downs (hidden)'!$A$3:A321,'HIC (hidden)'!$B$3:$B$499),0))=0,\"\",INDEX('HIC (hidden)'!$B$3:$B$499,MATCH(0,COUNTIF('Drop Downs (hidden)'!$A$3:A321,'HIC (hidden)'!$B$3:$B$499),0))),\"\")","v":""}]
[{"$f":"IFERROR(IF(INDEX('HIC (hidden)'!$B$3:$B$499,MATCH(0,COUNTIF('Drop Downs (hidden)'!$A$3:A322,'HIC (hidden)'!$B$3:$B$499),0))=0,\"\",INDEX('HIC (hidden)'!$B$3:$B$499,MATCH(0,COUNTIF('Drop Downs (hidden)'!$A$3:A322,'HIC (hidden)'!$B$3:$B$499),0))),\"\")","v":""}]
[{"$f":"IFERROR(IF(INDEX('HIC (hidden)'!$B$3:$B$499,MATCH(0,COUNTIF('Drop Downs (hidden)'!$A$3:A323,'HIC (hidden)'!$B$3:$B$499),0))=0,\"\",INDEX('HIC (hidden)'!$B$3:$B$499,MATCH(0,COUNTIF('Drop Downs (hidden)'!$A$3:A323,'HIC (hidden)'!$B$3:$B$499),0))),\"\")","v":""}]
[{"$f":"IFERROR(IF(INDEX('HIC (hidden)'!$B$3:$B$499,MATCH(0,COUNTIF('Drop Downs (hidden)'!$A$3:A324,'HIC (hidden)'!$B$3:$B$499),0))=0,\"\",INDEX('HIC (hidden)'!$B$3:$B$499,MATCH(0,COUNTIF('Drop Downs (hidden)'!$A$3:A324,'HIC (hidden)'!$B$3:$B$499),0))),\"\")","v":""}]
[{"$f":"IFERROR(IF(INDEX('HIC (hidden)'!$B$3:$B$499,MATCH(0,COUNTIF('Drop Downs (hidden)'!$A$3:A325,'HIC (hidden)'!$B$3:$B$499),0))=0,\"\",INDEX('HIC (hidden)'!$B$3:$B$499,MATCH(0,COUNTIF('Drop Downs (hidden)'!$A$3:A325,'HIC (hidden)'!$B$3:$B$499),0))),\"\")","v":""}]
[{"$f":"IFERROR(IF(INDEX('HIC (hidden)'!$B$3:$B$499,MATCH(0,COUNTIF('Drop Downs (hidden)'!$A$3:A326,'HIC (hidden)'!$B$3:$B$499),0))=0,\"\",INDEX('HIC (hidden)'!$B$3:$B$499,MATCH(0,COUNTIF('Drop Downs (hidden)'!$A$3:A326,'HIC (hidden)'!$B$3:$B$499),0))),\"\")","v":""}]
[{"$f":"IFERROR(IF(INDEX('HIC (hidden)'!$B$3:$B$499,MATCH(0,COUNTIF('Drop Downs (hidden)'!$A$3:A327,'HIC (hidden)'!$B$3:$B$499),0))=0,\"\",INDEX('HIC (hidden)'!$B$3:$B$499,MATCH(0,COUNTIF('Drop Downs (hidden)'!$A$3:A327,'HIC (hidden)'!$B$3:$B$499),0))),\"\")","v":""}]
[{"$f":"IFERROR(IF(INDEX('HIC (hidden)'!$B$3:$B$499,MATCH(0,COUNTIF('Drop Downs (hidden)'!$A$3:A328,'HIC (hidden)'!$B$3:$B$499),0))=0,\"\",INDEX('HIC (hidden)'!$B$3:$B$499,MATCH(0,COUNTIF('Drop Downs (hidden)'!$A$3:A328,'HIC (hidden)'!$B$3:$B$499),0))),\"\")","v":""}]
[{"$f":"IFERROR(IF(INDEX('HIC (hidden)'!$B$3:$B$499,MATCH(0,COUNTIF('Drop Downs (hidden)'!$A$3:A329,'HIC (hidden)'!$B$3:$B$499),0))=0,\"\",INDEX('HIC (hidden)'!$B$3:$B$499,MATCH(0,COUNTIF('Drop Downs (hidden)'!$A$3:A329,'HIC (hidden)'!$B$3:$B$499),0))),\"\")","v":""}]
[{"$f":"IFERROR(IF(INDEX('HIC (hidden)'!$B$3:$B$499,MATCH(0,COUNTIF('Drop Downs (hidden)'!$A$3:A330,'HIC (hidden)'!$B$3:$B$499),0))=0,\"\",INDEX('HIC (hidden)'!$B$3:$B$499,MATCH(0,COUNTIF('Drop Downs (hidden)'!$A$3:A330,'HIC (hidden)'!$B$3:$B$499),0))),\"\")","v":""}]
[{"$f":"IFERROR(IF(INDEX('HIC (hidden)'!$B$3:$B$499,MATCH(0,COUNTIF('Drop Downs (hidden)'!$A$3:A331,'HIC (hidden)'!$B$3:$B$499),0))=0,\"\",INDEX('HIC (hidden)'!$B$3:$B$499,MATCH(0,COUNTIF('Drop Downs (hidden)'!$A$3:A331,'HIC (hidden)'!$B$3:$B$499),0))),\"\")","v":""}]
[{"$f":"IFERROR(IF(INDEX('HIC (hidden)'!$B$3:$B$499,MATCH(0,COUNTIF('Drop Downs (hidden)'!$A$3:A332,'HIC (hidden)'!$B$3:$B$499),0))=0,\"\",INDEX('HIC (hidden)'!$B$3:$B$499,MATCH(0,COUNTIF('Drop Downs (hidden)'!$A$3:A332,'HIC (hidden)'!$B$3:$B$499),0))),\"\")","v":""}]
[{"$f":"IFERROR(IF(INDEX('HIC (hidden)'!$B$3:$B$499,MATCH(0,COUNTIF('Drop Downs (hidden)'!$A$3:A333,'HIC (hidden)'!$B$3:$B$499),0))=0,\"\",INDEX('HIC (hidden)'!$B$3:$B$499,MATCH(0,COUNTIF('Drop Downs (hidden)'!$A$3:A333,'HIC (hidden)'!$B$3:$B$499),0))),\"\")","v":""}]
[{"$f":"IFERROR(IF(INDEX('HIC (hidden)'!$B$3:$B$499,MATCH(0,COUNTIF('Drop Downs (hidden)'!$A$3:A334,'HIC (hidden)'!$B$3:$B$499),0))=0,\"\",INDEX('HIC (hidden)'!$B$3:$B$499,MATCH(0,COUNTIF('Drop Downs (hidden)'!$A$3:A334,'HIC (hidden)'!$B$3:$B$499),0))),\"\")","v":""}]
[{"$f":"IFERROR(IF(INDEX('HIC (hidden)'!$B$3:$B$499,MATCH(0,COUNTIF('Drop Downs (hidden)'!$A$3:A335,'HIC (hidden)'!$B$3:$B$499),0))=0,\"\",INDEX('HIC (hidden)'!$B$3:$B$499,MATCH(0,COUNTIF('Drop Downs (hidden)'!$A$3:A335,'HIC (hidden)'!$B$3:$B$499),0))),\"\")","v":""}]
[{"$f":"IFERROR(IF(INDEX('HIC (hidden)'!$B$3:$B$499,MATCH(0,COUNTIF('Drop Downs (hidden)'!$A$3:A336,'HIC (hidden)'!$B$3:$B$499),0))=0,\"\",INDEX('HIC (hidden)'!$B$3:$B$499,MATCH(0,COUNTIF('Drop Downs (hidden)'!$A$3:A336,'HIC (hidden)'!$B$3:$B$499),0))),\"\")","v":""}]
[{"$f":"IFERROR(IF(INDEX('HIC (hidden)'!$B$3:$B$499,MATCH(0,COUNTIF('Drop Downs (hidden)'!$A$3:A337,'HIC (hidden)'!$B$3:$B$499),0))=0,\"\",INDEX('HIC (hidden)'!$B$3:$B$499,MATCH(0,COUNTIF('Drop Downs (hidden)'!$A$3:A337,'HIC (hidden)'!$B$3:$B$499),0))),\"\")","v":""}]
[{"$f":"IFERROR(IF(INDEX('HIC (hidden)'!$B$3:$B$499,MATCH(0,COUNTIF('Drop Downs (hidden)'!$A$3:A338,'HIC (hidden)'!$B$3:$B$499),0))=0,\"\",INDEX('HIC (hidden)'!$B$3:$B$499,MATCH(0,COUNTIF('Drop Downs (hidden)'!$A$3:A338,'HIC (hidden)'!$B$3:$B$499),0))),\"\")","v":""}]
[{"$f":"IFERROR(IF(INDEX('HIC (hidden)'!$B$3:$B$499,MATCH(0,COUNTIF('Drop Downs (hidden)'!$A$3:A339,'HIC (hidden)'!$B$3:$B$499),0))=0,\"\",INDEX('HIC (hidden)'!$B$3:$B$499,MATCH(0,COUNTIF('Drop Downs (hidden)'!$A$3:A339,'HIC (hidden)'!$B$3:$B$499),0))),\"\")","v":""}]
[{"$f":"IFERROR(IF(INDEX('HIC (hidden)'!$B$3:$B$499,MATCH(0,COUNTIF('Drop Downs (hidden)'!$A$3:A340,'HIC (hidden)'!$B$3:$B$499),0))=0,\"\",INDEX('HIC (hidden)'!$B$3:$B$499,MATCH(0,COUNTIF('Drop Downs (hidden)'!$A$3:A340,'HIC (hidden)'!$B$3:$B$499),0))),\"\")","v":""}]
[{"$f":"IFERROR(IF(INDEX('HIC (hidden)'!$B$3:$B$499,MATCH(0,COUNTIF('Drop Downs (hidden)'!$A$3:A341,'HIC (hidden)'!$B$3:$B$499),0))=0,\"\",INDEX('HIC (hidden)'!$B$3:$B$499,MATCH(0,COUNTIF('Drop Downs (hidden)'!$A$3:A341,'HIC (hidden)'!$B$3:$B$499),0))),\"\")","v":""}]
[{"$f":"IFERROR(IF(INDEX('HIC (hidden)'!$B$3:$B$499,MATCH(0,COUNTIF('Drop Downs (hidden)'!$A$3:A342,'HIC (hidden)'!$B$3:$B$499),0))=0,\"\",INDEX('HIC (hidden)'!$B$3:$B$499,MATCH(0,COUNTIF('Drop Downs (hidden)'!$A$3:A342,'HIC (hidden)'!$B$3:$B$499),0))),\"\")","v":""}]
[{"$f":"IFERROR(IF(INDEX('HIC (hidden)'!$B$3:$B$499,MATCH(0,COUNTIF('Drop Downs (hidden)'!$A$3:A343,'HIC (hidden)'!$B$3:$B$499),0))=0,\"\",INDEX('HIC (hidden)'!$B$3:$B$499,MATCH(0,COUNTIF('Drop Downs (hidden)'!$A$3:A343,'HIC (hidden)'!$B$3:$B$499),0))),\"\")","v":""}]
[{"$f":"IFERROR(IF(INDEX('HIC (hidden)'!$B$3:$B$499,MATCH(0,COUNTIF('Drop Downs (hidden)'!$A$3:A344,'HIC (hidden)'!$B$3:$B$499),0))=0,\"\",INDEX('HIC (hidden)'!$B$3:$B$499,MATCH(0,COUNTIF('Drop Downs (hidden)'!$A$3:A344,'HIC (hidden)'!$B$3:$B$499),0))),\"\")","v":""}]
[{"$f":"IFERROR(IF(INDEX('HIC (hidden)'!$B$3:$B$499,MATCH(0,COUNTIF('Drop Downs (hidden)'!$A$3:A345,'HIC (hidden)'!$B$3:$B$499),0))=0,\"\",INDEX('HIC (hidden)'!$B$3:$B$499,MATCH(0,COUNTIF('Drop Downs (hidden)'!$A$3:A345,'HIC (hidden)'!$B$3:$B$499),0))),\"\")","v":""}]
[{"$f":"IFERROR(IF(INDEX('HIC (hidden)'!$B$3:$B$499,MATCH(0,COUNTIF('Drop Downs (hidden)'!$A$3:A346,'HIC (hidden)'!$B$3:$B$499),0))=0,\"\",INDEX('HIC (hidden)'!$B$3:$B$499,MATCH(0,COUNTIF('Drop Downs (hidden)'!$A$3:A346,'HIC (hidden)'!$B$3:$B$499),0))),\"\")","v":""}]
[{"$f":"IFERROR(IF(INDEX('HIC (hidden)'!$B$3:$B$499,MATCH(0,COUNTIF('Drop Downs (hidden)'!$A$3:A347,'HIC (hidden)'!$B$3:$B$499),0))=0,\"\",INDEX('HIC (hidden)'!$B$3:$B$499,MATCH(0,COUNTIF('Drop Downs (hidden)'!$A$3:A347,'HIC (hidden)'!$B$3:$B$499),0))),\"\")","v":""}]
[{"$f":"IFERROR(IF(INDEX('HIC (hidden)'!$B$3:$B$499,MATCH(0,COUNTIF('Drop Downs (hidden)'!$A$3:A348,'HIC (hidden)'!$B$3:$B$499),0))=0,\"\",INDEX('HIC (hidden)'!$B$3:$B$499,MATCH(0,COUNTIF('Drop Downs (hidden)'!$A$3:A348,'HIC (hidden)'!$B$3:$B$499),0))),\"\")","v":""}]
[{"$f":"IFERROR(IF(INDEX('HIC (hidden)'!$B$3:$B$499,MATCH(0,COUNTIF('Drop Downs (hidden)'!$A$3:A349,'HIC (hidden)'!$B$3:$B$499),0))=0,\"\",INDEX('HIC (hidden)'!$B$3:$B$499,MATCH(0,COUNTIF('Drop Downs (hidden)'!$A$3:A349,'HIC (hidden)'!$B$3:$B$499),0))),\"\")","v":""}]
[{"$f":"IFERROR(IF(INDEX('HIC (hidden)'!$B$3:$B$499,MATCH(0,COUNTIF('Drop Downs (hidden)'!$A$3:A350,'HIC (hidden)'!$B$3:$B$499),0))=0,\"\",INDEX('HIC (hidden)'!$B$3:$B$499,MATCH(0,COUNTIF('Drop Downs (hidden)'!$A$3:A350,'HIC (hidden)'!$B$3:$B$499),0))),\"\")","v":""}]
[{"$f":"IFERROR(IF(INDEX('HIC (hidden)'!$B$3:$B$499,MATCH(0,COUNTIF('Drop Downs (hidden)'!$A$3:A351,'HIC (hidden)'!$B$3:$B$499),0))=0,\"\",INDEX('HIC (hidden)'!$B$3:$B$499,MATCH(0,COUNTIF('Drop Downs (hidden)'!$A$3:A351,'HIC (hidden)'!$B$3:$B$499),0))),\"\")","v":""}]
[{"$f":"IFERROR(IF(INDEX('HIC (hidden)'!$B$3:$B$499,MATCH(0,COUNTIF('Drop Downs (hidden)'!$A$3:A352,'HIC (hidden)'!$B$3:$B$499),0))=0,\"\",INDEX('HIC (hidden)'!$B$3:$B$499,MATCH(0,COUNTIF('Drop Downs (hidden)'!$A$3:A352,'HIC (hidden)'!$B$3:$B$499),0))),\"\")","v":""}]
[{"$f":"IFERROR(IF(INDEX('HIC (hidden)'!$B$3:$B$499,MATCH(0,COUNTIF('Drop Downs (hidden)'!$A$3:A353,'HIC (hidden)'!$B$3:$B$499),0))=0,\"\",INDEX('HIC (hidden)'!$B$3:$B$499,MATCH(0,COUNTIF('Drop Downs (hidden)'!$A$3:A353,'HIC (hidden)'!$B$3:$B$499),0))),\"\")","v":""}]
[{"$f":"IFERROR(IF(INDEX('HIC (hidden)'!$B$3:$B$499,MATCH(0,COUNTIF('Drop Downs (hidden)'!$A$3:A354,'HIC (hidden)'!$B$3:$B$499),0))=0,\"\",INDEX('HIC (hidden)'!$B$3:$B$499,MATCH(0,COUNTIF('Drop Downs (hidden)'!$A$3:A354,'HIC (hidden)'!$B$3:$B$499),0))),\"\")","v":""}]
[{"$f":"IFERROR(IF(INDEX('HIC (hidden)'!$B$3:$B$499,MATCH(0,COUNTIF('Drop Downs (hidden)'!$A$3:A355,'HIC (hidden)'!$B$3:$B$499),0))=0,\"\",INDEX('HIC (hidden)'!$B$3:$B$499,MATCH(0,COUNTIF('Drop Downs (hidden)'!$A$3:A355,'HIC (hidden)'!$B$3:$B$499),0))),\"\")","v":""}]
[{"$f":"IFERROR(IF(INDEX('HIC (hidden)'!$B$3:$B$499,MATCH(0,COUNTIF('Drop Downs (hidden)'!$A$3:A356,'HIC (hidden)'!$B$3:$B$499),0))=0,\"\",INDEX('HIC (hidden)'!$B$3:$B$499,MATCH(0,COUNTIF('Drop Downs (hidden)'!$A$3:A356,'HIC (hidden)'!$B$3:$B$499),0))),\"\")","v":""}]
[{"$f":"IFERROR(IF(INDEX('HIC (hidden)'!$B$3:$B$499,MATCH(0,COUNTIF('Drop Downs (hidden)'!$A$3:A357,'HIC (hidden)'!$B$3:$B$499),0))=0,\"\",INDEX('HIC (hidden)'!$B$3:$B$499,MATCH(0,COUNTIF('Drop Downs (hidden)'!$A$3:A357,'HIC (hidden)'!$B$3:$B$499),0))),\"\")","v":""}]
[{"$f":"IFERROR(IF(INDEX('HIC (hidden)'!$B$3:$B$499,MATCH(0,COUNTIF('Drop Downs (hidden)'!$A$3:A358,'HIC (hidden)'!$B$3:$B$499),0))=0,\"\",INDEX('HIC (hidden)'!$B$3:$B$499,MATCH(0,COUNTIF('Drop Downs (hidden)'!$A$3:A358,'HIC (hidden)'!$B$3:$B$499),0))),\"\")","v":""}]
[{"$f":"IFERROR(IF(INDEX('HIC (hidden)'!$B$3:$B$499,MATCH(0,COUNTIF('Drop Downs (hidden)'!$A$3:A359,'HIC (hidden)'!$B$3:$B$499),0))=0,\"\",INDEX('HIC (hidden)'!$B$3:$B$499,MATCH(0,COUNTIF('Drop Downs (hidden)'!$A$3:A359,'HIC (hidden)'!$B$3:$B$499),0))),\"\")","v":""}]
[{"$f":"IFERROR(IF(INDEX('HIC (hidden)'!$B$3:$B$499,MATCH(0,COUNTIF('Drop Downs (hidden)'!$A$3:A360,'HIC (hidden)'!$B$3:$B$499),0))=0,\"\",INDEX('HIC (hidden)'!$B$3:$B$499,MATCH(0,COUNTIF('Drop Downs (hidden)'!$A$3:A360,'HIC (hidden)'!$B$3:$B$499),0))),\"\")","v":""}]
[{"$f":"IFERROR(IF(INDEX('HIC (hidden)'!$B$3:$B$499,MATCH(0,COUNTIF('Drop Downs (hidden)'!$A$3:A361,'HIC (hidden)'!$B$3:$B$499),0))=0,\"\",INDEX('HIC (hidden)'!$B$3:$B$499,MATCH(0,COUNTIF('Drop Downs (hidden)'!$A$3:A361,'HIC (hidden)'!$B$3:$B$499),0))),\"\")","v":""}]
[{"$f":"IFERROR(IF(INDEX('HIC (hidden)'!$B$3:$B$499,MATCH(0,COUNTIF('Drop Downs (hidden)'!$A$3:A362,'HIC (hidden)'!$B$3:$B$499),0))=0,\"\",INDEX('HIC (hidden)'!$B$3:$B$499,MATCH(0,COUNTIF('Drop Downs (hidden)'!$A$3:A362,'HIC (hidden)'!$B$3:$B$499),0))),\"\")","v":""}]
[{"$f":"IFERROR(IF(INDEX('HIC (hidden)'!$B$3:$B$499,MATCH(0,COUNTIF('Drop Downs (hidden)'!$A$3:A363,'HIC (hidden)'!$B$3:$B$499),0))=0,\"\",INDEX('HIC (hidden)'!$B$3:$B$499,MATCH(0,COUNTIF('Drop Downs (hidden)'!$A$3:A363,'HIC (hidden)'!$B$3:$B$499),0))),\"\")","v":""}]
[{"$f":"IFERROR(IF(INDEX('HIC (hidden)'!$B$3:$B$499,MATCH(0,COUNTIF('Drop Downs (hidden)'!$A$3:A364,'HIC (hidden)'!$B$3:$B$499),0))=0,\"\",INDEX('HIC (hidden)'!$B$3:$B$499,MATCH(0,COUNTIF('Drop Downs (hidden)'!$A$3:A364,'HIC (hidden)'!$B$3:$B$499),0))),\"\")","v":""}]
[{"$f":"IFERROR(IF(INDEX('HIC (hidden)'!$B$3:$B$499,MATCH(0,COUNTIF('Drop Downs (hidden)'!$A$3:A365,'HIC (hidden)'!$B$3:$B$499),0))=0,\"\",INDEX('HIC (hidden)'!$B$3:$B$499,MATCH(0,COUNTIF('Drop Downs (hidden)'!$A$3:A365,'HIC (hidden)'!$B$3:$B$499),0))),\"\")","v":""}]
[{"$f":"IFERROR(IF(INDEX('HIC (hidden)'!$B$3:$B$499,MATCH(0,COUNTIF('Drop Downs (hidden)'!$A$3:A366,'HIC (hidden)'!$B$3:$B$499),0))=0,\"\",INDEX('HIC (hidden)'!$B$3:$B$499,MATCH(0,COUNTIF('Drop Downs (hidden)'!$A$3:A366,'HIC (hidden)'!$B$3:$B$499),0))),\"\")","v":""}]
[{"$f":"IFERROR(IF(INDEX('HIC (hidden)'!$B$3:$B$499,MATCH(0,COUNTIF('Drop Downs (hidden)'!$A$3:A367,'HIC (hidden)'!$B$3:$B$499),0))=0,\"\",INDEX('HIC (hidden)'!$B$3:$B$499,MATCH(0,COUNTIF('Drop Downs (hidden)'!$A$3:A367,'HIC (hidden)'!$B$3:$B$499),0))),\"\")","v":""}]
[{"$f":"IFERROR(IF(INDEX('HIC (hidden)'!$B$3:$B$499,MATCH(0,COUNTIF('Drop Downs (hidden)'!$A$3:A368,'HIC (hidden)'!$B$3:$B$499),0))=0,\"\",INDEX('HIC (hidden)'!$B$3:$B$499,MATCH(0,COUNTIF('Drop Downs (hidden)'!$A$3:A368,'HIC (hidden)'!$B$3:$B$499),0))),\"\")","v":""}]
[{"$f":"IFERROR(IF(INDEX('HIC (hidden)'!$B$3:$B$499,MATCH(0,COUNTIF('Drop Downs (hidden)'!$A$3:A369,'HIC (hidden)'!$B$3:$B$499),0))=0,\"\",INDEX('HIC (hidden)'!$B$3:$B$499,MATCH(0,COUNTIF('Drop Downs (hidden)'!$A$3:A369,'HIC (hidden)'!$B$3:$B$499),0))),\"\")","v":""}]
[{"$f":"IFERROR(IF(INDEX('HIC (hidden)'!$B$3:$B$499,MATCH(0,COUNTIF('Drop Downs (hidden)'!$A$3:A370,'HIC (hidden)'!$B$3:$B$499),0))=0,\"\",INDEX('HIC (hidden)'!$B$3:$B$499,MATCH(0,COUNTIF('Drop Downs (hidden)'!$A$3:A370,'HIC (hidden)'!$B$3:$B$499),0))),\"\")","v":""}]
[{"$f":"IFERROR(IF(INDEX('HIC (hidden)'!$B$3:$B$499,MATCH(0,COUNTIF('Drop Downs (hidden)'!$A$3:A371,'HIC (hidden)'!$B$3:$B$499),0))=0,\"\",INDEX('HIC (hidden)'!$B$3:$B$499,MATCH(0,COUNTIF('Drop Downs (hidden)'!$A$3:A371,'HIC (hidden)'!$B$3:$B$499),0))),\"\")","v":""}]
[{"$f":"IFERROR(IF(INDEX('HIC (hidden)'!$B$3:$B$499,MATCH(0,COUNTIF('Drop Downs (hidden)'!$A$3:A372,'HIC (hidden)'!$B$3:$B$499),0))=0,\"\",INDEX('HIC (hidden)'!$B$3:$B$499,MATCH(0,COUNTIF('Drop Downs (hidden)'!$A$3:A372,'HIC (hidden)'!$B$3:$B$499),0))),\"\")","v":""}]
[{"$f":"IFERROR(IF(INDEX('HIC (hidden)'!$B$3:$B$499,MATCH(0,COUNTIF('Drop Downs (hidden)'!$A$3:A373,'HIC (hidden)'!$B$3:$B$499),0))=0,\"\",INDEX('HIC (hidden)'!$B$3:$B$499,MATCH(0,COUNTIF('Drop Downs (hidden)'!$A$3:A373,'HIC (hidden)'!$B$3:$B$499),0))),\"\")","v":""}]
[{"$f":"IFERROR(IF(INDEX('HIC (hidden)'!$B$3:$B$499,MATCH(0,COUNTIF('Drop Downs (hidden)'!$A$3:A374,'HIC (hidden)'!$B$3:$B$499),0))=0,\"\",INDEX('HIC (hidden)'!$B$3:$B$499,MATCH(0,COUNTIF('Drop Downs (hidden)'!$A$3:A374,'HIC (hidden)'!$B$3:$B$499),0))),\"\")","v":""}]
[{"$f":"IFERROR(IF(INDEX('HIC (hidden)'!$B$3:$B$499,MATCH(0,COUNTIF('Drop Downs (hidden)'!$A$3:A375,'HIC (hidden)'!$B$3:$B$499),0))=0,\"\",INDEX('HIC (hidden)'!$B$3:$B$499,MATCH(0,COUNTIF('Drop Downs (hidden)'!$A$3:A375,'HIC (hidden)'!$B$3:$B$499),0))),\"\")","v":""}]
[{"$f":"IFERROR(IF(INDEX('HIC (hidden)'!$B$3:$B$499,MATCH(0,COUNTIF('Drop Downs (hidden)'!$A$3:A376,'HIC (hidden)'!$B$3:$B$499),0))=0,\"\",INDEX('HIC (hidden)'!$B$3:$B$499,MATCH(0,COUNTIF('Drop Downs (hidden)'!$A$3:A376,'HIC (hidden)'!$B$3:$B$499),0))),\"\")","v":""}]
[{"$f":"IFERROR(IF(INDEX('HIC (hidden)'!$B$3:$B$499,MATCH(0,COUNTIF('Drop Downs (hidden)'!$A$3:A377,'HIC (hidden)'!$B$3:$B$499),0))=0,\"\",INDEX('HIC (hidden)'!$B$3:$B$499,MATCH(0,COUNTIF('Drop Downs (hidden)'!$A$3:A377,'HIC (hidden)'!$B$3:$B$499),0))),\"\")","v":""}]
[{"$f":"IFERROR(IF(INDEX('HIC (hidden)'!$B$3:$B$499,MATCH(0,COUNTIF('Drop Downs (hidden)'!$A$3:A378,'HIC (hidden)'!$B$3:$B$499),0))=0,\"\",INDEX('HIC (hidden)'!$B$3:$B$499,MATCH(0,COUNTIF('Drop Downs (hidden)'!$A$3:A378,'HIC (hidden)'!$B$3:$B$499),0))),\"\")","v":""}]
[{"$f":"IFERROR(IF(INDEX('HIC (hidden)'!$B$3:$B$499,MATCH(0,COUNTIF('Drop Downs (hidden)'!$A$3:A379,'HIC (hidden)'!$B$3:$B$499),0))=0,\"\",INDEX('HIC (hidden)'!$B$3:$B$499,MATCH(0,COUNTIF('Drop Downs (hidden)'!$A$3:A379,'HIC (hidden)'!$B$3:$B$499),0))),\"\")","v":""}]
[{"$f":"IFERROR(IF(INDEX('HIC (hidden)'!$B$3:$B$499,MATCH(0,COUNTIF('Drop Downs (hidden)'!$A$3:A380,'HIC (hidden)'!$B$3:$B$499),0))=0,\"\",INDEX('HIC (hidden)'!$B$3:$B$499,MATCH(0,COUNTIF('Drop Downs (hidden)'!$A$3:A380,'HIC (hidden)'!$B$3:$B$499),0))),\"\")","v":""}]
[{"$f":"IFERROR(IF(INDEX('HIC (hidden)'!$B$3:$B$499,MATCH(0,COUNTIF('Drop Downs (hidden)'!$A$3:A381,'HIC (hidden)'!$B$3:$B$499),0))=0,\"\",INDEX('HIC (hidden)'!$B$3:$B$499,MATCH(0,COUNTIF('Drop Downs (hidden)'!$A$3:A381,'HIC (hidden)'!$B$3:$B$499),0))),\"\")","v":""}]
[{"$f":"IFERROR(IF(INDEX('HIC (hidden)'!$B$3:$B$499,MATCH(0,COUNTIF('Drop Downs (hidden)'!$A$3:A382,'HIC (hidden)'!$B$3:$B$499),0))=0,\"\",INDEX('HIC (hidden)'!$B$3:$B$499,MATCH(0,COUNTIF('Drop Downs (hidden)'!$A$3:A382,'HIC (hidden)'!$B$3:$B$499),0))),\"\")","v":""}]
[{"$f":"IFERROR(IF(INDEX('HIC (hidden)'!$B$3:$B$499,MATCH(0,COUNTIF('Drop Downs (hidden)'!$A$3:A383,'HIC (hidden)'!$B$3:$B$499),0))=0,\"\",INDEX('HIC (hidden)'!$B$3:$B$499,MATCH(0,COUNTIF('Drop Downs (hidden)'!$A$3:A383,'HIC (hidden)'!$B$3:$B$499),0))),\"\")","v":""}]
[{"$f":"IFERROR(IF(INDEX('HIC (hidden)'!$B$3:$B$499,MATCH(0,COUNTIF('Drop Downs (hidden)'!$A$3:A384,'HIC (hidden)'!$B$3:$B$499),0))=0,\"\",INDEX('HIC (hidden)'!$B$3:$B$499,MATCH(0,COUNTIF('Drop Downs (hidden)'!$A$3:A384,'HIC (hidden)'!$B$3:$B$499),0))),\"\")","v":""}]
[{"$f":"IFERROR(IF(INDEX('HIC (hidden)'!$B$3:$B$499,MATCH(0,COUNTIF('Drop Downs (hidden)'!$A$3:A385,'HIC (hidden)'!$B$3:$B$499),0))=0,\"\",INDEX('HIC (hidden)'!$B$3:$B$499,MATCH(0,COUNTIF('Drop Downs (hidden)'!$A$3:A385,'HIC (hidden)'!$B$3:$B$499),0))),\"\")","v":""}]
[{"$f":"IFERROR(IF(INDEX('HIC (hidden)'!$B$3:$B$499,MATCH(0,COUNTIF('Drop Downs (hidden)'!$A$3:A386,'HIC (hidden)'!$B$3:$B$499),0))=0,\"\",INDEX('HIC (hidden)'!$B$3:$B$499,MATCH(0,COUNTIF('Drop Downs (hidden)'!$A$3:A386,'HIC (hidden)'!$B$3:$B$499),0))),\"\")","v":""}]
[{"$f":"IFERROR(IF(INDEX('HIC (hidden)'!$B$3:$B$499,MATCH(0,COUNTIF('Drop Downs (hidden)'!$A$3:A387,'HIC (hidden)'!$B$3:$B$499),0))=0,\"\",INDEX('HIC (hidden)'!$B$3:$B$499,MATCH(0,COUNTIF('Drop Downs (hidden)'!$A$3:A387,'HIC (hidden)'!$B$3:$B$499),0))),\"\")","v":""}]
[{"$f":"IFERROR(IF(INDEX('HIC (hidden)'!$B$3:$B$499,MATCH(0,COUNTIF('Drop Downs (hidden)'!$A$3:A388,'HIC (hidden)'!$B$3:$B$499),0))=0,\"\",INDEX('HIC (hidden)'!$B$3:$B$499,MATCH(0,COUNTIF('Drop Downs (hidden)'!$A$3:A388,'HIC (hidden)'!$B$3:$B$499),0))),\"\")","v":""}]
[{"$f":"IFERROR(IF(INDEX('HIC (hidden)'!$B$3:$B$499,MATCH(0,COUNTIF('Drop Downs (hidden)'!$A$3:A389,'HIC (hidden)'!$B$3:$B$499),0))=0,\"\",INDEX('HIC (hidden)'!$B$3:$B$499,MATCH(0,COUNTIF('Drop Downs (hidden)'!$A$3:A389,'HIC (hidden)'!$B$3:$B$499),0))),\"\")","v":""}]
[{"$f":"IFERROR(IF(INDEX('HIC (hidden)'!$B$3:$B$499,MATCH(0,COUNTIF('Drop Downs (hidden)'!$A$3:A390,'HIC (hidden)'!$B$3:$B$499),0))=0,\"\",INDEX('HIC (hidden)'!$B$3:$B$499,MATCH(0,COUNTIF('Drop Downs (hidden)'!$A$3:A390,'HIC (hidden)'!$B$3:$B$499),0))),\"\")","v":""}]
[{"$f":"IFERROR(IF(INDEX('HIC (hidden)'!$B$3:$B$499,MATCH(0,COUNTIF('Drop Downs (hidden)'!$A$3:A391,'HIC (hidden)'!$B$3:$B$499),0))=0,\"\",INDEX('HIC (hidden)'!$B$3:$B$499,MATCH(0,COUNTIF('Drop Downs (hidden)'!$A$3:A391,'HIC (hidden)'!$B$3:$B$499),0))),\"\")","v":""}]
[{"$f":"IFERROR(IF(INDEX('HIC (hidden)'!$B$3:$B$499,MATCH(0,COUNTIF('Drop Downs (hidden)'!$A$3:A392,'HIC (hidden)'!$B$3:$B$499),0))=0,\"\",INDEX('HIC (hidden)'!$B$3:$B$499,MATCH(0,COUNTIF('Drop Downs (hidden)'!$A$3:A392,'HIC (hidden)'!$B$3:$B$499),0))),\"\")","v":""}]
[{"$f":"IFERROR(IF(INDEX('HIC (hidden)'!$B$3:$B$499,MATCH(0,COUNTIF('Drop Downs (hidden)'!$A$3:A393,'HIC (hidden)'!$B$3:$B$499),0))=0,\"\",INDEX('HIC (hidden)'!$B$3:$B$499,MATCH(0,COUNTIF('Drop Downs (hidden)'!$A$3:A393,'HIC (hidden)'!$B$3:$B$499),0))),\"\")","v":""}]
[{"$f":"IFERROR(IF(INDEX('HIC (hidden)'!$B$3:$B$499,MATCH(0,COUNTIF('Drop Downs (hidden)'!$A$3:A394,'HIC (hidden)'!$B$3:$B$499),0))=0,\"\",INDEX('HIC (hidden)'!$B$3:$B$499,MATCH(0,COUNTIF('Drop Downs (hidden)'!$A$3:A394,'HIC (hidden)'!$B$3:$B$499),0))),\"\")","v":""}]
[{"$f":"IFERROR(IF(INDEX('HIC (hidden)'!$B$3:$B$499,MATCH(0,COUNTIF('Drop Downs (hidden)'!$A$3:A395,'HIC (hidden)'!$B$3:$B$499),0))=0,\"\",INDEX('HIC (hidden)'!$B$3:$B$499,MATCH(0,COUNTIF('Drop Downs (hidden)'!$A$3:A395,'HIC (hidden)'!$B$3:$B$499),0))),\"\")","v":""}]
[{"$f":"IFERROR(IF(INDEX('HIC (hidden)'!$B$3:$B$499,MATCH(0,COUNTIF('Drop Downs (hidden)'!$A$3:A396,'HIC (hidden)'!$B$3:$B$499),0))=0,\"\",INDEX('HIC (hidden)'!$B$3:$B$499,MATCH(0,COUNTIF('Drop Downs (hidden)'!$A$3:A396,'HIC (hidden)'!$B$3:$B$499),0))),\"\")","v":""}]
[{"$f":"IFERROR(IF(INDEX('HIC (hidden)'!$B$3:$B$499,MATCH(0,COUNTIF('Drop Downs (hidden)'!$A$3:A397,'HIC (hidden)'!$B$3:$B$499),0))=0,\"\",INDEX('HIC (hidden)'!$B$3:$B$499,MATCH(0,COUNTIF('Drop Downs (hidden)'!$A$3:A397,'HIC (hidden)'!$B$3:$B$499),0))),\"\")","v":""}]
[{"$f":"IFERROR(IF(INDEX('HIC (hidden)'!$B$3:$B$499,MATCH(0,COUNTIF('Drop Downs (hidden)'!$A$3:A398,'HIC (hidden)'!$B$3:$B$499),0))=0,\"\",INDEX('HIC (hidden)'!$B$3:$B$499,MATCH(0,COUNTIF('Drop Downs (hidden)'!$A$3:A398,'HIC (hidden)'!$B$3:$B$499),0))),\"\")","v":""}]
[{"$f":"IFERROR(IF(INDEX('HIC (hidden)'!$B$3:$B$499,MATCH(0,COUNTIF('Drop Downs (hidden)'!$A$3:A399,'HIC (hidden)'!$B$3:$B$499),0))=0,\"\",INDEX('HIC (hidden)'!$B$3:$B$499,MATCH(0,COUNTIF('Drop Downs (hidden)'!$A$3:A399,'HIC (hidden)'!$B$3:$B$499),0))),\"\")","v":""}]
[{"$f":"IFERROR(IF(INDEX('HIC (hidden)'!$B$3:$B$499,MATCH(0,COUNTIF('Drop Downs (hidden)'!$A$3:A400,'HIC (hidden)'!$B$3:$B$499),0))=0,\"\",INDEX('HIC (hidden)'!$B$3:$B$499,MATCH(0,COUNTIF('Drop Downs (hidden)'!$A$3:A400,'HIC (hidden)'!$B$3:$B$499),0))),\"\")","v":""}]
[{"$f":"IFERROR(IF(INDEX('HIC (hidden)'!$B$3:$B$499,MATCH(0,COUNTIF('Drop Downs (hidden)'!$A$3:A401,'HIC (hidden)'!$B$3:$B$499),0))=0,\"\",INDEX('HIC (hidden)'!$B$3:$B$499,MATCH(0,COUNTIF('Drop Downs (hidden)'!$A$3:A401,'HIC (hidden)'!$B$3:$B$499),0))),\"\")","v":""}]
[{"$f":"IFERROR(IF(INDEX('HIC (hidden)'!$B$3:$B$499,MATCH(0,COUNTIF('Drop Downs (hidden)'!$A$3:A402,'HIC (hidden)'!$B$3:$B$499),0))=0,\"\",INDEX('HIC (hidden)'!$B$3:$B$499,MATCH(0,COUNTIF('Drop Downs (hidden)'!$A$3:A402,'HIC (hidden)'!$B$3:$B$499),0))),\"\")","v":""}]
[{"$f":"IFERROR(IF(INDEX('HIC (hidden)'!$B$3:$B$499,MATCH(0,COUNTIF('Drop Downs (hidden)'!$A$3:A403,'HIC (hidden)'!$B$3:$B$499),0))=0,\"\",INDEX('HIC (hidden)'!$B$3:$B$499,MATCH(0,COUNTIF('Drop Downs (hidden)'!$A$3:A403,'HIC (hidden)'!$B$3:$B$499),0))),\"\")","v":""}]
[{"$f":"IFERROR(IF(INDEX('HIC (hidden)'!$B$3:$B$499,MATCH(0,COUNTIF('Drop Downs (hidden)'!$A$3:A404,'HIC (hidden)'!$B$3:$B$499),0))=0,\"\",INDEX('HIC (hidden)'!$B$3:$B$499,MATCH(0,COUNTIF('Drop Downs (hidden)'!$A$3:A404,'HIC (hidden)'!$B$3:$B$499),0))),\"\")","v":""}]
[{"$f":"IFERROR(IF(INDEX('HIC (hidden)'!$B$3:$B$499,MATCH(0,COUNTIF('Drop Downs (hidden)'!$A$3:A405,'HIC (hidden)'!$B$3:$B$499),0))=0,\"\",INDEX('HIC (hidden)'!$B$3:$B$499,MATCH(0,COUNTIF('Drop Downs (hidden)'!$A$3:A405,'HIC (hidden)'!$B$3:$B$499),0))),\"\")","v":""}]
[{"$f":"IFERROR(IF(INDEX('HIC (hidden)'!$B$3:$B$499,MATCH(0,COUNTIF('Drop Downs (hidden)'!$A$3:A406,'HIC (hidden)'!$B$3:$B$499),0))=0,\"\",INDEX('HIC (hidden)'!$B$3:$B$499,MATCH(0,COUNTIF('Drop Downs (hidden)'!$A$3:A406,'HIC (hidden)'!$B$3:$B$499),0))),\"\")","v":""}]
[{"$f":"IFERROR(IF(INDEX('HIC (hidden)'!$B$3:$B$499,MATCH(0,COUNTIF('Drop Downs (hidden)'!$A$3:A407,'HIC (hidden)'!$B$3:$B$499),0))=0,\"\",INDEX('HIC (hidden)'!$B$3:$B$499,MATCH(0,COUNTIF('Drop Downs (hidden)'!$A$3:A407,'HIC (hidden)'!$B$3:$B$499),0))),\"\")","v":""}]
[{"$f":"IFERROR(IF(INDEX('HIC (hidden)'!$B$3:$B$499,MATCH(0,COUNTIF('Drop Downs (hidden)'!$A$3:A408,'HIC (hidden)'!$B$3:$B$499),0))=0,\"\",INDEX('HIC (hidden)'!$B$3:$B$499,MATCH(0,COUNTIF('Drop Downs (hidden)'!$A$3:A408,'HIC (hidden)'!$B$3:$B$499),0))),\"\")","v":""}]
[{"$f":"IFERROR(IF(INDEX('HIC (hidden)'!$B$3:$B$499,MATCH(0,COUNTIF('Drop Downs (hidden)'!$A$3:A409,'HIC (hidden)'!$B$3:$B$499),0))=0,\"\",INDEX('HIC (hidden)'!$B$3:$B$499,MATCH(0,COUNTIF('Drop Downs (hidden)'!$A$3:A409,'HIC (hidden)'!$B$3:$B$499),0))),\"\")","v":""}]
[{"$f":"IFERROR(IF(INDEX('HIC (hidden)'!$B$3:$B$499,MATCH(0,COUNTIF('Drop Downs (hidden)'!$A$3:A410,'HIC (hidden)'!$B$3:$B$499),0))=0,\"\",INDEX('HIC (hidden)'!$B$3:$B$499,MATCH(0,COUNTIF('Drop Downs (hidden)'!$A$3:A410,'HIC (hidden)'!$B$3:$B$499),0))),\"\")","v":""}]
[{"$f":"IFERROR(IF(INDEX('HIC (hidden)'!$B$3:$B$499,MATCH(0,COUNTIF('Drop Downs (hidden)'!$A$3:A411,'HIC (hidden)'!$B$3:$B$499),0))=0,\"\",INDEX('HIC (hidden)'!$B$3:$B$499,MATCH(0,COUNTIF('Drop Downs (hidden)'!$A$3:A411,'HIC (hidden)'!$B$3:$B$499),0))),\"\")","v":""}]
[{"$f":"IFERROR(IF(INDEX('HIC (hidden)'!$B$3:$B$499,MATCH(0,COUNTIF('Drop Downs (hidden)'!$A$3:A412,'HIC (hidden)'!$B$3:$B$499),0))=0,\"\",INDEX('HIC (hidden)'!$B$3:$B$499,MATCH(0,COUNTIF('Drop Downs (hidden)'!$A$3:A412,'HIC (hidden)'!$B$3:$B$499),0))),\"\")","v":""}]
[{"$f":"IFERROR(IF(INDEX('HIC (hidden)'!$B$3:$B$499,MATCH(0,COUNTIF('Drop Downs (hidden)'!$A$3:A413,'HIC (hidden)'!$B$3:$B$499),0))=0,\"\",INDEX('HIC (hidden)'!$B$3:$B$499,MATCH(0,COUNTIF('Drop Downs (hidden)'!$A$3:A413,'HIC (hidden)'!$B$3:$B$499),0))),\"\")","v":""}]
[{"$f":"IFERROR(IF(INDEX('HIC (hidden)'!$B$3:$B$499,MATCH(0,COUNTIF('Drop Downs (hidden)'!$A$3:A414,'HIC (hidden)'!$B$3:$B$499),0))=0,\"\",INDEX('HIC (hidden)'!$B$3:$B$499,MATCH(0,COUNTIF('Drop Downs (hidden)'!$A$3:A414,'HIC (hidden)'!$B$3:$B$499),0))),\"\")","v":""}]
[{"$f":"IFERROR(IF(INDEX('HIC (hidden)'!$B$3:$B$499,MATCH(0,COUNTIF('Drop Downs (hidden)'!$A$3:A415,'HIC (hidden)'!$B$3:$B$499),0))=0,\"\",INDEX('HIC (hidden)'!$B$3:$B$499,MATCH(0,COUNTIF('Drop Downs (hidden)'!$A$3:A415,'HIC (hidden)'!$B$3:$B$499),0))),\"\")","v":""}]
[{"$f":"IFERROR(IF(INDEX('HIC (hidden)'!$B$3:$B$499,MATCH(0,COUNTIF('Drop Downs (hidden)'!$A$3:A416,'HIC (hidden)'!$B$3:$B$499),0))=0,\"\",INDEX('HIC (hidden)'!$B$3:$B$499,MATCH(0,COUNTIF('Drop Downs (hidden)'!$A$3:A416,'HIC (hidden)'!$B$3:$B$499),0))),\"\")","v":""}]
[{"$f":"IFERROR(IF(INDEX('HIC (hidden)'!$B$3:$B$499,MATCH(0,COUNTIF('Drop Downs (hidden)'!$A$3:A417,'HIC (hidden)'!$B$3:$B$499),0))=0,\"\",INDEX('HIC (hidden)'!$B$3:$B$499,MATCH(0,COUNTIF('Drop Downs (hidden)'!$A$3:A417,'HIC (hidden)'!$B$3:$B$499),0))),\"\")","v":""}]
[{"$f":"IFERROR(IF(INDEX('HIC (hidden)'!$B$3:$B$499,MATCH(0,COUNTIF('Drop Downs (hidden)'!$A$3:A418,'HIC (hidden)'!$B$3:$B$499),0))=0,\"\",INDEX('HIC (hidden)'!$B$3:$B$499,MATCH(0,COUNTIF('Drop Downs (hidden)'!$A$3:A418,'HIC (hidden)'!$B$3:$B$499),0))),\"\")","v":""}]
[{"$f":"IFERROR(IF(INDEX('HIC (hidden)'!$B$3:$B$499,MATCH(0,COUNTIF('Drop Downs (hidden)'!$A$3:A419,'HIC (hidden)'!$B$3:$B$499),0))=0,\"\",INDEX('HIC (hidden)'!$B$3:$B$499,MATCH(0,COUNTIF('Drop Downs (hidden)'!$A$3:A419,'HIC (hidden)'!$B$3:$B$499),0))),\"\")","v":""}]
[{"$f":"IFERROR(IF(INDEX('HIC (hidden)'!$B$3:$B$499,MATCH(0,COUNTIF('Drop Downs (hidden)'!$A$3:A420,'HIC (hidden)'!$B$3:$B$499),0))=0,\"\",INDEX('HIC (hidden)'!$B$3:$B$499,MATCH(0,COUNTIF('Drop Downs (hidden)'!$A$3:A420,'HIC (hidden)'!$B$3:$B$499),0))),\"\")","v":""}]
[{"$f":"IFERROR(IF(INDEX('HIC (hidden)'!$B$3:$B$499,MATCH(0,COUNTIF('Drop Downs (hidden)'!$A$3:A421,'HIC (hidden)'!$B$3:$B$499),0))=0,\"\",INDEX('HIC (hidden)'!$B$3:$B$499,MATCH(0,COUNTIF('Drop Downs (hidden)'!$A$3:A421,'HIC (hidden)'!$B$3:$B$499),0))),\"\")","v":""}]
[{"$f":"IFERROR(IF(INDEX('HIC (hidden)'!$B$3:$B$499,MATCH(0,COUNTIF('Drop Downs (hidden)'!$A$3:A422,'HIC (hidden)'!$B$3:$B$499),0))=0,\"\",INDEX('HIC (hidden)'!$B$3:$B$499,MATCH(0,COUNTIF('Drop Downs (hidden)'!$A$3:A422,'HIC (hidden)'!$B$3:$B$499),0))),\"\")","v":""}]
[{"$f":"IFERROR(IF(INDEX('HIC (hidden)'!$B$3:$B$499,MATCH(0,COUNTIF('Drop Downs (hidden)'!$A$3:A423,'HIC (hidden)'!$B$3:$B$499),0))=0,\"\",INDEX('HIC (hidden)'!$B$3:$B$499,MATCH(0,COUNTIF('Drop Downs (hidden)'!$A$3:A423,'HIC (hidden)'!$B$3:$B$499),0))),\"\")","v":""}]
[{"$f":"IFERROR(IF(INDEX('HIC (hidden)'!$B$3:$B$499,MATCH(0,COUNTIF('Drop Downs (hidden)'!$A$3:A424,'HIC (hidden)'!$B$3:$B$499),0))=0,\"\",INDEX('HIC (hidden)'!$B$3:$B$499,MATCH(0,COUNTIF('Drop Downs (hidden)'!$A$3:A424,'HIC (hidden)'!$B$3:$B$499),0))),\"\")","v":""}]
[{"$f":"IFERROR(IF(INDEX('HIC (hidden)'!$B$3:$B$499,MATCH(0,COUNTIF('Drop Downs (hidden)'!$A$3:A425,'HIC (hidden)'!$B$3:$B$499),0))=0,\"\",INDEX('HIC (hidden)'!$B$3:$B$499,MATCH(0,COUNTIF('Drop Downs (hidden)'!$A$3:A425,'HIC (hidden)'!$B$3:$B$499),0))),\"\")","v":""}]
[{"$f":"IFERROR(IF(INDEX('HIC (hidden)'!$B$3:$B$499,MATCH(0,COUNTIF('Drop Downs (hidden)'!$A$3:A426,'HIC (hidden)'!$B$3:$B$499),0))=0,\"\",INDEX('HIC (hidden)'!$B$3:$B$499,MATCH(0,COUNTIF('Drop Downs (hidden)'!$A$3:A426,'HIC (hidden)'!$B$3:$B$499),0))),\"\")","v":""}]
[{"$f":"IFERROR(IF(INDEX('HIC (hidden)'!$B$3:$B$499,MATCH(0,COUNTIF('Drop Downs (hidden)'!$A$3:A427,'HIC (hidden)'!$B$3:$B$499),0))=0,\"\",INDEX('HIC (hidden)'!$B$3:$B$499,MATCH(0,COUNTIF('Drop Downs (hidden)'!$A$3:A427,'HIC (hidden)'!$B$3:$B$499),0))),\"\")","v":""}]
[{"$f":"IFERROR(IF(INDEX('HIC (hidden)'!$B$3:$B$499,MATCH(0,COUNTIF('Drop Downs (hidden)'!$A$3:A428,'HIC (hidden)'!$B$3:$B$499),0))=0,\"\",INDEX('HIC (hidden)'!$B$3:$B$499,MATCH(0,COUNTIF('Drop Downs (hidden)'!$A$3:A428,'HIC (hidden)'!$B$3:$B$499),0))),\"\")","v":""}]
[{"$f":"IFERROR(IF(INDEX('HIC (hidden)'!$B$3:$B$499,MATCH(0,COUNTIF('Drop Downs (hidden)'!$A$3:A429,'HIC (hidden)'!$B$3:$B$499),0))=0,\"\",INDEX('HIC (hidden)'!$B$3:$B$499,MATCH(0,COUNTIF('Drop Downs (hidden)'!$A$3:A429,'HIC (hidden)'!$B$3:$B$499),0))),\"\")","v":""}]
[{"$f":"IFERROR(IF(INDEX('HIC (hidden)'!$B$3:$B$499,MATCH(0,COUNTIF('Drop Downs (hidden)'!$A$3:A430,'HIC (hidden)'!$B$3:$B$499),0))=0,\"\",INDEX('HIC (hidden)'!$B$3:$B$499,MATCH(0,COUNTIF('Drop Downs (hidden)'!$A$3:A430,'HIC (hidden)'!$B$3:$B$499),0))),\"\")","v":""}]
[{"$f":"IFERROR(IF(INDEX('HIC (hidden)'!$B$3:$B$499,MATCH(0,COUNTIF('Drop Downs (hidden)'!$A$3:A431,'HIC (hidden)'!$B$3:$B$499),0))=0,\"\",INDEX('HIC (hidden)'!$B$3:$B$499,MATCH(0,COUNTIF('Drop Downs (hidden)'!$A$3:A431,'HIC (hidden)'!$B$3:$B$499),0))),\"\")","v":""}]
[{"$f":"IFERROR(IF(INDEX('HIC (hidden)'!$B$3:$B$499,MATCH(0,COUNTIF('Drop Downs (hidden)'!$A$3:A432,'HIC (hidden)'!$B$3:$B$499),0))=0,\"\",INDEX('HIC (hidden)'!$B$3:$B$499,MATCH(0,COUNTIF('Drop Downs (hidden)'!$A$3:A432,'HIC (hidden)'!$B$3:$B$499),0))),\"\")","v":""}]
[{"$f":"IFERROR(IF(INDEX('HIC (hidden)'!$B$3:$B$499,MATCH(0,COUNTIF('Drop Downs (hidden)'!$A$3:A433,'HIC (hidden)'!$B$3:$B$499),0))=0,\"\",INDEX('HIC (hidden)'!$B$3:$B$499,MATCH(0,COUNTIF('Drop Downs (hidden)'!$A$3:A433,'HIC (hidden)'!$B$3:$B$499),0))),\"\")","v":""}]
[{"$f":"IFERROR(IF(INDEX('HIC (hidden)'!$B$3:$B$499,MATCH(0,COUNTIF('Drop Downs (hidden)'!$A$3:A434,'HIC (hidden)'!$B$3:$B$499),0))=0,\"\",INDEX('HIC (hidden)'!$B$3:$B$499,MATCH(0,COUNTIF('Drop Downs (hidden)'!$A$3:A434,'HIC (hidden)'!$B$3:$B$499),0))),\"\")","v":""}]
[{"$f":"IFERROR(IF(INDEX('HIC (hidden)'!$B$3:$B$499,MATCH(0,COUNTIF('Drop Downs (hidden)'!$A$3:A435,'HIC (hidden)'!$B$3:$B$499),0))=0,\"\",INDEX('HIC (hidden)'!$B$3:$B$499,MATCH(0,COUNTIF('Drop Downs (hidden)'!$A$3:A435,'HIC (hidden)'!$B$3:$B$499),0))),\"\")","v":""}]
[{"$f":"IFERROR(IF(INDEX('HIC (hidden)'!$B$3:$B$499,MATCH(0,COUNTIF('Drop Downs (hidden)'!$A$3:A436,'HIC (hidden)'!$B$3:$B$499),0))=0,\"\",INDEX('HIC (hidden)'!$B$3:$B$499,MATCH(0,COUNTIF('Drop Downs (hidden)'!$A$3:A436,'HIC (hidden)'!$B$3:$B$499),0))),\"\")","v":""}]
[{"$f":"IFERROR(IF(INDEX('HIC (hidden)'!$B$3:$B$499,MATCH(0,COUNTIF('Drop Downs (hidden)'!$A$3:A437,'HIC (hidden)'!$B$3:$B$499),0))=0,\"\",INDEX('HIC (hidden)'!$B$3:$B$499,MATCH(0,COUNTIF('Drop Downs (hidden)'!$A$3:A437,'HIC (hidden)'!$B$3:$B$499),0))),\"\")","v":""}]
[{"$f":"IFERROR(IF(INDEX('HIC (hidden)'!$B$3:$B$499,MATCH(0,COUNTIF('Drop Downs (hidden)'!$A$3:A438,'HIC (hidden)'!$B$3:$B$499),0))=0,\"\",INDEX('HIC (hidden)'!$B$3:$B$499,MATCH(0,COUNTIF('Drop Downs (hidden)'!$A$3:A438,'HIC (hidden)'!$B$3:$B$499),0))),\"\")","v":""}]
[{"$f":"IFERROR(IF(INDEX('HIC (hidden)'!$B$3:$B$499,MATCH(0,COUNTIF('Drop Downs (hidden)'!$A$3:A439,'HIC (hidden)'!$B$3:$B$499),0))=0,\"\",INDEX('HIC (hidden)'!$B$3:$B$499,MATCH(0,COUNTIF('Drop Downs (hidden)'!$A$3:A439,'HIC (hidden)'!$B$3:$B$499),0))),\"\")","v":""}]
[{"$f":"IFERROR(IF(INDEX('HIC (hidden)'!$B$3:$B$499,MATCH(0,COUNTIF('Drop Downs (hidden)'!$A$3:A440,'HIC (hidden)'!$B$3:$B$499),0))=0,\"\",INDEX('HIC (hidden)'!$B$3:$B$499,MATCH(0,COUNTIF('Drop Downs (hidden)'!$A$3:A440,'HIC (hidden)'!$B$3:$B$499),0))),\"\")","v":""}]
[{"$f":"IFERROR(IF(INDEX('HIC (hidden)'!$B$3:$B$499,MATCH(0,COUNTIF('Drop Downs (hidden)'!$A$3:A441,'HIC (hidden)'!$B$3:$B$499),0))=0,\"\",INDEX('HIC (hidden)'!$B$3:$B$499,MATCH(0,COUNTIF('Drop Downs (hidden)'!$A$3:A441,'HIC (hidden)'!$B$3:$B$499),0))),\"\")","v":""}]
[{"$f":"IFERROR(IF(INDEX('HIC (hidden)'!$B$3:$B$499,MATCH(0,COUNTIF('Drop Downs (hidden)'!$A$3:A442,'HIC (hidden)'!$B$3:$B$499),0))=0,\"\",INDEX('HIC (hidden)'!$B$3:$B$499,MATCH(0,COUNTIF('Drop Downs (hidden)'!$A$3:A442,'HIC (hidden)'!$B$3:$B$499),0))),\"\")","v":""}]
[{"$f":"IFERROR(IF(INDEX('HIC (hidden)'!$B$3:$B$499,MATCH(0,COUNTIF('Drop Downs (hidden)'!$A$3:A443,'HIC (hidden)'!$B$3:$B$499),0))=0,\"\",INDEX('HIC (hidden)'!$B$3:$B$499,MATCH(0,COUNTIF('Drop Downs (hidden)'!$A$3:A443,'HIC (hidden)'!$B$3:$B$499),0))),\"\")","v":""}]
[{"$f":"IFERROR(IF(INDEX('HIC (hidden)'!$B$3:$B$499,MATCH(0,COUNTIF('Drop Downs (hidden)'!$A$3:A444,'HIC (hidden)'!$B$3:$B$499),0))=0,\"\",INDEX('HIC (hidden)'!$B$3:$B$499,MATCH(0,COUNTIF('Drop Downs (hidden)'!$A$3:A444,'HIC (hidden)'!$B$3:$B$499),0))),\"\")","v":""}]
[{"$f":"IFERROR(IF(INDEX('HIC (hidden)'!$B$3:$B$499,MATCH(0,COUNTIF('Drop Downs (hidden)'!$A$3:A445,'HIC (hidden)'!$B$3:$B$499),0))=0,\"\",INDEX('HIC (hidden)'!$B$3:$B$499,MATCH(0,COUNTIF('Drop Downs (hidden)'!$A$3:A445,'HIC (hidden)'!$B$3:$B$499),0))),\"\")","v":""}]
[{"$f":"IFERROR(IF(INDEX('HIC (hidden)'!$B$3:$B$499,MATCH(0,COUNTIF('Drop Downs (hidden)'!$A$3:A446,'HIC (hidden)'!$B$3:$B$499),0))=0,\"\",INDEX('HIC (hidden)'!$B$3:$B$499,MATCH(0,COUNTIF('Drop Downs (hidden)'!$A$3:A446,'HIC (hidden)'!$B$3:$B$499),0))),\"\")","v":""}]
[{"$f":"IFERROR(IF(INDEX('HIC (hidden)'!$B$3:$B$499,MATCH(0,COUNTIF('Drop Downs (hidden)'!$A$3:A447,'HIC (hidden)'!$B$3:$B$499),0))=0,\"\",INDEX('HIC (hidden)'!$B$3:$B$499,MATCH(0,COUNTIF('Drop Downs (hidden)'!$A$3:A447,'HIC (hidden)'!$B$3:$B$499),0))),\"\")","v":""}]
[{"$f":"IFERROR(IF(INDEX('HIC (hidden)'!$B$3:$B$499,MATCH(0,COUNTIF('Drop Downs (hidden)'!$A$3:A448,'HIC (hidden)'!$B$3:$B$499),0))=0,\"\",INDEX('HIC (hidden)'!$B$3:$B$499,MATCH(0,COUNTIF('Drop Downs (hidden)'!$A$3:A448,'HIC (hidden)'!$B$3:$B$499),0))),\"\")","v":""}]
[{"$f":"IFERROR(IF(INDEX('HIC (hidden)'!$B$3:$B$499,MATCH(0,COUNTIF('Drop Downs (hidden)'!$A$3:A449,'HIC (hidden)'!$B$3:$B$499),0))=0,\"\",INDEX('HIC (hidden)'!$B$3:$B$499,MATCH(0,COUNTIF('Drop Downs (hidden)'!$A$3:A449,'HIC (hidden)'!$B$3:$B$499),0))),\"\")","v":""}]
[{"$f":"IFERROR(IF(INDEX('HIC (hidden)'!$B$3:$B$499,MATCH(0,COUNTIF('Drop Downs (hidden)'!$A$3:A450,'HIC (hidden)'!$B$3:$B$499),0))=0,\"\",INDEX('HIC (hidden)'!$B$3:$B$499,MATCH(0,COUNTIF('Drop Downs (hidden)'!$A$3:A450,'HIC (hidden)'!$B$3:$B$499),0))),\"\")","v":""}]
[{"$f":"IFERROR(IF(INDEX('HIC (hidden)'!$B$3:$B$499,MATCH(0,COUNTIF('Drop Downs (hidden)'!$A$3:A451,'HIC (hidden)'!$B$3:$B$499),0))=0,\"\",INDEX('HIC (hidden)'!$B$3:$B$499,MATCH(0,COUNTIF('Drop Downs (hidden)'!$A$3:A451,'HIC (hidden)'!$B$3:$B$499),0))),\"\")","v":""}]
[{"$f":"IFERROR(IF(INDEX('HIC (hidden)'!$B$3:$B$499,MATCH(0,COUNTIF('Drop Downs (hidden)'!$A$3:A452,'HIC (hidden)'!$B$3:$B$499),0))=0,\"\",INDEX('HIC (hidden)'!$B$3:$B$499,MATCH(0,COUNTIF('Drop Downs (hidden)'!$A$3:A452,'HIC (hidden)'!$B$3:$B$499),0))),\"\")","v":""}]
[{"$f":"IFERROR(IF(INDEX('HIC (hidden)'!$B$3:$B$499,MATCH(0,COUNTIF('Drop Downs (hidden)'!$A$3:A453,'HIC (hidden)'!$B$3:$B$499),0))=0,\"\",INDEX('HIC (hidden)'!$B$3:$B$499,MATCH(0,COUNTIF('Drop Downs (hidden)'!$A$3:A453,'HIC (hidden)'!$B$3:$B$499),0))),\"\")","v":""}]
[{"$f":"IFERROR(IF(INDEX('HIC (hidden)'!$B$3:$B$499,MATCH(0,COUNTIF('Drop Downs (hidden)'!$A$3:A454,'HIC (hidden)'!$B$3:$B$499),0))=0,\"\",INDEX('HIC (hidden)'!$B$3:$B$499,MATCH(0,COUNTIF('Drop Downs (hidden)'!$A$3:A454,'HIC (hidden)'!$B$3:$B$499),0))),\"\")","v":""}]
[{"$f":"IFERROR(IF(INDEX('HIC (hidden)'!$B$3:$B$499,MATCH(0,COUNTIF('Drop Downs (hidden)'!$A$3:A455,'HIC (hidden)'!$B$3:$B$499),0))=0,\"\",INDEX('HIC (hidden)'!$B$3:$B$499,MATCH(0,COUNTIF('Drop Downs (hidden)'!$A$3:A455,'HIC (hidden)'!$B$3:$B$499),0))),\"\")","v":""}]
[{"$f":"IFERROR(IF(INDEX('HIC (hidden)'!$B$3:$B$499,MATCH(0,COUNTIF('Drop Downs (hidden)'!$A$3:A456,'HIC (hidden)'!$B$3:$B$499),0))=0,\"\",INDEX('HIC (hidden)'!$B$3:$B$499,MATCH(0,COUNTIF('Drop Downs (hidden)'!$A$3:A456,'HIC (hidden)'!$B$3:$B$499),0))),\"\")","v":""}]
[{"$f":"IFERROR(IF(INDEX('HIC (hidden)'!$B$3:$B$499,MATCH(0,COUNTIF('Drop Downs (hidden)'!$A$3:A457,'HIC (hidden)'!$B$3:$B$499),0))=0,\"\",INDEX('HIC (hidden)'!$B$3:$B$499,MATCH(0,COUNTIF('Drop Downs (hidden)'!$A$3:A457,'HIC (hidden)'!$B$3:$B$499),0))),\"\")","v":""}]
[{"$f":"IFERROR(IF(INDEX('HIC (hidden)'!$B$3:$B$499,MATCH(0,COUNTIF('Drop Downs (hidden)'!$A$3:A458,'HIC (hidden)'!$B$3:$B$499),0))=0,\"\",INDEX('HIC (hidden)'!$B$3:$B$499,MATCH(0,COUNTIF('Drop Downs (hidden)'!$A$3:A458,'HIC (hidden)'!$B$3:$B$499),0))),\"\")","v":""}]
[{"$f":"IFERROR(IF(INDEX('HIC (hidden)'!$B$3:$B$499,MATCH(0,COUNTIF('Drop Downs (hidden)'!$A$3:A459,'HIC (hidden)'!$B$3:$B$499),0))=0,\"\",INDEX('HIC (hidden)'!$B$3:$B$499,MATCH(0,COUNTIF('Drop Downs (hidden)'!$A$3:A459,'HIC (hidden)'!$B$3:$B$499),0))),\"\")","v":""}]
[{"$f":"IFERROR(IF(INDEX('HIC (hidden)'!$B$3:$B$499,MATCH(0,COUNTIF('Drop Downs (hidden)'!$A$3:A460,'HIC (hidden)'!$B$3:$B$499),0))=0,\"\",INDEX('HIC (hidden)'!$B$3:$B$499,MATCH(0,COUNTIF('Drop Downs (hidden)'!$A$3:A460,'HIC (hidden)'!$B$3:$B$499),0))),\"\")","v":""}]
[{"$f":"IFERROR(IF(INDEX('HIC (hidden)'!$B$3:$B$499,MATCH(0,COUNTIF('Drop Downs (hidden)'!$A$3:A461,'HIC (hidden)'!$B$3:$B$499),0))=0,\"\",INDEX('HIC (hidden)'!$B$3:$B$499,MATCH(0,COUNTIF('Drop Downs (hidden)'!$A$3:A461,'HIC (hidden)'!$B$3:$B$499),0))),\"\")","v":""}]
[{"$f":"IFERROR(IF(INDEX('HIC (hidden)'!$B$3:$B$499,MATCH(0,COUNTIF('Drop Downs (hidden)'!$A$3:A462,'HIC (hidden)'!$B$3:$B$499),0))=0,\"\",INDEX('HIC (hidden)'!$B$3:$B$499,MATCH(0,COUNTIF('Drop Downs (hidden)'!$A$3:A462,'HIC (hidden)'!$B$3:$B$499),0))),\"\")","v":""}]
[{"$f":"IFERROR(IF(INDEX('HIC (hidden)'!$B$3:$B$499,MATCH(0,COUNTIF('Drop Downs (hidden)'!$A$3:A463,'HIC (hidden)'!$B$3:$B$499),0))=0,\"\",INDEX('HIC (hidden)'!$B$3:$B$499,MATCH(0,COUNTIF('Drop Downs (hidden)'!$A$3:A463,'HIC (hidden)'!$B$3:$B$499),0))),\"\")","v":""}]
[{"$f":"IFERROR(IF(INDEX('HIC (hidden)'!$B$3:$B$499,MATCH(0,COUNTIF('Drop Downs (hidden)'!$A$3:A464,'HIC (hidden)'!$B$3:$B$499),0))=0,\"\",INDEX('HIC (hidden)'!$B$3:$B$499,MATCH(0,COUNTIF('Drop Downs (hidden)'!$A$3:A464,'HIC (hidden)'!$B$3:$B$499),0))),\"\")","v":""}]
[{"$f":"IFERROR(IF(INDEX('HIC (hidden)'!$B$3:$B$499,MATCH(0,COUNTIF('Drop Downs (hidden)'!$A$3:A465,'HIC (hidden)'!$B$3:$B$499),0))=0,\"\",INDEX('HIC (hidden)'!$B$3:$B$499,MATCH(0,COUNTIF('Drop Downs (hidden)'!$A$3:A465,'HIC (hidden)'!$B$3:$B$499),0))),\"\")","v":""}]
[{"$f":"IFERROR(IF(INDEX('HIC (hidden)'!$B$3:$B$499,MATCH(0,COUNTIF('Drop Downs (hidden)'!$A$3:A466,'HIC (hidden)'!$B$3:$B$499),0))=0,\"\",INDEX('HIC (hidden)'!$B$3:$B$499,MATCH(0,COUNTIF('Drop Downs (hidden)'!$A$3:A466,'HIC (hidden)'!$B$3:$B$499),0))),\"\")","v":""}]
[{"$f":"IFERROR(IF(INDEX('HIC (hidden)'!$B$3:$B$499,MATCH(0,COUNTIF('Drop Downs (hidden)'!$A$3:A467,'HIC (hidden)'!$B$3:$B$499),0))=0,\"\",INDEX('HIC (hidden)'!$B$3:$B$499,MATCH(0,COUNTIF('Drop Downs (hidden)'!$A$3:A467,'HIC (hidden)'!$B$3:$B$499),0))),\"\")","v":""}]
[{"$f":"IFERROR(IF(INDEX('HIC (hidden)'!$B$3:$B$499,MATCH(0,COUNTIF('Drop Downs (hidden)'!$A$3:A468,'HIC (hidden)'!$B$3:$B$499),0))=0,\"\",INDEX('HIC (hidden)'!$B$3:$B$499,MATCH(0,COUNTIF('Drop Downs (hidden)'!$A$3:A468,'HIC (hidden)'!$B$3:$B$499),0))),\"\")","v":""}]
[{"$f":"IFERROR(IF(INDEX('HIC (hidden)'!$B$3:$B$499,MATCH(0,COUNTIF('Drop Downs (hidden)'!$A$3:A469,'HIC (hidden)'!$B$3:$B$499),0))=0,\"\",INDEX('HIC (hidden)'!$B$3:$B$499,MATCH(0,COUNTIF('Drop Downs (hidden)'!$A$3:A469,'HIC (hidden)'!$B$3:$B$499),0))),\"\")","v":""}]
[{"$f":"IFERROR(IF(INDEX('HIC (hidden)'!$B$3:$B$499,MATCH(0,COUNTIF('Drop Downs (hidden)'!$A$3:A470,'HIC (hidden)'!$B$3:$B$499),0))=0,\"\",INDEX('HIC (hidden)'!$B$3:$B$499,MATCH(0,COUNTIF('Drop Downs (hidden)'!$A$3:A470,'HIC (hidden)'!$B$3:$B$499),0))),\"\")","v":""}]
[{"$f":"IFERROR(IF(INDEX('HIC (hidden)'!$B$3:$B$499,MATCH(0,COUNTIF('Drop Downs (hidden)'!$A$3:A471,'HIC (hidden)'!$B$3:$B$499),0))=0,\"\",INDEX('HIC (hidden)'!$B$3:$B$499,MATCH(0,COUNTIF('Drop Downs (hidden)'!$A$3:A471,'HIC (hidden)'!$B$3:$B$499),0))),\"\")","v":""}]
[{"$f":"IFERROR(IF(INDEX('HIC (hidden)'!$B$3:$B$499,MATCH(0,COUNTIF('Drop Downs (hidden)'!$A$3:A472,'HIC (hidden)'!$B$3:$B$499),0))=0,\"\",INDEX('HIC (hidden)'!$B$3:$B$499,MATCH(0,COUNTIF('Drop Downs (hidden)'!$A$3:A472,'HIC (hidden)'!$B$3:$B$499),0))),\"\")","v":""}]
[{"$f":"IFERROR(IF(INDEX('HIC (hidden)'!$B$3:$B$499,MATCH(0,COUNTIF('Drop Downs (hidden)'!$A$3:A473,'HIC (hidden)'!$B$3:$B$499),0))=0,\"\",INDEX('HIC (hidden)'!$B$3:$B$499,MATCH(0,COUNTIF('Drop Downs (hidden)'!$A$3:A473,'HIC (hidden)'!$B$3:$B$499),0))),\"\")","v":""}]
[{"$f":"IFERROR(IF(INDEX('HIC (hidden)'!$B$3:$B$499,MATCH(0,COUNTIF('Drop Downs (hidden)'!$A$3:A474,'HIC (hidden)'!$B$3:$B$499),0))=0,\"\",INDEX('HIC (hidden)'!$B$3:$B$499,MATCH(0,COUNTIF('Drop Downs (hidden)'!$A$3:A474,'HIC (hidden)'!$B$3:$B$499),0))),\"\")","v":""}]
[{"$f":"IFERROR(IF(INDEX('HIC (hidden)'!$B$3:$B$499,MATCH(0,COUNTIF('Drop Downs (hidden)'!$A$3:A475,'HIC (hidden)'!$B$3:$B$499),0))=0,\"\",INDEX('HIC (hidden)'!$B$3:$B$499,MATCH(0,COUNTIF('Drop Downs (hidden)'!$A$3:A475,'HIC (hidden)'!$B$3:$B$499),0))),\"\")","v":""}]
[{"$f":"IFERROR(IF(INDEX('HIC (hidden)'!$B$3:$B$499,MATCH(0,COUNTIF('Drop Downs (hidden)'!$A$3:A476,'HIC (hidden)'!$B$3:$B$499),0))=0,\"\",INDEX('HIC (hidden)'!$B$3:$B$499,MATCH(0,COUNTIF('Drop Downs (hidden)'!$A$3:A476,'HIC (hidden)'!$B$3:$B$499),0))),\"\")","v":""}]
[{"$f":"IFERROR(IF(INDEX('HIC (hidden)'!$B$3:$B$499,MATCH(0,COUNTIF('Drop Downs (hidden)'!$A$3:A477,'HIC (hidden)'!$B$3:$B$499),0))=0,\"\",INDEX('HIC (hidden)'!$B$3:$B$499,MATCH(0,COUNTIF('Drop Downs (hidden)'!$A$3:A477,'HIC (hidden)'!$B$3:$B$499),0))),\"\")","v":""}]
[{"$f":"IFERROR(IF(INDEX('HIC (hidden)'!$B$3:$B$499,MATCH(0,COUNTIF('Drop Downs (hidden)'!$A$3:A478,'HIC (hidden)'!$B$3:$B$499),0))=0,\"\",INDEX('HIC (hidden)'!$B$3:$B$499,MATCH(0,COUNTIF('Drop Downs (hidden)'!$A$3:A478,'HIC (hidden)'!$B$3:$B$499),0))),\"\")","v":""}]
[{"$f":"IFERROR(IF(INDEX('HIC (hidden)'!$B$3:$B$499,MATCH(0,COUNTIF('Drop Downs (hidden)'!$A$3:A479,'HIC (hidden)'!$B$3:$B$499),0))=0,\"\",INDEX('HIC (hidden)'!$B$3:$B$499,MATCH(0,COUNTIF('Drop Downs (hidden)'!$A$3:A479,'HIC (hidden)'!$B$3:$B$499),0))),\"\")","v":""}]
[{"$f":"IFERROR(IF(INDEX('HIC (hidden)'!$B$3:$B$499,MATCH(0,COUNTIF('Drop Downs (hidden)'!$A$3:A480,'HIC (hidden)'!$B$3:$B$499),0))=0,\"\",INDEX('HIC (hidden)'!$B$3:$B$499,MATCH(0,COUNTIF('Drop Downs (hidden)'!$A$3:A480,'HIC (hidden)'!$B$3:$B$499),0))),\"\")","v":""}]
[{"$f":"IFERROR(IF(INDEX('HIC (hidden)'!$B$3:$B$499,MATCH(0,COUNTIF('Drop Downs (hidden)'!$A$3:A481,'HIC (hidden)'!$B$3:$B$499),0))=0,\"\",INDEX('HIC (hidden)'!$B$3:$B$499,MATCH(0,COUNTIF('Drop Downs (hidden)'!$A$3:A481,'HIC (hidden)'!$B$3:$B$499),0))),\"\")","v":""}]
[{"$f":"IFERROR(IF(INDEX('HIC (hidden)'!$B$3:$B$499,MATCH(0,COUNTIF('Drop Downs (hidden)'!$A$3:A482,'HIC (hidden)'!$B$3:$B$499),0))=0,\"\",INDEX('HIC (hidden)'!$B$3:$B$499,MATCH(0,COUNTIF('Drop Downs (hidden)'!$A$3:A482,'HIC (hidden)'!$B$3:$B$499),0))),\"\")","v":""}]
[{"$f":"IFERROR(IF(INDEX('HIC (hidden)'!$B$3:$B$499,MATCH(0,COUNTIF('Drop Downs (hidden)'!$A$3:A483,'HIC (hidden)'!$B$3:$B$499),0))=0,\"\",INDEX('HIC (hidden)'!$B$3:$B$499,MATCH(0,COUNTIF('Drop Downs (hidden)'!$A$3:A483,'HIC (hidden)'!$B$3:$B$499),0))),\"\")","v":""}]
[{"$f":"IFERROR(IF(INDEX('HIC (hidden)'!$B$3:$B$499,MATCH(0,COUNTIF('Drop Downs (hidden)'!$A$3:A484,'HIC (hidden)'!$B$3:$B$499),0))=0,\"\",INDEX('HIC (hidden)'!$B$3:$B$499,MATCH(0,COUNTIF('Drop Downs (hidden)'!$A$3:A484,'HIC (hidden)'!$B$3:$B$499),0))),\"\")","v":""}]
[{"$f":"IFERROR(IF(INDEX('HIC (hidden)'!$B$3:$B$499,MATCH(0,COUNTIF('Drop Downs (hidden)'!$A$3:A485,'HIC (hidden)'!$B$3:$B$499),0))=0,\"\",INDEX('HIC (hidden)'!$B$3:$B$499,MATCH(0,COUNTIF('Drop Downs (hidden)'!$A$3:A485,'HIC (hidden)'!$B$3:$B$499),0))),\"\")","v":""}]
[{"$f":"IFERROR(IF(INDEX('HIC (hidden)'!$B$3:$B$499,MATCH(0,COUNTIF('Drop Downs (hidden)'!$A$3:A486,'HIC (hidden)'!$B$3:$B$499),0))=0,\"\",INDEX('HIC (hidden)'!$B$3:$B$499,MATCH(0,COUNTIF('Drop Downs (hidden)'!$A$3:A486,'HIC (hidden)'!$B$3:$B$499),0))),\"\")","v":""}]
[{"$f":"IFERROR(IF(INDEX('HIC (hidden)'!$B$3:$B$499,MATCH(0,COUNTIF('Drop Downs (hidden)'!$A$3:A487,'HIC (hidden)'!$B$3:$B$499),0))=0,\"\",INDEX('HIC (hidden)'!$B$3:$B$499,MATCH(0,COUNTIF('Drop Downs (hidden)'!$A$3:A487,'HIC (hidden)'!$B$3:$B$499),0))),\"\")","v":""}]
[{"$f":"IFERROR(IF(INDEX('HIC (hidden)'!$B$3:$B$499,MATCH(0,COUNTIF('Drop Downs (hidden)'!$A$3:A488,'HIC (hidden)'!$B$3:$B$499),0))=0,\"\",INDEX('HIC (hidden)'!$B$3:$B$499,MATCH(0,COUNTIF('Drop Downs (hidden)'!$A$3:A488,'HIC (hidden)'!$B$3:$B$499),0))),\"\")","v":""}]
[{"$f":"IFERROR(IF(INDEX('HIC (hidden)'!$B$3:$B$499,MATCH(0,COUNTIF('Drop Downs (hidden)'!$A$3:A489,'HIC (hidden)'!$B$3:$B$499),0))=0,\"\",INDEX('HIC (hidden)'!$B$3:$B$499,MATCH(0,COUNTIF('Drop Downs (hidden)'!$A$3:A489,'HIC (hidden)'!$B$3:$B$499),0))),\"\")","v":""}]
[{"$f":"IFERROR(IF(INDEX('HIC (hidden)'!$B$3:$B$499,MATCH(0,COUNTIF('Drop Downs (hidden)'!$A$3:A490,'HIC (hidden)'!$B$3:$B$499),0))=0,\"\",INDEX('HIC (hidden)'!$B$3:$B$499,MATCH(0,COUNTIF('Drop Downs (hidden)'!$A$3:A490,'HIC (hidden)'!$B$3:$B$499),0))),\"\")","v":""}]
[{"$f":"IFERROR(IF(INDEX('HIC (hidden)'!$B$3:$B$499,MATCH(0,COUNTIF('Drop Downs (hidden)'!$A$3:A491,'HIC (hidden)'!$B$3:$B$499),0))=0,\"\",INDEX('HIC (hidden)'!$B$3:$B$499,MATCH(0,COUNTIF('Drop Downs (hidden)'!$A$3:A491,'HIC (hidden)'!$B$3:$B$499),0))),\"\")","v":""}]
[{"$f":"IFERROR(IF(INDEX('HIC (hidden)'!$B$3:$B$499,MATCH(0,COUNTIF('Drop Downs (hidden)'!$A$3:A492,'HIC (hidden)'!$B$3:$B$499),0))=0,\"\",INDEX('HIC (hidden)'!$B$3:$B$499,MATCH(0,COUNTIF('Drop Downs (hidden)'!$A$3:A492,'HIC (hidden)'!$B$3:$B$499),0))),\"\")","v":""}]
[{"$f":"IFERROR(IF(INDEX('HIC (hidden)'!$B$3:$B$499,MATCH(0,COUNTIF('Drop Downs (hidden)'!$A$3:A493,'HIC (hidden)'!$B$3:$B$499),0))=0,\"\",INDEX('HIC (hidden)'!$B$3:$B$499,MATCH(0,COUNTIF('Drop Downs (hidden)'!$A$3:A493,'HIC (hidden)'!$B$3:$B$499),0))),\"\")","v":""}]
[{"$f":"IFERROR(IF(INDEX('HIC (hidden)'!$B$3:$B$499,MATCH(0,COUNTIF('Drop Downs (hidden)'!$A$3:A494,'HIC (hidden)'!$B$3:$B$499),0))=0,\"\",INDEX('HIC (hidden)'!$B$3:$B$499,MATCH(0,COUNTIF('Drop Downs (hidden)'!$A$3:A494,'HIC (hidden)'!$B$3:$B$499),0))),\"\")","v":""}]
[{"$f":"IFERROR(IF(INDEX('HIC (hidden)'!$B$3:$B$499,MATCH(0,COUNTIF('Drop Downs (hidden)'!$A$3:A495,'HIC (hidden)'!$B$3:$B$499),0))=0,\"\",INDEX('HIC (hidden)'!$B$3:$B$499,MATCH(0,COUNTIF('Drop Downs (hidden)'!$A$3:A495,'HIC (hidden)'!$B$3:$B$499),0))),\"\")","v":""}]
[{"$f":"IFERROR(IF(INDEX('HIC (hidden)'!$B$3:$B$499,MATCH(0,COUNTIF('Drop Downs (hidden)'!$A$3:A496,'HIC (hidden)'!$B$3:$B$499),0))=0,\"\",INDEX('HIC (hidden)'!$B$3:$B$499,MATCH(0,COUNTIF('Drop Downs (hidden)'!$A$3:A496,'HIC (hidden)'!$B$3:$B$499),0))),\"\")","v":""}]
[{"$f":"IFERROR(IF(INDEX('HIC (hidden)'!$B$3:$B$499,MATCH(0,COUNTIF('Drop Downs (hidden)'!$A$3:A497,'HIC (hidden)'!$B$3:$B$499),0))=0,\"\",INDEX('HIC (hidden)'!$B$3:$B$499,MATCH(0,COUNTIF('Drop Downs (hidden)'!$A$3:A497,'HIC (hidden)'!$B$3:$B$499),0))),\"\")","v":""}]
[{"$f":"IFERROR(IF(INDEX('HIC (hidden)'!$B$3:$B$499,MATCH(0,COUNTIF('Drop Downs (hidden)'!$A$3:A498,'HIC (hidden)'!$B$3:$B$499),0))=0,\"\",INDEX('HIC (hidden)'!$B$3:$B$499,MATCH(0,COUNTIF('Drop Downs (hidden)'!$A$3:A498,'HIC (hidden)'!$B$3:$B$499),0))),\"\")","v":""}]
[{"$f":"IFERROR(IF(INDEX('HIC (hidden)'!$B$3:$B$499,MATCH(0,COUNTIF('Drop Downs (hidden)'!$A$3:A499,'HIC (hidden)'!$B$3:$B$499),0))=0,\"\",INDEX('HIC (hidden)'!$B$3:$B$499,MATCH(0,COUNTIF('Drop Downs (hidden)'!$A$3:A499,'HIC (hidden)'!$B$3:$B$499),0))),\"\")","v":""}]